Organisation Code,Organisation Label,Effective Date,Organisational Unit,Service Division Label,Category Internal Name,Purpose,Detailed Expenditure Code,Payment Date,Transaction Number,Irrecoverable VAT Amount,Amount,Capital Or Revenue,Benificiary Name,Procurement Card
Http://opendatacommunities.org/id/metropolitan-district-council/leeds,Leeds City Council,31/03/2017,Environment & Housing,Leeds Building Services,Supplies and Services,Operational Materials,205,13-Mar-2017,1703-00001,0.00,85.05,R,A & A Electrical Distributors Ltd,NO
Http://opendatacommunities.org/id/metropolitan-district-council/leeds,Leeds City Council,31/03/2017,Environment & Housing,Leeds Building Services,Supplies and Services,Operational Materials,205,14-Mar-2017,1703-00002,0.00,1327.16,R,A & A Electrical Distributors Ltd,NO
Http://opendatacommunities.org/id/metropolitan-district-council/leeds,Leeds City Council,31/03/2017,Environment & Housing,Waste Management,Supplies and Services,Publication And Promotion,267,28-Mar-2017,1703-00003,0.00,780.56,R,A & B Industrial Services (North East),NO
Http://opendatacommunities.org/id/metropolitan-district-council/leeds,Leeds City Council,31/03/2017,Environment & Housing,Housing Leeds Service,Capital,Other Costs,7,02-Mar-2017,1703-00004,0.00,300.00,C,REDACTED PERSONAL DATA,NO
Http://opendatacommunities.org/id/metropolitan-district-council/leeds,Leeds City Council,31/03/2017,Environment & Housing,Leeds Building Services,Supplies and Services,Operational Materials,205,06-Mar-2017,1703-00005,0.00,11.55,R,A Andrews & Sons (Marbles & Tiles),NO
Http://opendatacommunities.org/id/metropolitan-district-council/leeds,Leeds City Council,31/03/2017,Environment & Housing,Leeds Building Services,Supplies and Services,Operational Materials,205,27-Mar-2017,1703-00006,0.00,14.58,R,A Andrews & Sons (Marbles & Tiles),NO
Http://opendatacommunities.org/id/metropolitan-district-council/leeds,Leeds City Council,31/03/2017,Environment & Housing,Housing Leeds Service,Capital,Other Costs,7,02-Mar-2017,1703-00007,0.00,400.00,C,REDACTED PERSONAL DATA,NO
Http://opendatacommunities.org/id/metropolitan-district-council/leeds,Leeds City Council,31/03/2017,Childrens Services,Learning Skills & Universal,Third Party Payments,Services Rendered By Other Organisations,511,17-Mar-2017,1703-00008,0.00,627.00,R,REDACTED PERSONAL DATA,NO
Http://opendatacommunities.org/id/metropolitan-district-council/leeds,Leeds City Council,31/03/2017,Childrens Services,Learning Skills & Universal,Third Party Payments,Services Rendered By Other Organisations,511,17-Mar-2017,1703-00009,0.00,125.40,R,A Clarkson,NO
Http://opendatacommunities.org/id/metropolitan-district-council/leeds,Leeds City Council,31/03/2017,Environment & Housing,Parks and Countryside,Supplies and Services,Bought In Professional Services,277,09-Mar-2017,1703-00010,0.00,1263.13,R,REDACTED COMMERCIAL CONFIDENTIALITY,NO
Http://opendatacommunities.org/id/metropolitan-district-council/leeds,Leeds City Council,31/03/2017,Childrens Services,Learning Skills & Universal,Third Party Payments,Services Rendered By Voluntary Sector,505,10-Mar-2017,1703-00011,0.00,672.21,R,A E Speight,NO
Http://opendatacommunities.org/id/metropolitan-district-council/leeds,Leeds City Council,31/03/2017,Childrens Services,Learning Skills & Universal,Third Party Payments,Services Rendered By Voluntary Sector,505,17-Mar-2017,1703-00012,0.00,2333.10,R,A E Speight,NO
Http://opendatacommunities.org/id/metropolitan-district-council/leeds,Leeds City Council,31/03/2017,Childrens Services,Learning Skills & Universal,Third Party Payments,Services Rendered By Voluntary Sector,505,17-Mar-2017,1703-00013,0.00,524.70,R,A E Speight,NO
Http://opendatacommunities.org/id/metropolitan-district-council/leeds,Leeds City Council,31/03/2017,City Development,Highways,Capital,Construction,3,16-Mar-2017,1703-00014,0.00,204065.69,C,A E Yates Ltd,NO
Http://opendatacommunities.org/id/metropolitan-district-council/leeds,Leeds City Council,31/03/2017,City Development,Highways,Capital,Construction,3,29-Mar-2017,1703-00015,0.00,196861.07,C,A E Yates Ltd,NO
Http://opendatacommunities.org/id/metropolitan-district-council/leeds,Leeds City Council,31/03/2017,Environment & Housing,Housing Leeds Service,Capital,Other Costs,7,16-Mar-2017,1703-00016,0.00,400.00,C,REDACTED PERSONAL DATA,NO
Http://opendatacommunities.org/id/metropolitan-district-council/leeds,Leeds City Council,31/03/2017,Environment & Housing,Housing Leeds Service,Capital,Other Costs,7,16-Mar-2017,1703-00017,0.00,50.00,C,REDACTED PERSONAL DATA,NO
Http://opendatacommunities.org/id/metropolitan-district-council/leeds,Leeds City Council,31/03/2017,Environment & Housing,Housing Leeds Service,Capital,Other Costs,7,16-Mar-2017,1703-00018,0.00,217.00,C,REDACTED PERSONAL DATA,NO
Http://opendatacommunities.org/id/metropolitan-district-council/leeds,Leeds City Council,31/03/2017,Childrens Services,Learning Skills & Universal,Third Party Payments,Services Rendered By Other Organisations,511,17-Mar-2017,1703-00019,0.00,285.00,R,A Foley,NO
Http://opendatacommunities.org/id/metropolitan-district-council/leeds,Leeds City Council,31/03/2017,Childrens Services,Learning Skills & Universal,Third Party Payments,Services Rendered By Other Organisations,511,17-Mar-2017,1703-00020,0.00,125.40,R,A Green,NO
Http://opendatacommunities.org/id/metropolitan-district-council/leeds,Leeds City Council,31/03/2017,City Development,Libraries  Arts & Heritage,Supplies and Services,Bought In Professional Services,277,10-Mar-2017,1703-00021,0.00,1760.00,R,A H Fraga,NO
Http://opendatacommunities.org/id/metropolitan-district-council/leeds,Leeds City Council,31/03/2017,Childrens Services,Learning Skills & Universal,Third Party Payments,Services Rendered By Other Organisations,511,17-Mar-2017,1703-00022,0.00,22.80,R,A Hayes,NO
Http://opendatacommunities.org/id/metropolitan-district-council/leeds,Leeds City Council,31/03/2017,City Development,Libraries  Arts & Heritage,Supplies and Services,Other Hired And Contracted Services,265,16-Mar-2017,1703-00023,0.00,75.00,R,REDACTED COMMERCIAL CONFIDENTIALITY,NO
Http://opendatacommunities.org/id/metropolitan-district-council/leeds,Leeds City Council,31/03/2017,Environment & Housing,Parks and Countryside,Supplies and Services,Operational Furniture And Equipment,203,02-Mar-2017,1703-00024,0.00,413.30,R,A J H  Pump Supply & Repair Ltd,NO
Http://opendatacommunities.org/id/metropolitan-district-council/leeds,Leeds City Council,31/03/2017,Environment & Housing,Leeds Building Services,Supplies and Services,Operational Materials,205,06-Mar-2017,1703-00025,0.00,72.00,R,A J H  Pump Supply & Repair Ltd,NO
Http://opendatacommunities.org/id/metropolitan-district-council/leeds,Leeds City Council,31/03/2017,Environment & Housing,Leeds Building Services,Supplies and Services,Operational Materials,205,06-Mar-2017,1703-00026,0.00,177.59,R,A J H  Pump Supply & Repair Ltd,NO
Http://opendatacommunities.org/id/metropolitan-district-council/leeds,Leeds City Council,31/03/2017,Environment & Housing,Leeds Building Services,Supplies and Services,Operational Materials,205,06-Mar-2017,1703-00027,0.00,220.00,R,A J H  Pump Supply & Repair Ltd,NO
Http://opendatacommunities.org/id/metropolitan-district-council/leeds,Leeds City Council,31/03/2017,Environment & Housing,Leeds Building Services,Supplies and Services,Operational Materials,205,06-Mar-2017,1703-00028,0.00,57.28,R,A J H  Pump Supply & Repair Ltd,NO
Http://opendatacommunities.org/id/metropolitan-district-council/leeds,Leeds City Council,31/03/2017,Environment & Housing,Leeds Building Services,Supplies and Services,Operational Materials,205,06-Mar-2017,1703-00029,0.00,671.22,R,A J H  Pump Supply & Repair Ltd,NO
Http://opendatacommunities.org/id/metropolitan-district-council/leeds,Leeds City Council,31/03/2017,Environment & Housing,Leeds Building Services,Supplies and Services,Operational Materials,205,06-Mar-2017,1703-00030,0.00,25.00,R,A J H  Pump Supply & Repair Ltd,NO
Http://opendatacommunities.org/id/metropolitan-district-council/leeds,Leeds City Council,31/03/2017,Environment & Housing,Leeds Building Services,Supplies and Services,Operational Materials,205,06-Mar-2017,1703-00031,0.00,135.00,R,A J H  Pump Supply & Repair Ltd,NO
Http://opendatacommunities.org/id/metropolitan-district-council/leeds,Leeds City Council,31/03/2017,Environment & Housing,Leeds Building Services,Supplies and Services,Operational Materials,205,06-Mar-2017,1703-00032,0.00,516.80,R,A J H  Pump Supply & Repair Ltd,NO
Http://opendatacommunities.org/id/metropolitan-district-council/leeds,Leeds City Council,31/03/2017,Environment & Housing,Leeds Building Services,Supplies and Services,Operational Materials,205,06-Mar-2017,1703-00033,0.00,68.06,R,A J H  Pump Supply & Repair Ltd,NO
Http://opendatacommunities.org/id/metropolitan-district-council/leeds,Leeds City Council,31/03/2017,Environment & Housing,Leeds Building Services,Supplies and Services,Operational Materials,205,06-Mar-2017,1703-00034,0.00,46.44,R,A J H  Pump Supply & Repair Ltd,NO
Http://opendatacommunities.org/id/metropolitan-district-council/leeds,Leeds City Council,31/03/2017,Environment & Housing,Leeds Building Services,Supplies and Services,Operational Materials,205,06-Mar-2017,1703-00035,0.00,345.00,R,A J H  Pump Supply & Repair Ltd,NO
Http://opendatacommunities.org/id/metropolitan-district-council/leeds,Leeds City Council,31/03/2017,Environment & Housing,Leeds Building Services,Supplies and Services,Operational Materials,205,06-Mar-2017,1703-00036,0.00,57.78,R,A J H  Pump Supply & Repair Ltd,NO
Http://opendatacommunities.org/id/metropolitan-district-council/leeds,Leeds City Council,31/03/2017,Environment & Housing,Leeds Building Services,Supplies and Services,Operational Materials,205,06-Mar-2017,1703-00037,0.00,17.40,R,A J H  Pump Supply & Repair Ltd,NO
Http://opendatacommunities.org/id/metropolitan-district-council/leeds,Leeds City Council,31/03/2017,Environment & Housing,Leeds Building Services,Supplies and Services,Operational Materials,205,06-Mar-2017,1703-00038,0.00,330.00,R,A J H  Pump Supply & Repair Ltd,NO
Http://opendatacommunities.org/id/metropolitan-district-council/leeds,Leeds City Council,31/03/2017,Environment & Housing,Leeds Building Services,Supplies and Services,Operational Materials,205,06-Mar-2017,1703-00039,0.00,98.92,R,A J H  Pump Supply & Repair Ltd,NO
Http://opendatacommunities.org/id/metropolitan-district-council/leeds,Leeds City Council,31/03/2017,Environment & Housing,Leeds Building Services,Supplies and Services,Operational Materials,205,06-Mar-2017,1703-00040,0.00,144.46,R,A J H  Pump Supply & Repair Ltd,NO
Http://opendatacommunities.org/id/metropolitan-district-council/leeds,Leeds City Council,31/03/2017,Environment & Housing,Leeds Building Services,Supplies and Services,Operational Materials,205,06-Mar-2017,1703-00041,0.00,21.85,R,A J H  Pump Supply & Repair Ltd,NO
Http://opendatacommunities.org/id/metropolitan-district-council/leeds,Leeds City Council,31/03/2017,Environment & Housing,Leeds Building Services,Supplies and Services,Operational Materials,205,06-Mar-2017,1703-00042,0.00,16.76,R,A J H  Pump Supply & Repair Ltd,NO
Http://opendatacommunities.org/id/metropolitan-district-council/leeds,Leeds City Council,31/03/2017,Environment & Housing,Leeds Building Services,Supplies and Services,Operational Materials,205,06-Mar-2017,1703-00043,0.00,11.85,R,A J H  Pump Supply & Repair Ltd,NO
Http://opendatacommunities.org/id/metropolitan-district-council/leeds,Leeds City Council,31/03/2017,Environment & Housing,Leeds Building Services,Supplies and Services,Operational Materials,205,06-Mar-2017,1703-00044,0.00,143.43,R,A J H  Pump Supply & Repair Ltd,NO
Http://opendatacommunities.org/id/metropolitan-district-council/leeds,Leeds City Council,31/03/2017,Environment & Housing,Leeds Building Services,Supplies and Services,Operational Materials,205,06-Mar-2017,1703-00045,0.00,193.85,R,A J H  Pump Supply & Repair Ltd,NO
Http://opendatacommunities.org/id/metropolitan-district-council/leeds,Leeds City Council,31/03/2017,Environment & Housing,Leeds Building Services,Supplies and Services,Operational Materials,205,06-Mar-2017,1703-00046,0.00,49.00,R,A J H  Pump Supply & Repair Ltd,NO
Http://opendatacommunities.org/id/metropolitan-district-council/leeds,Leeds City Council,31/03/2017,Environment & Housing,Leeds Building Services,Supplies and Services,Operational Materials,205,06-Mar-2017,1703-00047,0.00,23.85,R,A J H  Pump Supply & Repair Ltd,NO
Http://opendatacommunities.org/id/metropolitan-district-council/leeds,Leeds City Council,31/03/2017,Environment & Housing,Leeds Building Services,Supplies and Services,Operational Materials,205,06-Mar-2017,1703-00048,0.00,313.00,R,A J H  Pump Supply & Repair Ltd,NO
Http://opendatacommunities.org/id/metropolitan-district-council/leeds,Leeds City Council,31/03/2017,Environment & Housing,Leeds Building Services,Supplies and Services,Operational Materials,205,06-Mar-2017,1703-00049,0.00,444.59,R,A J H  Pump Supply & Repair Ltd,NO
Http://opendatacommunities.org/id/metropolitan-district-council/leeds,Leeds City Council,31/03/2017,Environment & Housing,Leeds Building Services,Supplies and Services,Operational Materials,205,06-Mar-2017,1703-00050,0.00,228.75,R,A J H  Pump Supply & Repair Ltd,NO
Http://opendatacommunities.org/id/metropolitan-district-council/leeds,Leeds City Council,31/03/2017,Environment & Housing,Leeds Building Services,Supplies and Services,Operational Materials,205,06-Mar-2017,1703-00051,0.00,109.00,R,A J H  Pump Supply & Repair Ltd,NO
Http://opendatacommunities.org/id/metropolitan-district-council/leeds,Leeds City Council,31/03/2017,Environment & Housing,Leeds Building Services,Supplies and Services,Operational Materials,205,07-Mar-2017,1703-00052,0.00,229.69,R,A J H  Pump Supply & Repair Ltd,NO
Http://opendatacommunities.org/id/metropolitan-district-council/leeds,Leeds City Council,31/03/2017,Environment & Housing,Leeds Building Services,Supplies and Services,Operational Materials,205,07-Mar-2017,1703-00053,0.00,650.00,R,A J H  Pump Supply & Repair Ltd,NO
Http://opendatacommunities.org/id/metropolitan-district-council/leeds,Leeds City Council,31/03/2017,Environment & Housing,Leeds Building Services,Supplies and Services,Operational Materials,205,10-Mar-2017,1703-00054,0.00,20.21,R,A J H  Pump Supply & Repair Ltd,NO
Http://opendatacommunities.org/id/metropolitan-district-council/leeds,Leeds City Council,31/03/2017,Environment & Housing,Leeds Building Services,Supplies and Services,Operational Materials,205,10-Mar-2017,1703-00055,0.00,126.60,R,A J H  Pump Supply & Repair Ltd,NO
Http://opendatacommunities.org/id/metropolitan-district-council/leeds,Leeds City Council,31/03/2017,Environment & Housing,Leeds Building Services,Supplies and Services,Operational Materials,205,10-Mar-2017,1703-00056,0.00,167.70,R,A J H  Pump Supply & Repair Ltd,NO
Http://opendatacommunities.org/id/metropolitan-district-council/leeds,Leeds City Council,31/03/2017,Environment & Housing,Leeds Building Services,Supplies and Services,Operational Materials,205,10-Mar-2017,1703-00057,0.00,305.00,R,A J H  Pump Supply & Repair Ltd,NO
Http://opendatacommunities.org/id/metropolitan-district-council/leeds,Leeds City Council,31/03/2017,Environment & Housing,Leeds Building Services,Supplies and Services,Operational Materials,205,10-Mar-2017,1703-00058,0.00,193.91,R,A J H  Pump Supply & Repair Ltd,NO
Http://opendatacommunities.org/id/metropolitan-district-council/leeds,Leeds City Council,31/03/2017,Environment & Housing,Leeds Building Services,Supplies and Services,Operational Materials,205,10-Mar-2017,1703-00059,0.00,461.00,R,A J H  Pump Supply & Repair Ltd,NO
Http://opendatacommunities.org/id/metropolitan-district-council/leeds,Leeds City Council,31/03/2017,Environment & Housing,Leeds Building Services,Supplies and Services,Operational Materials,205,17-Mar-2017,1703-00060,0.00,84.91,R,A J H  Pump Supply & Repair Ltd,NO
Http://opendatacommunities.org/id/metropolitan-district-council/leeds,Leeds City Council,31/03/2017,Environment & Housing,Leeds Building Services,Supplies and Services,Operational Materials,205,17-Mar-2017,1703-00061,0.00,34.25,R,A J H  Pump Supply & Repair Ltd,NO
Http://opendatacommunities.org/id/metropolitan-district-council/leeds,Leeds City Council,31/03/2017,Environment & Housing,Leeds Building Services,Supplies and Services,Operational Materials,205,17-Mar-2017,1703-00062,0.00,145.56,R,A J H  Pump Supply & Repair Ltd,NO
Http://opendatacommunities.org/id/metropolitan-district-council/leeds,Leeds City Council,31/03/2017,Environment & Housing,Leeds Building Services,Supplies and Services,Operational Materials,205,17-Mar-2017,1703-00063,0.00,348.78,R,A J H  Pump Supply & Repair Ltd,NO
Http://opendatacommunities.org/id/metropolitan-district-council/leeds,Leeds City Council,31/03/2017,Environment & Housing,Leeds Building Services,Supplies and Services,Operational Materials,205,17-Mar-2017,1703-00064,0.00,26.52,R,A J H  Pump Supply & Repair Ltd,NO
Http://opendatacommunities.org/id/metropolitan-district-council/leeds,Leeds City Council,31/03/2017,Environment & Housing,Leeds Building Services,Supplies and Services,Operational Materials,205,17-Mar-2017,1703-00065,0.00,19.13,R,A J H  Pump Supply & Repair Ltd,NO
Http://opendatacommunities.org/id/metropolitan-district-council/leeds,Leeds City Council,31/03/2017,Environment & Housing,Leeds Building Services,Supplies and Services,Operational Materials,205,17-Mar-2017,1703-00066,0.00,41.69,R,A J H  Pump Supply & Repair Ltd,NO
Http://opendatacommunities.org/id/metropolitan-district-council/leeds,Leeds City Council,31/03/2017,Environment & Housing,Leeds Building Services,Supplies and Services,Operational Materials,205,17-Mar-2017,1703-00067,0.00,127.25,R,A J H  Pump Supply & Repair Ltd,NO
Http://opendatacommunities.org/id/metropolitan-district-council/leeds,Leeds City Council,31/03/2017,Environment & Housing,Leeds Building Services,Supplies and Services,Operational Materials,205,17-Mar-2017,1703-00068,0.00,31.00,R,A J H  Pump Supply & Repair Ltd,NO
Http://opendatacommunities.org/id/metropolitan-district-council/leeds,Leeds City Council,31/03/2017,Environment & Housing,Leeds Building Services,Supplies and Services,Operational Materials,205,17-Mar-2017,1703-00069,0.00,27.52,R,A J H  Pump Supply & Repair Ltd,NO
Http://opendatacommunities.org/id/metropolitan-district-council/leeds,Leeds City Council,31/03/2017,Environment & Housing,Leeds Building Services,Supplies and Services,Operational Materials,205,17-Mar-2017,1703-00070,0.00,157.10,R,A J H  Pump Supply & Repair Ltd,NO
Http://opendatacommunities.org/id/metropolitan-district-council/leeds,Leeds City Council,31/03/2017,Environment & Housing,Leeds Building Services,Supplies and Services,Operational Materials,205,17-Mar-2017,1703-00071,0.00,34.00,R,A J H  Pump Supply & Repair Ltd,NO
Http://opendatacommunities.org/id/metropolitan-district-council/leeds,Leeds City Council,31/03/2017,Environment & Housing,Leeds Building Services,Supplies and Services,Operational Materials,205,17-Mar-2017,1703-00072,0.00,98.85,R,A J H  Pump Supply & Repair Ltd,NO
Http://opendatacommunities.org/id/metropolitan-district-council/leeds,Leeds City Council,31/03/2017,Environment & Housing,Leeds Building Services,Supplies and Services,Operational Materials,205,17-Mar-2017,1703-00073,0.00,70.00,R,A J H  Pump Supply & Repair Ltd,NO
Http://opendatacommunities.org/id/metropolitan-district-council/leeds,Leeds City Council,31/03/2017,Environment & Housing,Leeds Building Services,Supplies and Services,Operational Materials,205,17-Mar-2017,1703-00074,0.00,178.16,R,A J H  Pump Supply & Repair Ltd,NO
Http://opendatacommunities.org/id/metropolitan-district-council/leeds,Leeds City Council,31/03/2017,Environment & Housing,Leeds Building Services,Supplies and Services,Operational Materials,205,17-Mar-2017,1703-00075,0.00,387.04,R,A J H  Pump Supply & Repair Ltd,NO
Http://opendatacommunities.org/id/metropolitan-district-council/leeds,Leeds City Council,31/03/2017,Environment & Housing,Leeds Building Services,Supplies and Services,Operational Materials,205,17-Mar-2017,1703-00076,0.00,74.67,R,A J H  Pump Supply & Repair Ltd,NO
Http://opendatacommunities.org/id/metropolitan-district-council/leeds,Leeds City Council,31/03/2017,Environment & Housing,Leeds Building Services,Supplies and Services,Operational Materials,205,17-Mar-2017,1703-00077,0.00,90.25,R,A J H  Pump Supply & Repair Ltd,NO
Http://opendatacommunities.org/id/metropolitan-district-council/leeds,Leeds City Council,31/03/2017,Environment & Housing,Leeds Building Services,Supplies and Services,Operational Materials,205,17-Mar-2017,1703-00078,0.00,70.95,R,A J H  Pump Supply & Repair Ltd,NO
Http://opendatacommunities.org/id/metropolitan-district-council/leeds,Leeds City Council,31/03/2017,Environment & Housing,Leeds Building Services,Supplies and Services,Operational Materials,205,17-Mar-2017,1703-00079,0.00,59.91,R,A J H  Pump Supply & Repair Ltd,NO
Http://opendatacommunities.org/id/metropolitan-district-council/leeds,Leeds City Council,31/03/2017,Environment & Housing,Leeds Building Services,Supplies and Services,Operational Materials,205,17-Mar-2017,1703-00080,0.00,30.00,R,A J H  Pump Supply & Repair Ltd,NO
Http://opendatacommunities.org/id/metropolitan-district-council/leeds,Leeds City Council,31/03/2017,Environment & Housing,Leeds Building Services,Supplies and Services,Operational Materials,205,17-Mar-2017,1703-00081,0.00,36.11,R,A J H  Pump Supply & Repair Ltd,NO
Http://opendatacommunities.org/id/metropolitan-district-council/leeds,Leeds City Council,31/03/2017,Environment & Housing,Leeds Building Services,Supplies and Services,Operational Materials,205,17-Mar-2017,1703-00082,0.00,495.00,R,A J H  Pump Supply & Repair Ltd,NO
Http://opendatacommunities.org/id/metropolitan-district-council/leeds,Leeds City Council,31/03/2017,Environment & Housing,Leeds Building Services,Supplies and Services,Operational Materials,205,17-Mar-2017,1703-00083,0.00,675.00,R,A J H  Pump Supply & Repair Ltd,NO
Http://opendatacommunities.org/id/metropolitan-district-council/leeds,Leeds City Council,31/03/2017,Environment & Housing,Leeds Building Services,Supplies and Services,Operational Materials,205,21-Mar-2017,1703-00084,0.00,725.00,R,A J H  Pump Supply & Repair Ltd,NO
Http://opendatacommunities.org/id/metropolitan-district-council/leeds,Leeds City Council,31/03/2017,Environment & Housing,Leeds Building Services,Supplies and Services,Operational Materials,205,21-Mar-2017,1703-00085,0.00,253.41,R,A J H  Pump Supply & Repair Ltd,NO
Http://opendatacommunities.org/id/metropolitan-district-council/leeds,Leeds City Council,31/03/2017,Environment & Housing,Parks and Countryside,Supplies and Services,Operational Furniture And Equipment,203,21-Mar-2017,1703-00086,0.00,830.45,R,A J H  Pump Supply & Repair Ltd,NO
Http://opendatacommunities.org/id/metropolitan-district-council/leeds,Leeds City Council,31/03/2017,Environment & Housing,Leeds Building Services,Supplies and Services,Operational Materials,205,24-Mar-2017,1703-00087,0.00,2043.00,R,A J H  Pump Supply & Repair Ltd,NO
Http://opendatacommunities.org/id/metropolitan-district-council/leeds,Leeds City Council,31/03/2017,Environment & Housing,Leeds Building Services,Supplies and Services,Operational Materials,205,24-Mar-2017,1703-00088,0.00,770.00,R,A J H  Pump Supply & Repair Ltd,NO
Http://opendatacommunities.org/id/metropolitan-district-council/leeds,Leeds City Council,31/03/2017,Environment & Housing,Leeds Building Services,Supplies and Services,Other Hired And Contracted Services,265,28-Mar-2017,1703-00089,0.00,160.00,R,A J H  Pump Supply & Repair Ltd,NO
Http://opendatacommunities.org/id/metropolitan-district-council/leeds,Leeds City Council,31/03/2017,Environment & Housing,Leeds Building Services,Supplies and Services,Other Hired And Contracted Services,265,28-Mar-2017,1703-00090,0.00,180.00,R,A J H  Pump Supply & Repair Ltd,NO
Http://opendatacommunities.org/id/metropolitan-district-council/leeds,Leeds City Council,31/03/2017,Environment & Housing,Leeds Building Services,Supplies and Services,Operational Materials,205,31-Mar-2017,1703-00091,0.00,105.00,R,A J H  Pump Supply & Repair Ltd,NO
Http://opendatacommunities.org/id/metropolitan-district-council/leeds,Leeds City Council,31/03/2017,Environment & Housing,Leeds Building Services,Supplies and Services,Operational Materials,205,31-Mar-2017,1703-00092,0.00,12.99,R,A J H  Pump Supply & Repair Ltd,NO
Http://opendatacommunities.org/id/metropolitan-district-council/leeds,Leeds City Council,31/03/2017,Environment & Housing,Leeds Building Services,Supplies and Services,Operational Materials,205,31-Mar-2017,1703-00093,0.00,280.00,R,A J H  Pump Supply & Repair Ltd,NO
Http://opendatacommunities.org/id/metropolitan-district-council/leeds,Leeds City Council,31/03/2017,Environment & Housing,Leeds Building Services,Supplies and Services,Operational Materials,205,31-Mar-2017,1703-00094,0.00,85.05,R,A J H  Pump Supply & Repair Ltd,NO
Http://opendatacommunities.org/id/metropolitan-district-council/leeds,Leeds City Council,31/03/2017,Environment & Housing,Leeds Building Services,Supplies and Services,Operational Materials,205,31-Mar-2017,1703-00095,0.00,59.01,R,A J H  Pump Supply & Repair Ltd,NO
Http://opendatacommunities.org/id/metropolitan-district-council/leeds,Leeds City Council,31/03/2017,Environment & Housing,Leeds Building Services,Supplies and Services,Operational Materials,205,31-Mar-2017,1703-00096,0.00,53.66,R,A J H  Pump Supply & Repair Ltd,NO
Http://opendatacommunities.org/id/metropolitan-district-council/leeds,Leeds City Council,31/03/2017,Environment & Housing,Leeds Building Services,Supplies and Services,Operational Materials,205,31-Mar-2017,1703-00097,0.00,15.90,R,A J H  Pump Supply & Repair Ltd,NO
Http://opendatacommunities.org/id/metropolitan-district-council/leeds,Leeds City Council,31/03/2017,Environment & Housing,Leeds Building Services,Supplies and Services,Operational Materials,205,31-Mar-2017,1703-00098,0.00,131.60,R,A J H  Pump Supply & Repair Ltd,NO
Http://opendatacommunities.org/id/metropolitan-district-council/leeds,Leeds City Council,31/03/2017,Environment & Housing,Leeds Building Services,Supplies and Services,Operational Furniture And Equipment,203,31-Mar-2017,1703-00099,0.00,75.00,R,A J H  Pump Supply & Repair Ltd,NO
Http://opendatacommunities.org/id/metropolitan-district-council/leeds,Leeds City Council,31/03/2017,Environment & Housing,Leeds Building Services,Supplies and Services,Operational Materials,205,31-Mar-2017,1703-00100,0.00,48.79,R,A J H  Pump Supply & Repair Ltd,NO
Http://opendatacommunities.org/id/metropolitan-district-council/leeds,Leeds City Council,31/03/2017,Environment & Housing,Leeds Building Services,Supplies and Services,Operational Materials,205,31-Mar-2017,1703-00101,0.00,14.00,R,A J H  Pump Supply & Repair Ltd,NO
Http://opendatacommunities.org/id/metropolitan-district-council/leeds,Leeds City Council,31/03/2017,Environment & Housing,Leeds Building Services,Supplies and Services,Operational Materials,205,31-Mar-2017,1703-00102,0.00,144.90,R,A J H  Pump Supply & Repair Ltd,NO
Http://opendatacommunities.org/id/metropolitan-district-council/leeds,Leeds City Council,31/03/2017,Environment & Housing,Leeds Building Services,Supplies and Services,Operational Materials,205,31-Mar-2017,1703-00103,0.00,63.83,R,A J H  Pump Supply & Repair Ltd,NO
Http://opendatacommunities.org/id/metropolitan-district-council/leeds,Leeds City Council,31/03/2017,Environment & Housing,Leeds Building Services,Supplies and Services,Operational Materials,205,31-Mar-2017,1703-00104,0.00,72.95,R,A J H  Pump Supply & Repair Ltd,NO
Http://opendatacommunities.org/id/metropolitan-district-council/leeds,Leeds City Council,31/03/2017,Environment & Housing,Leeds Building Services,Supplies and Services,Operational Materials,205,31-Mar-2017,1703-00105,0.00,249.00,R,A J H  Pump Supply & Repair Ltd,NO
Http://opendatacommunities.org/id/metropolitan-district-council/leeds,Leeds City Council,31/03/2017,Environment & Housing,Leeds Building Services,Supplies and Services,Operational Materials,205,31-Mar-2017,1703-00106,0.00,643.47,R,A J H  Pump Supply & Repair Ltd,NO
Http://opendatacommunities.org/id/metropolitan-district-council/leeds,Leeds City Council,31/03/2017,Environment & Housing,Leeds Building Services,Supplies and Services,Operational Materials,205,31-Mar-2017,1703-00107,0.00,48.85,R,A J H  Pump Supply & Repair Ltd,NO
Http://opendatacommunities.org/id/metropolitan-district-council/leeds,Leeds City Council,31/03/2017,Environment & Housing,Leeds Building Services,Supplies and Services,Operational Materials,205,31-Mar-2017,1703-00108,0.00,138.96,R,A J H  Pump Supply & Repair Ltd,NO
Http://opendatacommunities.org/id/metropolitan-district-council/leeds,Leeds City Council,31/03/2017,Environment & Housing,Leeds Building Services,Supplies and Services,Operational Materials,205,31-Mar-2017,1703-00109,0.00,221.98,R,A J H  Pump Supply & Repair Ltd,NO
Http://opendatacommunities.org/id/metropolitan-district-council/leeds,Leeds City Council,31/03/2017,Environment & Housing,Leeds Building Services,Supplies and Services,Operational Materials,205,31-Mar-2017,1703-00110,0.00,37.45,R,A J H  Pump Supply & Repair Ltd,NO
Http://opendatacommunities.org/id/metropolitan-district-council/leeds,Leeds City Council,31/03/2017,Environment & Housing,Leeds Building Services,Supplies and Services,Operational Materials,205,31-Mar-2017,1703-00111,0.00,35.43,R,A J H  Pump Supply & Repair Ltd,NO
Http://opendatacommunities.org/id/metropolitan-district-council/leeds,Leeds City Council,31/03/2017,Environment & Housing,Leeds Building Services,Supplies and Services,Operational Materials,205,31-Mar-2017,1703-00112,0.00,250.07,R,A J H  Pump Supply & Repair Ltd,NO
Http://opendatacommunities.org/id/metropolitan-district-council/leeds,Leeds City Council,31/03/2017,Environment & Housing,Leeds Building Services,Supplies and Services,Operational Materials,205,31-Mar-2017,1703-00113,0.00,279.24,R,A J H  Pump Supply & Repair Ltd,NO
Http://opendatacommunities.org/id/metropolitan-district-council/leeds,Leeds City Council,31/03/2017,Environment & Housing,Leeds Building Services,Supplies and Services,Operational Materials,205,31-Mar-2017,1703-00114,0.00,66.97,R,A J H  Pump Supply & Repair Ltd,NO
Http://opendatacommunities.org/id/metropolitan-district-council/leeds,Leeds City Council,31/03/2017,Environment & Housing,Leeds Building Services,Supplies and Services,Operational Furniture And Equipment,203,31-Mar-2017,1703-00115,0.00,135.00,R,A J H  Pump Supply & Repair Ltd,NO
Http://opendatacommunities.org/id/metropolitan-district-council/leeds,Leeds City Council,31/03/2017,Environment & Housing,Leeds Building Services,Supplies and Services,Operational Materials,205,31-Mar-2017,1703-00116,0.00,274.37,R,A J H  Pump Supply & Repair Ltd,NO
Http://opendatacommunities.org/id/metropolitan-district-council/leeds,Leeds City Council,31/03/2017,Environment & Housing,Leeds Building Services,Supplies and Services,Operational Materials,205,31-Mar-2017,1703-00117,0.00,9.00,R,A J H  Pump Supply & Repair Ltd,NO
Http://opendatacommunities.org/id/metropolitan-district-council/leeds,Leeds City Council,31/03/2017,Environment & Housing,Leeds Building Services,Supplies and Services,Operational Materials,205,31-Mar-2017,1703-00118,0.00,147.00,R,A J H  Pump Supply & Repair Ltd,NO
Http://opendatacommunities.org/id/metropolitan-district-council/leeds,Leeds City Council,31/03/2017,Environment & Housing,Leeds Building Services,Supplies and Services,Operational Materials,205,31-Mar-2017,1703-00119,0.00,9.62,R,A J H  Pump Supply & Repair Ltd,NO
Http://opendatacommunities.org/id/metropolitan-district-council/leeds,Leeds City Council,31/03/2017,Environment & Housing,Leeds Building Services,Supplies and Services,Operational Materials,205,31-Mar-2017,1703-00120,0.00,439.45,R,A J H  Pump Supply & Repair Ltd,NO
Http://opendatacommunities.org/id/metropolitan-district-council/leeds,Leeds City Council,31/03/2017,Environment & Housing,Leeds Building Services,Supplies and Services,Operational Materials,205,31-Mar-2017,1703-00121,0.00,32.22,R,A J H  Pump Supply & Repair Ltd,NO
Http://opendatacommunities.org/id/metropolitan-district-council/leeds,Leeds City Council,31/03/2017,Environment & Housing,Leeds Building Services,Supplies and Services,Operational Materials,205,31-Mar-2017,1703-00122,0.00,460.00,R,A J H  Pump Supply & Repair Ltd,NO
Http://opendatacommunities.org/id/metropolitan-district-council/leeds,Leeds City Council,31/03/2017,Environment & Housing,Leeds Building Services,Supplies and Services,Operational Materials,205,31-Mar-2017,1703-00123,0.00,144.90,R,A J H  Pump Supply & Repair Ltd,NO
Http://opendatacommunities.org/id/metropolitan-district-council/leeds,Leeds City Council,31/03/2017,Environment & Housing,Leeds Building Services,Supplies and Services,Operational Materials,205,31-Mar-2017,1703-00124,0.00,25.00,R,A J H  Pump Supply & Repair Ltd,NO
Http://opendatacommunities.org/id/metropolitan-district-council/leeds,Leeds City Council,31/03/2017,Environment & Housing,Leeds Building Services,Supplies and Services,Operational Materials,205,31-Mar-2017,1703-00125,0.00,172.20,R,A J H  Pump Supply & Repair Ltd,NO
Http://opendatacommunities.org/id/metropolitan-district-council/leeds,Leeds City Council,31/03/2017,Environment & Housing,Leeds Building Services,Supplies and Services,Operational Materials,205,31-Mar-2017,1703-00126,0.00,18.95,R,A J H  Pump Supply & Repair Ltd,NO
Http://opendatacommunities.org/id/metropolitan-district-council/leeds,Leeds City Council,31/03/2017,City Development,Libraries  Arts & Heritage,Supplies and Services,Art Galleries Total Stores,003,31-Mar-2017,1703-00127,0.00,969.84,R,A J Promotions,NO
Http://opendatacommunities.org/id/metropolitan-district-council/leeds,Leeds City Council,31/03/2017,Environment & Housing,Housing Leeds Service,Capital,Other Costs,7,30-Mar-2017,1703-00128,0.00,300.00,C,REDACTED PERSONAL DATA,NO
Http://opendatacommunities.org/id/metropolitan-district-council/leeds,Leeds City Council,31/03/2017,Childrens Services,Safeguarding Targeted & Specialist,Support Services,Legal Disbursements,411,23-Mar-2017,1703-00129,0.00,50.00,R,A Khan,NO
Http://opendatacommunities.org/id/metropolitan-district-council/leeds,Leeds City Council,31/03/2017,Public Health,Public Health,Supplies and Services,Other Hired And Contracted Services,265,24-Mar-2017,1703-00130,0.00,60.00,R,A Little Something Extra Ltd,NO
Http://opendatacommunities.org/id/metropolitan-district-council/leeds,Leeds City Council,31/03/2017,Childrens Services,Learning Skills & Universal,Third Party Payments,Services Rendered By Other Organisations,511,10-Mar-2017,1703-00131,0.00,298.76,R,A Longbottom,NO
Http://opendatacommunities.org/id/metropolitan-district-council/leeds,Leeds City Council,31/03/2017,City Development,Libraries  Arts & Heritage,Supplies and Services,Other Hired And Contracted Services,265,03-Mar-2017,1703-00132,0.00,10000.00,R,A M Miller/Euco,NO
Http://opendatacommunities.org/id/metropolitan-district-council/leeds,Leeds City Council,31/03/2017,Environment & Housing,Housing Leeds Service,Capital,Other Costs,7,09-Mar-2017,1703-00133,0.00,271.77,C,REDACTED PERSONAL DATA,NO
Http://opendatacommunities.org/id/metropolitan-district-council/leeds,Leeds City Council,31/03/2017,Citizens and Communities,Communities,Supplies and Services,Bought In Professional Services,277,03-Mar-2017,1703-00134,0.00,120.50,R,A Mohammed,NO
Http://opendatacommunities.org/id/metropolitan-district-council/leeds,Leeds City Council,31/03/2017,Citizens and Communities,Customer Access,Supplies and Services,Other Hired And Contracted Services,265,03-Mar-2017,1703-00135,0.00,611.50,R,A Mohammed,NO
Http://opendatacommunities.org/id/metropolitan-district-council/leeds,Leeds City Council,31/03/2017,Citizens and Communities,Customer Access,Supplies and Services,Other Hired And Contracted Services,265,02-Mar-2017,1703-00136,0.00,52.75,R,A Musalam,NO
Http://opendatacommunities.org/id/metropolitan-district-council/leeds,Leeds City Council,31/03/2017,Citizens and Communities,Customer Access,Supplies and Services,Other Hired And Contracted Services,265,03-Mar-2017,1703-00137,0.00,207.50,R,A Namaki,NO
Http://opendatacommunities.org/id/metropolitan-district-council/leeds,Leeds City Council,31/03/2017,Central & Corporate,Human Resources,Employees,Occupational Health,85,06-Mar-2017,1703-00138,0.00,50.00,R,A Robinson & Partners,NO
Http://opendatacommunities.org/id/metropolitan-district-council/leeds,Leeds City Council,31/03/2017,Environment & Housing,Housing Leeds Service,Capital,Other Costs,7,16-Mar-2017,1703-00139,0.00,250.00,C,REDACTED PERSONAL DATA,NO
Http://opendatacommunities.org/id/metropolitan-district-council/leeds,Leeds City Council,31/03/2017,Civic Enterprise Leeds,Shared Services,Supplies and Services,Other Hired And Contracted Services,265,03-Mar-2017,1703-00140,0.00,46.25,R,A Star Couriers Ltd,NO
Http://opendatacommunities.org/id/metropolitan-district-council/leeds,Leeds City Council,31/03/2017,Environment & Housing,Waste Management,Employees,Central Training,79,01-Mar-2017,1703-00141,0.00,1030.50,R,A T Nerac Ltd,NO
Http://opendatacommunities.org/id/metropolitan-district-council/leeds,Leeds City Council,31/03/2017,Environment & Housing,Waste Management,Employees,Central Training,79,01-Mar-2017,1703-00142,0.00,381.00,R,A T Nerac Ltd,NO
Http://opendatacommunities.org/id/metropolitan-district-council/leeds,Leeds City Council,31/03/2017,Environment & Housing,Waste Management,Employees,Central Training,79,03-Mar-2017,1703-00143,0.00,844.40,R,A T Nerac Ltd,NO
Http://opendatacommunities.org/id/metropolitan-district-council/leeds,Leeds City Council,31/03/2017,Environment & Housing,Parks and Countryside,Supplies and Services,Other Hired And Contracted Services,265,23-Mar-2017,1703-00144,0.00,3440.00,R,A W  Jenkinson Forest Products,NO
Http://opendatacommunities.org/id/metropolitan-district-council/leeds,Leeds City Council,31/03/2017,Childrens Services,Learning Skills & Universal,Third Party Payments,Services Rendered By Other Organisations,511,17-Mar-2017,1703-00145,0.00,401.28,R,A Walding,NO
Http://opendatacommunities.org/id/metropolitan-district-council/leeds,Leeds City Council,31/03/2017,Environment & Housing,Housing Leeds Service,Capital,Other Costs,7,30-Mar-2017,1703-00146,0.00,100.00,C,REDACTED PERSONAL DATA,NO
Http://opendatacommunities.org/id/metropolitan-district-council/leeds,Leeds City Council,31/03/2017,Environment & Housing,Waste Management,Capital,Furniture And Equipment,5,06-Mar-2017,1703-00147,0.00,580.00,C,A&C Weber Uk Ltd,NO
Http://opendatacommunities.org/id/metropolitan-district-council/leeds,Leeds City Council,31/03/2017,Environment & Housing,Waste Management,Capital,Furniture And Equipment,5,07-Mar-2017,1703-00148,0.00,10203.00,C,A&C Weber Uk Ltd,NO
Http://opendatacommunities.org/id/metropolitan-district-council/leeds,Leeds City Council,31/03/2017,Environment & Housing,Waste Management,Capital,Furniture And Equipment,5,15-Mar-2017,1703-00149,0.00,5915.30,C,A&C Weber Uk Ltd,NO
Http://opendatacommunities.org/id/metropolitan-district-council/leeds,Leeds City Council,31/03/2017,Environment & Housing,Waste Management,Capital,Furniture And Equipment,5,31-Mar-2017,1703-00150,0.00,10412.80,C,A&C Weber Uk Ltd,NO
Http://opendatacommunities.org/id/metropolitan-district-council/leeds,Leeds City Council,31/03/2017,Strategic Landlord,Property and Contracts,Employees,Training & Development,70,10-Mar-2017,1703-00151,0.00,410.00,R,Aaa Training Co Ltd,NO
Http://opendatacommunities.org/id/metropolitan-district-council/leeds,Leeds City Council,31/03/2017,City Development,Recreation ,Supplies and Services,Operational Furniture And Equipment,203,20-Feb-2017,1703-00152,0.00,142.35,R,Aal Ltd,YES
Http://opendatacommunities.org/id/metropolitan-district-council/leeds,Leeds City Council,31/03/2017,Environment & Housing,Leeds Building Services,Supplies and Services,Operational Materials,205,28-Mar-2017,1703-00153,0.00,180.00,R,Aalco Leeds,NO
Http://opendatacommunities.org/id/metropolitan-district-council/leeds,Leeds City Council,31/03/2017,Childrens Services,Learning Skills & Universal ,Supplies and Services,Operational Materials,205,01-Feb-2017,1703-00154,0.00,95.00,R,Aardvark Archery,YES
Http://opendatacommunities.org/id/metropolitan-district-council/leeds,Leeds City Council as Accountable Body,31/03/2017,Social Services Pooled Budgets,Leeds Community Equip Store Pooled Budgt,Supplies and Services,Other Equipment,203,03-Mar-2017,1703-00155,0.00,804.00,R,Aat (Gb) Ltd,NO
Http://opendatacommunities.org/id/metropolitan-district-council/leeds,Leeds City Council as Accountable Body,31/03/2017,Social Services Pooled Budgets,Leeds Community Equip Store Pooled Budgt,Supplies and Services,Other Equipment,203,17-Mar-2017,1703-00156,0.00,1059.00,R,Aat (Gb) Ltd,NO
Http://opendatacommunities.org/id/metropolitan-district-council/leeds,Leeds City Council as Accountable Body,31/03/2017,Social Services Pooled Budgets,Leeds Community Equip Store Pooled Budgt,Supplies and Services,Other Equipment,203,24-Mar-2017,1703-00157,0.00,614.00,R,Aat (Gb) Ltd,NO
Http://opendatacommunities.org/id/metropolitan-district-council/leeds,Leeds City Council,31/03/2017,Childrens Services,Safeguarding Targeted & Specialist,Support Services,Legal Disbursements,411,09-Mar-2017,1703-00158,0.00,31.02,R,Abacus Express Limited,NO
Http://opendatacommunities.org/id/metropolitan-district-council/leeds,Leeds City Council,31/03/2017,Childrens Services,Safeguarding Targeted & Specialist,Support Services,Legal Disbursements,411,09-Mar-2017,1703-00159,0.00,31.02,R,Abacus Express Limited,NO
Http://opendatacommunities.org/id/metropolitan-district-council/leeds,Leeds City Council,31/03/2017,Childrens Services,Safeguarding Targeted & Specialist,Support Services,Legal Disbursements,411,09-Mar-2017,1703-00160,0.00,31.02,R,Abacus Express Limited,NO
Http://opendatacommunities.org/id/metropolitan-district-council/leeds,Leeds City Council,31/03/2017,Childrens Services,Safeguarding Targeted & Specialist,Support Services,Legal Disbursements,411,09-Mar-2017,1703-00161,0.00,31.02,R,Abacus Express Limited,NO
Http://opendatacommunities.org/id/metropolitan-district-council/leeds,Leeds City Council,31/03/2017,Strategic Landlord,Strategic,Support Services,Legal Disbursements,411,09-Mar-2017,1703-00162,0.00,15.59,R,Abacus Express Limited,NO
Http://opendatacommunities.org/id/metropolitan-district-council/leeds,Leeds City Council,31/03/2017,Childrens Services,Safeguarding Targeted & Specialist,Support Services,Legal Disbursements,411,17-Mar-2017,1703-00163,0.00,31.02,R,Abacus Express Limited,NO
Http://opendatacommunities.org/id/metropolitan-district-council/leeds,Leeds City Council,31/03/2017,City Development,Highways,Supplies and Services,Postages,212,21-Mar-2017,1703-00164,0.00,31.18,R,Abacus Express Limited,NO
Http://opendatacommunities.org/id/metropolitan-district-council/leeds,Leeds City Council,31/03/2017,Childrens Services,Safeguarding Targeted & Specialist,Support Services,Legal Disbursements,411,23-Mar-2017,1703-00165,0.00,18.28,R,Abacus Express Limited,NO
Http://opendatacommunities.org/id/metropolitan-district-council/leeds,Leeds City Council,31/03/2017,Childrens Services,Partnerships,Support Services,Legal Disbursements,411,23-Mar-2017,1703-00166,0.00,15.59,R,Abacus Express Limited,NO
Http://opendatacommunities.org/id/metropolitan-district-council/leeds,Leeds City Council,31/03/2017,Childrens Services,Safeguarding Targeted & Specialist,Support Services,Legal Disbursements,411,23-Mar-2017,1703-00167,0.00,17.20,R,Abacus Express Limited,NO
Http://opendatacommunities.org/id/metropolitan-district-council/leeds,Leeds City Council,31/03/2017,Childrens Services,Safeguarding Targeted & Specialist,Support Services,Legal Disbursements,411,23-Mar-2017,1703-00168,0.00,15.59,R,Abacus Express Limited,NO
Http://opendatacommunities.org/id/metropolitan-district-council/leeds,Leeds City Council,31/03/2017,Childrens Services,Safeguarding Targeted & Specialist,Support Services,Legal Disbursements,411,31-Mar-2017,1703-00169,0.00,31.02,R,Abacus Express Limited,NO
Http://opendatacommunities.org/id/metropolitan-district-council/leeds,Leeds City Council,31/03/2017,Childrens Services,Safeguarding Targeted & Specialist,Support Services,Legal Disbursements,411,31-Mar-2017,1703-00170,0.00,32.09,R,Abacus Express Limited,NO
Http://opendatacommunities.org/id/metropolitan-district-council/leeds,Leeds City Council,31/03/2017,Childrens Services,Safeguarding Targeted & Specialist,Support Services,Legal Disbursements,411,31-Mar-2017,1703-00171,0.00,31.02,R,Abacus Express Limited,NO
Http://opendatacommunities.org/id/metropolitan-district-council/leeds,Leeds City Council,31/03/2017,Childrens Services,Safeguarding Targeted & Specialist,Support Services,Legal Disbursements,411,31-Mar-2017,1703-00172,0.00,31.02,R,Abacus Express Limited,NO
Http://opendatacommunities.org/id/metropolitan-district-council/leeds,Leeds City Council,31/03/2017,Childrens Services,Safeguarding Targeted & Specialist,Support Services,Legal Disbursements,411,31-Mar-2017,1703-00173,0.00,15.59,R,Abacus Express Limited,NO
Http://opendatacommunities.org/id/metropolitan-district-council/leeds,Leeds City Council,31/03/2017,Childrens Services,Safeguarding Targeted & Specialist,Support Services,Legal Disbursements,411,31-Mar-2017,1703-00174,0.00,15.59,R,Abacus Express Limited,NO
Http://opendatacommunities.org/id/metropolitan-district-council/leeds,Leeds City Council,31/03/2017,Childrens Services,Safeguarding Targeted & Specialist,Support Services,Legal Disbursements,411,31-Mar-2017,1703-00175,0.00,15.59,R,Abacus Express Limited,NO
Http://opendatacommunities.org/id/metropolitan-district-council/leeds,Leeds City Council,31/03/2017,City Development,Planning & Sustainable Development,Supplies and Services,Other Hired And Contracted Services,265,31-Mar-2017,1703-00176,0.00,15.59,R,Abacus Express Limited,NO
Http://opendatacommunities.org/id/metropolitan-district-council/leeds,Leeds City Council,31/03/2017,City Development,Planning & Sustainable Development,Supplies and Services,Other Hired And Contracted Services,265,31-Mar-2017,1703-00177,0.00,15.59,R,Abacus Express Limited,NO
Http://opendatacommunities.org/id/metropolitan-district-council/leeds,Leeds City Council,31/03/2017,City Development,Planning & Sustainable Development,Supplies and Services,Other Hired And Contracted Services,265,31-Mar-2017,1703-00178,0.00,15.59,R,Abacus Express Limited,NO
Http://opendatacommunities.org/id/metropolitan-district-council/leeds,Leeds City Council,31/03/2017,Civic Enterprise Leeds,Shared Services,Supplies and Services,Computer Software & Equipment,214,30-Mar-2017,1703-00179,0.00,7950.00,R,Abacus Software Ltd,NO
Http://opendatacommunities.org/id/metropolitan-district-council/leeds,Leeds City Council,31/03/2017,Adult Social Care,Services For Older People - 65 And Over,Third Party Payments,Nursing Care Dementia,574,08-Mar-2017,1703-00180,0.00,1556.00,R,Abbendon Nursing Home,NO
Http://opendatacommunities.org/id/metropolitan-district-council/leeds,Leeds City Council,31/03/2017,City Development,Libraries  Arts & Heritage ,Supplies and Services,Food & Drink,231,01-Feb-2017,1703-00181,0.00,5.13,R,Abbey House Museum Caf,YES
Http://opendatacommunities.org/id/metropolitan-district-council/leeds,Leeds City Council,31/03/2017,City Development,Libraries  Arts & Heritage ,Supplies and Services,Food & Drink,231,02-Feb-2017,1703-00182,0.00,3.71,R,Abbey House Museum Caf,YES
Http://opendatacommunities.org/id/metropolitan-district-council/leeds,Leeds City Council,31/03/2017,City Development,Libraries  Arts & Heritage ,Supplies and Services,Food & Drink,231,02-Feb-2017,1703-00183,0.00,28.42,R,Abbey House Museum Caf,YES
Http://opendatacommunities.org/id/metropolitan-district-council/leeds,Leeds City Council,31/03/2017,Adult Social Care,Services For Older People - 65 And Over,Third Party Payments,Home Care,568,08-Mar-2017,1703-00184,0.00,194.06,R,Abbeyfield The Dales Limited,NO
Http://opendatacommunities.org/id/metropolitan-district-council/leeds,Leeds City Council,31/03/2017,Childrens Services,Learning Skills & Universal,Third Party Payments,Services Rendered By Other Organisations,511,10-Mar-2017,1703-00185,0.00,2134.00,R,Abc Daycare And Ozone Out Of School,NO
Http://opendatacommunities.org/id/metropolitan-district-council/leeds,Leeds City Council,31/03/2017,Childrens Services,Learning Skills & Universal,Third Party Payments,Services Rendered By Other Organisations,511,17-Mar-2017,1703-00186,0.00,2656.20,R,Abc Daycare And Ozone Out Of School,NO
Http://opendatacommunities.org/id/metropolitan-district-council/leeds,Leeds City Council,31/03/2017,Childrens Services,Learning Skills & Universal,Third Party Payments,Services Rendered By Other Organisations,511,17-Mar-2017,1703-00187,0.00,111.30,R,Abc Daycare And Ozone Out Of School,NO
Http://opendatacommunities.org/id/metropolitan-district-council/leeds,Leeds City Council,31/03/2017,Childrens Services,Learning Skills & Universal,Third Party Payments,Services Rendered By Other Organisations,511,10-Mar-2017,1703-00188,0.00,2240.70,R,Abc Nursery At Lufc,NO
Http://opendatacommunities.org/id/metropolitan-district-council/leeds,Leeds City Council,31/03/2017,Childrens Services,Learning Skills & Universal,Third Party Payments,Services Rendered By Other Organisations,511,17-Mar-2017,1703-00189,0.00,2720.85,R,Abc Nursery At Lufc,NO
Http://opendatacommunities.org/id/metropolitan-district-council/leeds,Leeds City Council,31/03/2017,Childrens Services,Learning Skills & Universal,Third Party Payments,Services Rendered By Other Organisations,511,17-Mar-2017,1703-00190,0.00,262.35,R,Abc Nursery At Lufc,NO
Http://opendatacommunities.org/id/metropolitan-district-council/leeds,Leeds City Council,31/03/2017,Childrens Services,Learning Skills & Universal,Third Party Payments,Services Rendered By Other Organisations,511,10-Mar-2017,1703-00191,0.00,2507.45,R,Abc@D'S Childcare Services,NO
Http://opendatacommunities.org/id/metropolitan-district-council/leeds,Leeds City Council,31/03/2017,Childrens Services,Learning Skills & Universal,Third Party Payments,Services Rendered By Other Organisations,511,17-Mar-2017,1703-00192,0.00,1278.62,R,Abc@D'S Childcare Services,NO
Http://opendatacommunities.org/id/metropolitan-district-council/leeds,Leeds City Council,31/03/2017,Citizens and Communities,Elections  Licensing and Registration,Income,Admissions  Booking Fees & Ticket Sales,933,09-Mar-2017,1703-00193,0.00,175.00,R,REDACTED PERSONAL DATA,NO
Http://opendatacommunities.org/id/metropolitan-district-council/leeds,Leeds City Council,31/03/2017,Citizens and Communities,Customer Access,Supplies and Services,Other Hired And Contracted Services,265,03-Mar-2017,1703-00194,0.00,53.75,R,Abdur Rahman Khan,NO
Http://opendatacommunities.org/id/metropolitan-district-council/leeds,Leeds City Council,31/03/2017,Adult Social Care,Services For Older People - 65 And Over,Third Party Payments,Nursing Home,570,08-Mar-2017,1703-00195,0.00,20160.49,R,Aberford Hall,NO
Http://opendatacommunities.org/id/metropolitan-district-council/leeds,Leeds City Council,31/03/2017,Adult Social Care,Services For Older People - 65 And Over,Third Party Payments,Nursing Care Dementia,574,08-Mar-2017,1703-00196,0.00,1501.20,R,Aberford Hall,NO
Http://opendatacommunities.org/id/metropolitan-district-council/leeds,Leeds City Council,31/03/2017,Adult Social Care,Services For Older People - 65 And Over,Third Party Payments,Residential,580,08-Mar-2017,1703-00197,0.00,828.67,R,Aberford Hall,NO
Http://opendatacommunities.org/id/metropolitan-district-council/leeds,Leeds City Council,31/03/2017,Environment & Housing,Leeds Building Services,Supplies and Services,Operational Materials,205,21-Mar-2017,1703-00198,0.00,15.00,R,Abi Garage Doors Ltd,NO
Http://opendatacommunities.org/id/metropolitan-district-council/leeds,Leeds City Council,31/03/2017,Environment & Housing,Leeds Building Services,Supplies and Services,Operational Materials,205,24-Mar-2017,1703-00199,0.00,225.00,R,Abi Garage Doors Ltd,NO
Http://opendatacommunities.org/id/metropolitan-district-council/leeds,Leeds City Council,31/03/2017,Environment & Housing,Leeds Building Services,Supplies and Services,Operational Materials,205,31-Mar-2017,1703-00200,0.00,225.00,R,Abi Garage Doors Ltd,NO
Http://opendatacommunities.org/id/metropolitan-district-council/leeds,Leeds City Council,31/03/2017,Citizens and Communities,Elections  Licensing and Registration,Income,Admissions  Booking Fees & Ticket Sales,933,16-Mar-2017,1703-00201,0.00,60.00,R,REDACTED PERSONAL DATA,NO
Http://opendatacommunities.org/id/metropolitan-district-council/leeds,Leeds City Council,31/03/2017,Adult Social Care,Services For Older People Under 65 P/Dis,Third Party Payments,Residential,580,24-Mar-2017,1703-00202,0.00,1542.00,R,Able Community Care Ltd,NO
Http://opendatacommunities.org/id/metropolitan-district-council/leeds,Leeds City Council,31/03/2017,City Development,Economic Development,Supplies and Services,Publication And Promotion,267,20-Mar-2017,1703-00203,0.00,440.00,R,Absolute Media Ltd,NO
Http://opendatacommunities.org/id/metropolitan-district-council/leeds,Leeds City Council,31/03/2017,Childrens Services,Learning Skills & Universal ,Supplies and Services,Books & Audio-Visual Materials,206,03-Feb-2017,1703-00204,0.00,38.95,R,Absorbentmi,YES
Http://opendatacommunities.org/id/metropolitan-district-council/leeds,Leeds City Council,31/03/2017,Environment & Housing,Parks and Countryside,Supplies and Services,Operational Materials,205,31-Mar-2017,1703-00205,0.00,1078.00,R,Abtac Limited,NO
Http://opendatacommunities.org/id/metropolitan-district-council/leeds,Leeds City Council,31/03/2017,Childrens Services,Safeguarding Targeted & Specialist ,Transfer Payments,Leaving Care Allowances,634,09-Feb-2017,1703-00206,0.00,29.06,R,Abu Bakar Ltd,YES
Http://opendatacommunities.org/id/metropolitan-district-council/leeds,Leeds City Council,31/03/2017,Childrens Services,Safeguarding Targeted & Specialist,Employees,Agency Staff,8,02-Mar-2017,1703-00207,0.00,2133.70,R,Academic Appointments Ltd,NO
Http://opendatacommunities.org/id/metropolitan-district-council/leeds,Leeds City Council,31/03/2017,Childrens Services,Safeguarding Targeted & Specialist,Employees,Agency Staff,8,03-Mar-2017,1703-00208,0.00,1180.43,R,Academic Appointments Ltd,NO
Http://opendatacommunities.org/id/metropolitan-district-council/leeds,Leeds City Council,31/03/2017,Childrens Services,Safeguarding Targeted & Specialist,Employees,Agency Staff,8,09-Mar-2017,1703-00209,0.00,1893.70,R,Academic Appointments Ltd,NO
Http://opendatacommunities.org/id/metropolitan-district-council/leeds,Leeds City Council,31/03/2017,Childrens Services,Safeguarding Targeted & Specialist,Employees,Agency Staff,8,17-Mar-2017,1703-00210,0.00,1893.70,R,Academic Appointments Ltd,NO
Http://opendatacommunities.org/id/metropolitan-district-council/leeds,Leeds City Council,31/03/2017,Childrens Services,Safeguarding Targeted & Specialist,Employees,Agency Staff,8,30-Mar-2017,1703-00211,0.00,1893.70,R,Academic Appointments Ltd,NO
Http://opendatacommunities.org/id/metropolitan-district-council/leeds,Leeds City Council,31/03/2017,Environment & Housing,Community Safety,Transport,Hire Of Movable Plant & Machinery,315,01-Mar-2017,1703-00212,0.00,1350.71,R,Access Hire Nationwide Ltd,NO
Http://opendatacommunities.org/id/metropolitan-district-council/leeds,Leeds City Council,31/03/2017,Environment & Housing,Community Safety,Supplies and Services,Operational Materials,205,06-Mar-2017,1703-00213,0.00,179.58,R,Access Hire Nationwide Ltd,NO
Http://opendatacommunities.org/id/metropolitan-district-council/leeds,Leeds City Council,31/03/2017,Environment & Housing,Community Safety,Supplies and Services,Operational Materials,205,29-Mar-2017,1703-00214,0.00,-179.58,R,Access Hire Nationwide Ltd,NO
Http://opendatacommunities.org/id/metropolitan-district-council/leeds,Leeds City Council,31/03/2017,Environment & Housing,Community Safety,Supplies and Services,Operational Materials,205,29-Mar-2017,1703-00215,0.00,1220.00,R,Access Hire Nationwide Ltd,NO
Http://opendatacommunities.org/id/metropolitan-district-council/leeds,Leeds City Council,31/03/2017,Environment & Housing,Parks And Countryside ,Supplies and Services,Operational Materials,205,24-Feb-2017,1703-00216,0.00,18.80,R,Access Locksmiths,YES
Http://opendatacommunities.org/id/metropolitan-district-council/leeds,Leeds City Council,31/03/2017,Civic Enterprise Leeds,Commercial Services ,Supplies and Services,Operational Materials,205,27-Feb-2017,1703-00217,0.00,366.20,R,Access Locksmiths,YES
Http://opendatacommunities.org/id/metropolitan-district-council/leeds,Leeds City Council,31/03/2017,Environment & Housing,Leeds Building Services,Supplies and Services,Operational Furniture And Equipment,203,03-Mar-2017,1703-00218,0.00,108.00,R,Access Locksmiths (Leeds) Limited,NO
Http://opendatacommunities.org/id/metropolitan-district-council/leeds,Leeds City Council,31/03/2017,Strategic Landlord,Property and Contracts,Premises,General Maintenance,104,03-Mar-2017,1703-00219,0.00,306.08,R,Access Locksmiths (Leeds) Limited,NO
Http://opendatacommunities.org/id/metropolitan-district-council/leeds,Leeds City Council,31/03/2017,Environment & Housing,Leeds Building Services,Supplies and Services,Operational Materials,205,03-Mar-2017,1703-00220,0.00,81.14,R,Access Locksmiths (Leeds) Limited,NO
Http://opendatacommunities.org/id/metropolitan-district-council/leeds,Leeds City Council,31/03/2017,Environment & Housing,Leeds Building Services,Supplies and Services,Operational Materials,205,03-Mar-2017,1703-00221,0.00,15.00,R,Access Locksmiths (Leeds) Limited,NO
Http://opendatacommunities.org/id/metropolitan-district-council/leeds,Leeds City Council,31/03/2017,Environment & Housing,Leeds Building Services,Supplies and Services,Operational Materials,205,03-Mar-2017,1703-00222,0.00,95.60,R,Access Locksmiths (Leeds) Limited,NO
Http://opendatacommunities.org/id/metropolitan-district-council/leeds,Leeds City Council,31/03/2017,Environment & Housing,Leeds Building Services,Supplies and Services,Operational Furniture And Equipment,203,03-Mar-2017,1703-00223,0.00,94.25,R,Access Locksmiths (Leeds) Limited,NO
Http://opendatacommunities.org/id/metropolitan-district-council/leeds,Leeds City Council,31/03/2017,Strategic Landlord,Housing Management,Supplies and Services,Operational Furniture And Equipment,203,03-Mar-2017,1703-00224,0.00,84.00,R,Access Locksmiths (Leeds) Limited,NO
Http://opendatacommunities.org/id/metropolitan-district-council/leeds,Leeds City Council,31/03/2017,Strategic Landlord,Property and Contracts,Premises,General Maintenance,104,03-Mar-2017,1703-00225,0.00,102.50,R,Access Locksmiths (Leeds) Limited,NO
Http://opendatacommunities.org/id/metropolitan-district-council/leeds,Leeds City Council,31/03/2017,Strategic Landlord,Housing Management,Premises,General Maintenance,104,03-Mar-2017,1703-00226,0.00,68.40,R,Access Locksmiths (Leeds) Limited,NO
Http://opendatacommunities.org/id/metropolitan-district-council/leeds,Leeds City Council,31/03/2017,Strategic Landlord,Housing Management,Premises,General Maintenance,104,03-Mar-2017,1703-00227,0.00,114.00,R,Access Locksmiths (Leeds) Limited,NO
Http://opendatacommunities.org/id/metropolitan-district-council/leeds,Leeds City Council,31/03/2017,Environment & Housing,Environmental Action (East North East),Supplies and Services,Operational Furniture And Equipment,203,03-Mar-2017,1703-00228,0.00,5.00,R,Access Locksmiths (Leeds) Limited,NO
Http://opendatacommunities.org/id/metropolitan-district-council/leeds,Leeds City Council,31/03/2017,Strategic Landlord,Property and Contracts,Premises,General Maintenance,104,03-Mar-2017,1703-00229,0.00,228.00,R,Access Locksmiths (Leeds) Limited,NO
Http://opendatacommunities.org/id/metropolitan-district-council/leeds,Leeds City Council,31/03/2017,Strategic Landlord,Housing Management,Supplies and Services,Operational Materials,205,03-Mar-2017,1703-00230,0.00,9.00,R,Access Locksmiths (Leeds) Limited,NO
Http://opendatacommunities.org/id/metropolitan-district-council/leeds,Leeds City Council,31/03/2017,Environment & Housing,Leeds Building Services,Supplies and Services,Other Hired And Contracted Services,265,03-Mar-2017,1703-00231,0.00,45.60,R,Access Locksmiths (Leeds) Limited,NO
Http://opendatacommunities.org/id/metropolitan-district-council/leeds,Leeds City Council,31/03/2017,Strategic Landlord,Property and Contracts,Premises,General Maintenance,104,10-Mar-2017,1703-00232,0.00,415.23,R,Access Locksmiths (Leeds) Limited,NO
Http://opendatacommunities.org/id/metropolitan-district-council/leeds,Leeds City Council,31/03/2017,Strategic Landlord,Property and Contracts,Premises,General Maintenance,104,10-Mar-2017,1703-00233,0.00,123.56,R,Access Locksmiths (Leeds) Limited,NO
Http://opendatacommunities.org/id/metropolitan-district-council/leeds,Leeds City Council,31/03/2017,Strategic Landlord,Property and Contracts,Premises,General Maintenance,104,10-Mar-2017,1703-00234,0.00,110.14,R,Access Locksmiths (Leeds) Limited,NO
Http://opendatacommunities.org/id/metropolitan-district-council/leeds,Leeds City Council,31/03/2017,Environment & Housing,Leeds Building Services,Supplies and Services,Operational Materials,205,17-Mar-2017,1703-00235,0.00,400.00,R,Access Locksmiths (Leeds) Limited,NO
Http://opendatacommunities.org/id/metropolitan-district-council/leeds,Leeds City Council,31/03/2017,Environment & Housing,Leeds Building Services,Supplies and Services,Operational Materials,205,17-Mar-2017,1703-00236,0.00,30.55,R,Access Locksmiths (Leeds) Limited,NO
Http://opendatacommunities.org/id/metropolitan-district-council/leeds,Leeds City Council,31/03/2017,Environment & Housing,Leeds Building Services,Supplies and Services,Operational Materials,205,17-Mar-2017,1703-00237,0.00,27.22,R,Access Locksmiths (Leeds) Limited,NO
Http://opendatacommunities.org/id/metropolitan-district-council/leeds,Leeds City Council,31/03/2017,Environment & Housing,Leeds Building Services,Supplies and Services,Operational Materials,205,17-Mar-2017,1703-00238,0.00,10.40,R,Access Locksmiths (Leeds) Limited,NO
Http://opendatacommunities.org/id/metropolitan-district-council/leeds,Leeds City Council,31/03/2017,Environment & Housing,Leeds Building Services,Supplies and Services,Operational Materials,205,17-Mar-2017,1703-00239,0.00,39.14,R,Access Locksmiths (Leeds) Limited,NO
Http://opendatacommunities.org/id/metropolitan-district-council/leeds,Leeds City Council,31/03/2017,Environment & Housing,Leeds Building Services,Supplies and Services,Operational Materials,205,17-Mar-2017,1703-00240,0.00,35.79,R,Access Locksmiths (Leeds) Limited,NO
Http://opendatacommunities.org/id/metropolitan-district-council/leeds,Leeds City Council,31/03/2017,Environment & Housing,Leeds Building Services,Supplies and Services,Operational Materials,205,17-Mar-2017,1703-00241,0.00,15.48,R,Access Locksmiths (Leeds) Limited,NO
Http://opendatacommunities.org/id/metropolitan-district-council/leeds,Leeds City Council,31/03/2017,Strategic Landlord,Housing Management,Supplies and Services,Operational Materials,205,20-Mar-2017,1703-00242,0.00,76.00,R,Access Locksmiths (Leeds) Limited,NO
Http://opendatacommunities.org/id/metropolitan-district-council/leeds,Leeds City Council,31/03/2017,Strategic Landlord,Housing Management,Premises,HRA Responsive Repairs,106,20-Mar-2017,1703-00243,0.00,15.00,R,Access Locksmiths (Leeds) Limited,NO
Http://opendatacommunities.org/id/metropolitan-district-council/leeds,Leeds City Council,31/03/2017,Environment & Housing,Environmental Action (East North East),Supplies and Services,Operational Furniture And Equipment,203,24-Mar-2017,1703-00244,0.00,121.66,R,Access Locksmiths (Leeds) Limited,NO
Http://opendatacommunities.org/id/metropolitan-district-council/leeds,Leeds City Council,31/03/2017,Strategic Landlord,Property and Contracts,Premises,General Maintenance,104,24-Mar-2017,1703-00245,0.00,68.40,R,Access Locksmiths (Leeds) Limited,NO
Http://opendatacommunities.org/id/metropolitan-district-council/leeds,Leeds City Council,31/03/2017,Strategic Landlord,Housing Management,Premises,General Maintenance,104,24-Mar-2017,1703-00246,0.00,114.00,R,Access Locksmiths (Leeds) Limited,NO
Http://opendatacommunities.org/id/metropolitan-district-council/leeds,Leeds City Council,31/03/2017,Strategic Landlord,Housing Management,Premises,General Maintenance,104,24-Mar-2017,1703-00247,0.00,33.80,R,Access Locksmiths (Leeds) Limited,NO
Http://opendatacommunities.org/id/metropolitan-district-council/leeds,Leeds City Council,31/03/2017,Strategic Landlord,Housing Management,Premises,General Maintenance,104,24-Mar-2017,1703-00248,0.00,136.80,R,Access Locksmiths (Leeds) Limited,NO
Http://opendatacommunities.org/id/metropolitan-district-council/leeds,Leeds City Council,31/03/2017,Environment & Housing,Waste Management,Supplies and Services,Operational Furniture And Equipment,203,24-Mar-2017,1703-00249,0.00,100.90,R,Access Locksmiths (Leeds) Limited,NO
Http://opendatacommunities.org/id/metropolitan-district-council/leeds,Leeds City Council,31/03/2017,Environment & Housing,Leeds Building Services,Supplies and Services,Operational Materials,205,24-Mar-2017,1703-00250,0.00,37.20,R,Access Locksmiths (Leeds) Limited,NO
Http://opendatacommunities.org/id/metropolitan-district-council/leeds,Leeds City Council,31/03/2017,Environment & Housing,Leeds Building Services,Supplies and Services,Operational Materials,205,24-Mar-2017,1703-00251,0.00,207.22,R,Access Locksmiths (Leeds) Limited,NO
Http://opendatacommunities.org/id/metropolitan-district-council/leeds,Leeds City Council,31/03/2017,Environment & Housing,Leeds Building Services,Supplies and Services,Operational Materials,205,24-Mar-2017,1703-00252,0.00,41.32,R,Access Locksmiths (Leeds) Limited,NO
Http://opendatacommunities.org/id/metropolitan-district-council/leeds,Leeds City Council,31/03/2017,Environment & Housing,Leeds Building Services,Supplies and Services,Operational Materials,205,24-Mar-2017,1703-00253,0.00,19.61,R,Access Locksmiths (Leeds) Limited,NO
Http://opendatacommunities.org/id/metropolitan-district-council/leeds,Leeds City Council,31/03/2017,Environment & Housing,Leeds Building Services,Supplies and Services,Operational Materials,205,24-Mar-2017,1703-00254,0.00,13.13,R,Access Locksmiths (Leeds) Limited,NO
Http://opendatacommunities.org/id/metropolitan-district-council/leeds,Leeds City Council,31/03/2017,Environment & Housing,Leeds Building Services,Supplies and Services,Operational Materials,205,24-Mar-2017,1703-00255,0.00,22.60,R,Access Locksmiths (Leeds) Limited,NO
Http://opendatacommunities.org/id/metropolitan-district-council/leeds,Leeds City Council,31/03/2017,Environment & Housing,Leeds Building Services,Supplies and Services,Operational Materials,205,24-Mar-2017,1703-00256,0.00,34.38,R,Access Locksmiths (Leeds) Limited,NO
Http://opendatacommunities.org/id/metropolitan-district-council/leeds,Leeds City Council,31/03/2017,Strategic Landlord,Property and Contracts,Premises,General Maintenance,104,30-Mar-2017,1703-00257,0.00,765.20,R,Access Locksmiths (Leeds) Limited,NO
Http://opendatacommunities.org/id/metropolitan-district-council/leeds,Leeds City Council,31/03/2017,Strategic Landlord,Property and Contracts,Premises,General Maintenance,104,30-Mar-2017,1703-00258,0.00,237.22,R,Access Locksmiths (Leeds) Limited,NO
Http://opendatacommunities.org/id/metropolitan-district-council/leeds,Leeds City Council,31/03/2017,Strategic Landlord,Property and Contracts,Premises,General Maintenance,104,31-Mar-2017,1703-00259,0.00,25.00,R,Access Locksmiths (Leeds) Limited,NO
Http://opendatacommunities.org/id/metropolitan-district-council/leeds,Leeds City Council,31/03/2017,Environment & Housing,Leeds Building Services,Supplies and Services,Operational Materials,205,31-Mar-2017,1703-00260,0.00,29.08,R,Access Locksmiths (Leeds) Limited,NO
Http://opendatacommunities.org/id/metropolitan-district-council/leeds,Leeds City Council,31/03/2017,Environment & Housing,Leeds Building Services,Supplies and Services,Operational Materials,205,31-Mar-2017,1703-00261,0.00,48.03,R,Access Locksmiths (Leeds) Limited,NO
Http://opendatacommunities.org/id/metropolitan-district-council/leeds,Leeds City Council,31/03/2017,Environment & Housing,Leeds Building Services,Supplies and Services,Operational Materials,205,31-Mar-2017,1703-00262,0.00,12.69,R,Access Locksmiths (Leeds) Limited,NO
Http://opendatacommunities.org/id/metropolitan-district-council/leeds,Leeds City Council,31/03/2017,Environment & Housing,Leeds Building Services,Supplies and Services,Operational Materials,205,31-Mar-2017,1703-00263,0.00,16.83,R,Access Locksmiths (Leeds) Limited,NO
Http://opendatacommunities.org/id/metropolitan-district-council/leeds,Leeds City Council,31/03/2017,Environment & Housing,Leeds Building Services,Supplies and Services,Operational Furniture And Equipment,203,31-Mar-2017,1703-00264,0.00,12.50,R,Access Locksmiths (Leeds) Limited,NO
Http://opendatacommunities.org/id/metropolitan-district-council/leeds,Leeds City Council,31/03/2017,City Development,Libraries  Arts & Heritage,Supplies and Services,Bought In Professional Services,277,27-Mar-2017,1703-00265,0.00,480.00,R,Access Moving Image Ltd,NO
Http://opendatacommunities.org/id/metropolitan-district-council/leeds,Leeds City Council,31/03/2017,Environment & Housing,Leeds Building Services,Supplies and Services,Other Hired And Contracted Services,265,03-Mar-2017,1703-00266,0.00,110.00,R,Access Opening Systems Limited,NO
Http://opendatacommunities.org/id/metropolitan-district-council/leeds,Leeds City Council,31/03/2017,Environment & Housing,Leeds Building Services,Supplies and Services,Other Hired And Contracted Services,265,03-Mar-2017,1703-00267,0.00,110.00,R,Access Opening Systems Limited,NO
Http://opendatacommunities.org/id/metropolitan-district-council/leeds,Leeds City Council,31/03/2017,Environment & Housing,Leeds Building Services,Supplies and Services,Other Hired And Contracted Services,265,03-Mar-2017,1703-00268,0.00,85.00,R,Access Opening Systems Limited,NO
Http://opendatacommunities.org/id/metropolitan-district-council/leeds,Leeds City Council,31/03/2017,Environment & Housing,Leeds Building Services,Supplies and Services,Other Hired And Contracted Services,265,03-Mar-2017,1703-00269,0.00,135.00,R,Access Opening Systems Limited,NO
Http://opendatacommunities.org/id/metropolitan-district-council/leeds,Leeds City Council,31/03/2017,Environment & Housing,Leeds Building Services,Supplies and Services,Other Hired And Contracted Services,265,03-Mar-2017,1703-00270,0.00,85.00,R,Access Opening Systems Limited,NO
Http://opendatacommunities.org/id/metropolitan-district-council/leeds,Leeds City Council,31/03/2017,Environment & Housing,Leeds Building Services,Supplies and Services,Other Hired And Contracted Services,265,03-Mar-2017,1703-00271,0.00,110.00,R,Access Opening Systems Limited,NO
Http://opendatacommunities.org/id/metropolitan-district-council/leeds,Leeds City Council,31/03/2017,Environment & Housing,Leeds Building Services,Supplies and Services,Other Hired And Contracted Services,265,03-Mar-2017,1703-00272,0.00,85.00,R,Access Opening Systems Limited,NO
Http://opendatacommunities.org/id/metropolitan-district-council/leeds,Leeds City Council,31/03/2017,Environment & Housing,Leeds Building Services,Supplies and Services,Other Hired And Contracted Services,265,03-Mar-2017,1703-00273,0.00,85.00,R,Access Opening Systems Limited,NO
Http://opendatacommunities.org/id/metropolitan-district-council/leeds,Leeds City Council,31/03/2017,Environment & Housing,Leeds Building Services,Supplies and Services,Other Hired And Contracted Services,265,03-Mar-2017,1703-00274,0.00,85.00,R,Access Opening Systems Limited,NO
Http://opendatacommunities.org/id/metropolitan-district-council/leeds,Leeds City Council,31/03/2017,Environment & Housing,Leeds Building Services,Supplies and Services,Other Hired And Contracted Services,265,03-Mar-2017,1703-00275,0.00,85.00,R,Access Opening Systems Limited,NO
Http://opendatacommunities.org/id/metropolitan-district-council/leeds,Leeds City Council,31/03/2017,Environment & Housing,Leeds Building Services,Supplies and Services,Other Hired And Contracted Services,265,03-Mar-2017,1703-00276,0.00,110.00,R,Access Opening Systems Limited,NO
Http://opendatacommunities.org/id/metropolitan-district-council/leeds,Leeds City Council,31/03/2017,Environment & Housing,Leeds Building Services,Supplies and Services,Other Hired And Contracted Services,265,03-Mar-2017,1703-00277,0.00,110.00,R,Access Opening Systems Limited,NO
Http://opendatacommunities.org/id/metropolitan-district-council/leeds,Leeds City Council,31/03/2017,Environment & Housing,Leeds Building Services,Supplies and Services,Other Hired And Contracted Services,265,03-Mar-2017,1703-00278,0.00,110.00,R,Access Opening Systems Limited,NO
Http://opendatacommunities.org/id/metropolitan-district-council/leeds,Leeds City Council,31/03/2017,Environment & Housing,Leeds Building Services,Supplies and Services,Other Hired And Contracted Services,265,06-Mar-2017,1703-00279,0.00,110.00,R,Access Opening Systems Limited,NO
Http://opendatacommunities.org/id/metropolitan-district-council/leeds,Leeds City Council,31/03/2017,Environment & Housing,Leeds Building Services,Supplies and Services,Other Hired And Contracted Services,265,06-Mar-2017,1703-00280,0.00,85.00,R,Access Opening Systems Limited,NO
Http://opendatacommunities.org/id/metropolitan-district-council/leeds,Leeds City Council,31/03/2017,Environment & Housing,Leeds Building Services,Supplies and Services,Other Hired And Contracted Services,265,07-Mar-2017,1703-00281,0.00,160.00,R,Access Opening Systems Limited,NO
Http://opendatacommunities.org/id/metropolitan-district-council/leeds,Leeds City Council,31/03/2017,Environment & Housing,Leeds Building Services,Supplies and Services,Other Hired And Contracted Services,265,07-Mar-2017,1703-00282,0.00,85.00,R,Access Opening Systems Limited,NO
Http://opendatacommunities.org/id/metropolitan-district-council/leeds,Leeds City Council,31/03/2017,Environment & Housing,Leeds Building Services,Supplies and Services,Other Hired And Contracted Services,265,10-Mar-2017,1703-00283,0.00,85.00,R,Access Opening Systems Limited,NO
Http://opendatacommunities.org/id/metropolitan-district-council/leeds,Leeds City Council,31/03/2017,Environment & Housing,Leeds Building Services,Supplies and Services,Other Hired And Contracted Services,265,10-Mar-2017,1703-00284,0.00,85.00,R,Access Opening Systems Limited,NO
Http://opendatacommunities.org/id/metropolitan-district-council/leeds,Leeds City Council,31/03/2017,Environment & Housing,Leeds Building Services,Supplies and Services,Other Hired And Contracted Services,265,15-Mar-2017,1703-00285,0.00,379.77,R,Access Opening Systems Limited,NO
Http://opendatacommunities.org/id/metropolitan-district-council/leeds,Leeds City Council,31/03/2017,Environment & Housing,Leeds Building Services,Supplies and Services,Other Hired And Contracted Services,265,15-Mar-2017,1703-00286,0.00,296.00,R,Access Opening Systems Limited,NO
Http://opendatacommunities.org/id/metropolitan-district-council/leeds,Leeds City Council,31/03/2017,Environment & Housing,Leeds Building Services,Supplies and Services,Other Hired And Contracted Services,265,15-Mar-2017,1703-00287,0.00,662.92,R,Access Opening Systems Limited,NO
Http://opendatacommunities.org/id/metropolitan-district-council/leeds,Leeds City Council,31/03/2017,Environment & Housing,Leeds Building Services,Supplies and Services,Other Hired And Contracted Services,265,20-Mar-2017,1703-00288,0.00,85.00,R,Access Opening Systems Limited,NO
Http://opendatacommunities.org/id/metropolitan-district-council/leeds,Leeds City Council,31/03/2017,Environment & Housing,Leeds Building Services,Supplies and Services,Other Hired And Contracted Services,265,20-Mar-2017,1703-00289,0.00,630.00,R,Access Opening Systems Limited,NO
Http://opendatacommunities.org/id/metropolitan-district-council/leeds,Leeds City Council,31/03/2017,Environment & Housing,Leeds Building Services,Supplies and Services,Other Hired And Contracted Services,265,21-Mar-2017,1703-00290,0.00,435.50,R,Access Opening Systems Limited,NO
Http://opendatacommunities.org/id/metropolitan-district-council/leeds,Leeds City Council,31/03/2017,Environment & Housing,Leeds Building Services,Supplies and Services,Other Hired And Contracted Services,265,27-Mar-2017,1703-00291,0.00,-160.00,R,Access Opening Systems Limited,NO
Http://opendatacommunities.org/id/metropolitan-district-council/leeds,Leeds City Council,31/03/2017,Environment & Housing,Leeds Building Services,Supplies and Services,Other Hired And Contracted Services,265,27-Mar-2017,1703-00292,0.00,1894.12,R,Access Opening Systems Limited,NO
Http://opendatacommunities.org/id/metropolitan-district-council/leeds,Leeds City Council,31/03/2017,Environment & Housing,Leeds Building Services,Supplies and Services,Other Hired And Contracted Services,265,27-Mar-2017,1703-00293,0.00,366.21,R,Access Opening Systems Limited,NO
Http://opendatacommunities.org/id/metropolitan-district-council/leeds,Leeds City Council,31/03/2017,Environment & Housing,Leeds Building Services,Supplies and Services,Other Hired And Contracted Services,265,27-Mar-2017,1703-00294,0.00,471.23,R,Access Opening Systems Limited,NO
Http://opendatacommunities.org/id/metropolitan-district-council/leeds,Leeds City Council,31/03/2017,Environment & Housing,Leeds Building Services,Supplies and Services,Other Hired And Contracted Services,265,31-Mar-2017,1703-00295,0.00,11662.00,R,Access Opening Systems Limited,NO
Http://opendatacommunities.org/id/metropolitan-district-council/leeds,Leeds City Council,31/03/2017,Insurance,Insurance,Supplies and Services,Insurance Claims,248,15-Mar-2017,1703-00296,0.00,1190.00,R,Accident Advice Solicitors,NO
Http://opendatacommunities.org/id/metropolitan-district-council/leeds,Leeds City Council as Accountable Body,31/03/2017,Social Services Pooled Budgets,Leeds Community Equip Store Pooled Budgt,Supplies and Services,Other Equipment,203,09-Mar-2017,1703-00297,0.00,119.00,R,Acco Service Division,NO
Http://opendatacommunities.org/id/metropolitan-district-council/leeds,Leeds City Council,31/03/2017,Insurance,Insurance,Supplies and Services,Insurance Claims,248,08-Mar-2017,1703-00298,0.00,1125.00,R,Accountant General Of The Senior Courts,NO
Http://opendatacommunities.org/id/metropolitan-district-council/leeds,Leeds City Council,31/03/2017,Insurance,Insurance,Supplies and Services,Insurance Claims,248,09-Mar-2017,1703-00299,0.00,4890.60,R,Accountant General Of The Senior Courts,NO
Http://opendatacommunities.org/id/metropolitan-district-council/leeds,Leeds City Council,31/03/2017,Environment & Housing,Community Safety,Supplies and Services,Other Hired And Contracted Services,265,29-Mar-2017,1703-00300,0.00,283.99,R,Accutime Ltd,NO
Http://opendatacommunities.org/id/metropolitan-district-council/leeds,Leeds City Council,31/03/2017,City Development,Recreation,Transport,External Hire -Occasional,304,02-Mar-2017,1703-00301,0.00,116.20,R,Ace Container Services Limited,NO
Http://opendatacommunities.org/id/metropolitan-district-council/leeds,Leeds City Council,31/03/2017,City Development,Libraries  Arts & Heritage,Transport,Hire Of Movable Plant & Machinery,315,02-Mar-2017,1703-00302,0.00,42.00,R,Ace Container Services Limited,NO
Http://opendatacommunities.org/id/metropolitan-district-council/leeds,Leeds City Council,31/03/2017,City Development,Recreation,Supplies and Services,Other Hired And Contracted Services,265,02-Mar-2017,1703-00303,0.00,126.00,R,Ace Container Services Limited,NO
Http://opendatacommunities.org/id/metropolitan-district-council/leeds,Leeds City Council,31/03/2017,Environment & Housing,Environmental Action (East North East),Premises,Civic Buildings Recharges,165,13-Mar-2017,1703-00304,0.00,1800.00,R,Ace Container Services Limited,NO
Http://opendatacommunities.org/id/metropolitan-district-council/leeds,Leeds City Council,31/03/2017,City Development,Libraries  Arts & Heritage,Supplies and Services,Other Hired And Contracted Services,265,24-Mar-2017,1703-00305,0.00,1810.00,R,Ace Container Services Limited,NO
Http://opendatacommunities.org/id/metropolitan-district-council/leeds,Leeds City Council,31/03/2017,City Development,Recreation,Supplies and Services,Other Hired And Contracted Services,265,30-Mar-2017,1703-00306,0.00,128.65,R,Ace Container Services Limited,NO
Http://opendatacommunities.org/id/metropolitan-district-council/leeds,Leeds City Council,31/03/2017,City Development,Libraries  Arts & Heritage,Transport,Hire Of Movable Plant & Machinery,315,30-Mar-2017,1703-00307,0.00,46.50,R,Ace Container Services Limited,NO
Http://opendatacommunities.org/id/metropolitan-district-council/leeds,Leeds City Council,31/03/2017,City Development,Recreation,Supplies and Services,Other Hired And Contracted Services,265,30-Mar-2017,1703-00308,0.00,139.50,R,Ace Container Services Limited,NO
Http://opendatacommunities.org/id/metropolitan-district-council/leeds,Leeds City Council,31/03/2017,Adult Social Care,Other Generic Services,Supplies and Services,Publication And Promotion,267,28-Mar-2017,1703-00309,0.00,305.00,R,Ace Leaflet Distribution & Print Ltd,NO
Http://opendatacommunities.org/id/metropolitan-district-council/leeds,Leeds City Council,31/03/2017,Childrens Services,Safeguarding Targeted & Specialist,Third Party Payments,Interagency Adoptions,559,16-Mar-2017,1703-00310,0.00,9900.00,R,Achieving For Children,NO
Http://opendatacommunities.org/id/metropolitan-district-council/leeds,Leeds City Council,31/03/2017,Childrens Services,Safeguarding Targeted & Specialist,Third Party Payments,SEN Placements,566,29-Mar-2017,1703-00311,0.00,12714.00,R,Ackworth School,NO
Http://opendatacommunities.org/id/metropolitan-district-council/leeds,Leeds City Council,31/03/2017,Environment & Housing,Parks and Countryside,Supplies and Services,Operational Materials,205,15-Mar-2017,1703-00312,0.00,160.00,R,Acm,NO
Http://opendatacommunities.org/id/metropolitan-district-council/leeds,Leeds City Council,31/03/2017,Civic Enterprise Leeds,Commercial Services,Supplies and Services,Clothing & Uniforms,241,17-Mar-2017,1703-00313,0.00,2085.00,R,Acme Facilities Group Ltd,NO
Http://opendatacommunities.org/id/metropolitan-district-council/leeds,Leeds City Council,31/03/2017,Civic Enterprise Leeds,Commercial Services,Supplies and Services,Operational Materials,205,22-Mar-2017,1703-00314,0.00,90.00,R,Acme Facilities Group Ltd,NO
Http://opendatacommunities.org/id/metropolitan-district-council/leeds,Leeds City Council,31/03/2017,Civic Enterprise Leeds,Commercial Services,Supplies and Services,Clothing & Uniforms,241,22-Mar-2017,1703-00315,0.00,1842.00,R,Acme Facilities Group Ltd,NO
Http://opendatacommunities.org/id/metropolitan-district-council/leeds,Leeds City Council,31/03/2017,Childrens Services,Safeguarding Targeted & Specialist,Third Party Payments,SEN Placements,566,24-Mar-2017,1703-00316,0.00,5055.04,R,Acorn Care And Education Ltd,NO
Http://opendatacommunities.org/id/metropolitan-district-council/leeds,Leeds City Council,31/03/2017,Childrens Services,Safeguarding Targeted & Specialist,Third Party Payments,SEN Placements,566,24-Mar-2017,1703-00317,0.00,18138.67,R,Acorn Care And Education Ltd,NO
Http://opendatacommunities.org/id/metropolitan-district-council/leeds,Leeds City Council,31/03/2017,Adult Social Care,Services For Older People - 65 And Over,Third Party Payments,Nursing Care Dementia,574,08-Mar-2017,1703-00318,0.00,1480.08,R,Acorn Nursing Home,NO
Http://opendatacommunities.org/id/metropolitan-district-council/leeds,Leeds City Council,31/03/2017,City Development,Libraries  Arts & Heritage,Supplies and Services,Other Hired And Contracted Services,265,30-Mar-2017,1703-00319,0.00,540.00,R,Acorn Scaffolding (Yorkshire) Ltd,NO
Http://opendatacommunities.org/id/metropolitan-district-council/leeds,Leeds City Council,31/03/2017,Adult Social Care,Other Adult Services,Third Party Payments,Residential - Drugs & Alcohol,583,10-Mar-2017,1703-00320,0.00,2435.71,R,Acorn Treatment & Housing,NO
Http://opendatacommunities.org/id/metropolitan-district-council/leeds,Leeds City Council,31/03/2017,Childrens Services,Learning Skills & Universal,Third Party Payments,Services Rendered By Other Organisations,511,17-Mar-2017,1703-00321,0.00,1836.16,R,Acorns Nursery,NO
Http://opendatacommunities.org/id/metropolitan-district-council/leeds,Leeds City Council,31/03/2017,Adult Social Care,Services For Adults Under 65 Mental/Dis,Third Party Payments,Residential,580,08-Mar-2017,1703-00322,0.00,1459.20,R,Acre Green,NO
Http://opendatacommunities.org/id/metropolitan-district-council/leeds,Leeds City Council,31/03/2017,Adult Social Care,Services For Older People - 65 And Over,Third Party Payments,Nursing Home,570,08-Mar-2017,1703-00323,0.00,20561.01,R,Acre Green,NO
Http://opendatacommunities.org/id/metropolitan-district-council/leeds,Leeds City Council,31/03/2017,Adult Social Care,Services For Older People - 65 And Over,Third Party Payments,Nursing Care Dementia,574,08-Mar-2017,1703-00324,0.00,1122.48,R,Acre Green,NO
Http://opendatacommunities.org/id/metropolitan-district-council/leeds,Leeds City Council,31/03/2017,Adult Social Care,Services For Older People - 65 And Over,Third Party Payments,Residential,580,08-Mar-2017,1703-00325,0.00,5700.32,R,Acre Green,NO
Http://opendatacommunities.org/id/metropolitan-district-council/leeds,Leeds City Council,31/03/2017,Adult Social Care,Services For Older People Under 65 P/Dis,Third Party Payments,Nursing Home,570,08-Mar-2017,1703-00326,0.00,5682.64,R,Acre Green,NO
Http://opendatacommunities.org/id/metropolitan-district-council/leeds,Leeds City Council,31/03/2017,Adult Social Care,Services For Older People Under 65 P/Dis,Third Party Payments,Residential,580,08-Mar-2017,1703-00327,0.00,3145.20,R,Acre Green,NO
Http://opendatacommunities.org/id/metropolitan-district-council/leeds,Leeds City Council,31/03/2017,Childrens Services,Learning Skills & Universal,Third Party Payments,Services Rendered By Other Organisations,511,10-Mar-2017,1703-00328,0.00,1013.65,R,Acre Wood Day Nursery,NO
Http://opendatacommunities.org/id/metropolitan-district-council/leeds,Leeds City Council,31/03/2017,Childrens Services,Learning Skills & Universal,Third Party Payments,Services Rendered By Other Organisations,511,17-Mar-2017,1703-00329,0.00,896.80,R,Acre Wood Day Nursery,NO
Http://opendatacommunities.org/id/metropolitan-district-council/leeds,Leeds City Council,31/03/2017,Insurance,Insurance,Supplies and Services,Insurance Claims,248,16-Mar-2017,1703-00330,0.00,985.82,R,Acromas Insurance Company Ltd,NO
Http://opendatacommunities.org/id/metropolitan-district-council/leeds,Leeds City Council as Accountable Body,31/03/2017,Social Services Pooled Budgets,Jcs For People With Learning Disabilitie,Supplies and Services,Other Equipment,203,08-Mar-2017,1703-00331,0.00,252.50,R,Action Assist Ltd,NO
Http://opendatacommunities.org/id/metropolitan-district-council/leeds,Leeds City Council as Accountable Body,31/03/2017,Social Services Pooled Budgets,Jcs For People With Learning Disabilitie,Supplies and Services,Other Equipment,203,08-Mar-2017,1703-00332,0.00,232.50,R,Action Assist Ltd,NO
Http://opendatacommunities.org/id/metropolitan-district-council/leeds,Leeds City Council,31/03/2017,Childrens Services,Safeguarding Targeted & Specialist,Third Party Payments,Independent Fostering Agencies,509,22-Mar-2017,1703-00333,0.00,4314.24,R,Action For Children,NO
Http://opendatacommunities.org/id/metropolitan-district-council/leeds,Leeds City Council,31/03/2017,Childrens Services,Safeguarding Targeted & Specialist,Third Party Payments,Independent Fostering Agencies,509,22-Mar-2017,1703-00334,0.00,4314.24,R,Action For Children,NO
Http://opendatacommunities.org/id/metropolitan-district-council/leeds,Leeds City Council,31/03/2017,Childrens Services,Safeguarding Targeted & Specialist,Third Party Payments,Independent Fostering Agencies,509,22-Mar-2017,1703-00335,0.00,4314.24,R,Action For Children,NO
Http://opendatacommunities.org/id/metropolitan-district-council/leeds,Leeds City Council,31/03/2017,Childrens Services,Safeguarding Targeted & Specialist,Third Party Payments,Independent Fostering Agencies,509,22-Mar-2017,1703-00336,0.00,4663.96,R,Action For Children,NO
Http://opendatacommunities.org/id/metropolitan-district-council/leeds,Leeds City Council,31/03/2017,Childrens Services,Safeguarding Targeted & Specialist,Third Party Payments,Independent Fostering Agencies,509,22-Mar-2017,1703-00337,0.00,4314.24,R,Action For Children,NO
Http://opendatacommunities.org/id/metropolitan-district-council/leeds,Leeds City Council,31/03/2017,Insurance,Insurance,Supplies and Services,Insurance Claims,248,02-Mar-2017,1703-00338,0.00,218.85,R,Active Auto Solutions,NO
Http://opendatacommunities.org/id/metropolitan-district-council/leeds,Leeds City Council,31/03/2017,Citizens and Communities,Communities,Supplies and Services,'Well Being' Large Grants Projects,230,21-Mar-2017,1703-00339,0.00,1336.00,R,Active Community Education In Sport Ltd,NO
Http://opendatacommunities.org/id/metropolitan-district-council/leeds,Leeds City Council,31/03/2017,Childrens Services,Learning Skills & Universal,Third Party Payments,Services Rendered By Other Organisations,511,10-Mar-2017,1703-00340,0.00,640.20,R,Active Kids Yeadon Llp,NO
Http://opendatacommunities.org/id/metropolitan-district-council/leeds,Leeds City Council,31/03/2017,Childrens Services,Learning Skills & Universal,Third Party Payments,Services Rendered By Other Organisations,511,17-Mar-2017,1703-00341,0.00,2747.40,R,Active Kids Yeadon Llp,NO
Http://opendatacommunities.org/id/metropolitan-district-council/leeds,Leeds City Council,31/03/2017,Childrens Services,Learning Skills & Universal,Third Party Payments,Services Rendered By Other Organisations,511,17-Mar-2017,1703-00342,0.00,87.45,R,Active Kids Yeadon Llp,NO
Http://opendatacommunities.org/id/metropolitan-district-council/leeds,Leeds City Council,31/03/2017,Environment & Housing,Environmental Action (East North East),Supplies and Services,Bought In Professional Services,277,02-Mar-2017,1703-00343,0.00,110.00,R,Acumen Waste Services Ltd,NO
Http://opendatacommunities.org/id/metropolitan-district-council/leeds,Leeds City Council,31/03/2017,Environment & Housing,Environmental Action (East North East),Supplies and Services,Bought In Professional Services,277,02-Mar-2017,1703-00344,0.00,110.00,R,Acumen Waste Services Ltd,NO
Http://opendatacommunities.org/id/metropolitan-district-council/leeds,Leeds City Council,31/03/2017,Environment & Housing,Waste Management,Supplies and Services,Recycling & Reuse Charges,234,03-Mar-2017,1703-00345,0.00,3813.64,R,Acumen Waste Services Ltd,NO
Http://opendatacommunities.org/id/metropolitan-district-council/leeds,Leeds City Council,31/03/2017,Environment & Housing,Environmental Action (South),Premises,Removal Of Workplace Waste,126,14-Mar-2017,1703-00346,0.00,220.00,R,Acumen Waste Services Ltd,NO
Http://opendatacommunities.org/id/metropolitan-district-council/leeds,Leeds City Council,31/03/2017,Environment & Housing,Environmental Action (South),Premises,Removal Of Workplace Waste,126,14-Mar-2017,1703-00347,0.00,220.00,R,Acumen Waste Services Ltd,NO
Http://opendatacommunities.org/id/metropolitan-district-council/leeds,Leeds City Council,31/03/2017,Environment & Housing,Environmental Action (East North East),Supplies and Services,Bought In Professional Services,277,20-Mar-2017,1703-00348,0.00,110.00,R,Acumen Waste Services Ltd,NO
Http://opendatacommunities.org/id/metropolitan-district-council/leeds,Leeds City Council,31/03/2017,Environment & Housing,Environmental Action (South),Premises,Removal Of Workplace Waste,126,20-Mar-2017,1703-00349,0.00,220.00,R,Acumen Waste Services Ltd,NO
Http://opendatacommunities.org/id/metropolitan-district-council/leeds,Leeds City Council,31/03/2017,Environment & Housing,Waste Management,Supplies and Services,Recycling & Reuse Charges,234,23-Mar-2017,1703-00350,0.00,4768.39,R,Acumen Waste Services Ltd,NO
Http://opendatacommunities.org/id/metropolitan-district-council/leeds,Leeds City Council,31/03/2017,Environment & Housing,Waste Management,Supplies and Services,Recycling & Reuse Charges,234,23-Mar-2017,1703-00351,0.00,6576.05,R,Acumen Waste Services Ltd,NO
Http://opendatacommunities.org/id/metropolitan-district-council/leeds,Leeds City Council,31/03/2017,Environment & Housing,Waste Management,Supplies and Services,Recycling & Reuse Charges,234,24-Mar-2017,1703-00352,0.00,3521.52,R,Acumen Waste Services Ltd,NO
Http://opendatacommunities.org/id/metropolitan-district-council/leeds,Leeds City Council,31/03/2017,Environment & Housing,Environmental Action (South),Premises,Removal Of Workplace Waste,126,24-Mar-2017,1703-00353,0.00,110.00,R,Acumen Waste Services Ltd,NO
Http://opendatacommunities.org/id/metropolitan-district-council/leeds,Leeds City Council,31/03/2017,Environment & Housing,Environmental Action (East North East),Supplies and Services,Bought In Professional Services,277,27-Mar-2017,1703-00354,0.00,110.00,R,Acumen Waste Services Ltd,NO
Http://opendatacommunities.org/id/metropolitan-district-council/leeds,Leeds City Council,31/03/2017,Environment & Housing,Parks and Countryside,Supplies and Services,Resaleable Materials,204,22-Mar-2017,1703-00355,0.00,89.70,R,Acushnet Europe Limited,NO
Http://opendatacommunities.org/id/metropolitan-district-council/leeds,Leeds City Council,31/03/2017,Civic Enterprise Leeds,Shared Services,Supplies and Services,Operational Materials,205,15-Mar-2017,1703-00356,0.00,645.00,R,Ad3 Envelope Printers Limited,NO
Http://opendatacommunities.org/id/metropolitan-district-council/leeds,Leeds City Council,31/03/2017,Insurance,Insurance,Supplies and Services,Insurance Claims,248,15-Mar-2017,1703-00357,0.00,2000.00,R,REDACTED PERSONAL DATA,NO
Http://opendatacommunities.org/id/metropolitan-district-council/leeds,Leeds City Council,31/03/2017,Citizens and Communities,Customer Access,Income,Admissions  Booking Fees & Ticket Sales,933,03-Mar-2017,1703-00358,0.00,434.23,R,Adam Robinson,NO
Http://opendatacommunities.org/id/metropolitan-district-council/leeds,Leeds City Council,31/03/2017,Adult Social Care,Services For Older People - 65 And Over,Third Party Payments,Nursing Home,570,08-Mar-2017,1703-00359,0.00,2120.00,R,Adbolton Hall,NO
Http://opendatacommunities.org/id/metropolitan-district-council/leeds,Leeds City Council,31/03/2017,Environment & Housing,Environmental Health,Capital,Other Costs,7,23-Mar-2017,1703-00360,0.00,9065.50,C,Adc Property Solutions,NO
Http://opendatacommunities.org/id/metropolitan-district-council/leeds,Leeds City Council,31/03/2017,Environment & Housing,Environmental Health,Capital,Other Costs,7,03-Mar-2017,1703-00361,0.00,6036.10,C,Addleshaw Goddard Llp,NO
Http://opendatacommunities.org/id/metropolitan-district-council/leeds,Leeds City Council,31/03/2017,City Development,Asset Management Services,Support Services,Legal Disbursements,411,24-Mar-2017,1703-00362,0.00,9002.58,R,Addleshaw Goddard Llp,NO
Http://opendatacommunities.org/id/metropolitan-district-council/leeds,Leeds City Council,31/03/2017,Public Health,Public Health,Third Party Payments,Public Health Commissioned Services,526,02-Mar-2017,1703-00363,0.00,63.00,R,Addlestone & Partners,NO
Http://opendatacommunities.org/id/metropolitan-district-council/leeds,Leeds City Council,31/03/2017,Public Health,Public Health,Third Party Payments,Public Health Commissioned Services,526,22-Mar-2017,1703-00364,0.00,126.00,R,Addlestone & Partners,NO
Http://opendatacommunities.org/id/metropolitan-district-council/leeds,Leeds City Council,31/03/2017,Central & Corporate,Technology ,Employees,Agency Staff,8,07-Feb-2017,1703-00365,0.00,1840.00,R,Adecco Alfred Marks,YES
Http://opendatacommunities.org/id/metropolitan-district-council/leeds,Leeds City Council,31/03/2017,Central & Corporate,Technology ,Employees,Agency Staff,8,07-Feb-2017,1703-00366,0.00,6950.00,R,Adecco Alfred Marks,YES
Http://opendatacommunities.org/id/metropolitan-district-council/leeds,Leeds City Council,31/03/2017,Central & Corporate,Technology ,Employees,Agency Staff,8,07-Feb-2017,1703-00367,0.00,1254.30,R,Adecco Alfred Marks,YES
Http://opendatacommunities.org/id/metropolitan-district-council/leeds,Leeds City Council,31/03/2017,Central & Corporate,Technology ,Employees,Agency Staff,8,27-Feb-2017,1703-00368,0.00,3220.00,R,Adecco Alfred Marks,YES
Http://opendatacommunities.org/id/metropolitan-district-council/leeds,Leeds City Council,31/03/2017,Central & Corporate,Technology ,Employees,Agency Staff,8,27-Feb-2017,1703-00369,0.00,13900.00,R,Adecco Alfred Marks,YES
Http://opendatacommunities.org/id/metropolitan-district-council/leeds,Leeds City Council,31/03/2017,Central & Corporate,Technology ,Employees,Agency Staff,8,27-Feb-2017,1703-00370,0.00,1881.45,R,Adecco Alfred Marks,YES
Http://opendatacommunities.org/id/metropolitan-district-council/leeds,Leeds City Council,31/03/2017,Central & Corporate,Technology ,Employees,Agency Staff,8,27-Feb-2017,1703-00371,0.00,4117.60,R,Adecco Alfred Marks,YES
Http://opendatacommunities.org/id/metropolitan-district-council/leeds,Leeds City Council,31/03/2017,Public Health,Public Health,Third Party Payments,Public Health Commissioned Services,526,10-Mar-2017,1703-00372,0.00,39.88,R,Adel Pharmacy,NO
Http://opendatacommunities.org/id/metropolitan-district-council/leeds,Leeds City Council,31/03/2017,Public Health,Public Health,Third Party Payments,Public Health Commissioned Services,526,29-Mar-2017,1703-00373,0.00,9.97,R,Adel Pharmacy,NO
Http://opendatacommunities.org/id/metropolitan-district-council/leeds,Leeds City Council,31/03/2017,Childrens Services,Learning Skills & Universal,Third Party Payments,Services Rendered By Voluntary Sector,505,10-Mar-2017,1703-00374,0.00,480.15,R,Adel Pre School,NO
Http://opendatacommunities.org/id/metropolitan-district-council/leeds,Leeds City Council,31/03/2017,Childrens Services,Learning Skills & Universal,Third Party Payments,Services Rendered By Voluntary Sector,505,17-Mar-2017,1703-00375,0.00,4338.84,R,Adel Pre School,NO
Http://opendatacommunities.org/id/metropolitan-district-council/leeds,Leeds City Council,31/03/2017,Childrens Services,Safeguarding Targeted & Specialist,Supplies and Services,Food & Drink,231,07-Mar-2017,1703-00376,0.00,411.00,R,Adel Quaker Meeting,NO
Http://opendatacommunities.org/id/metropolitan-district-council/leeds,Leeds City Council,31/03/2017,Childrens Services,Learning Skills & Universal,Third Party Payments,Services Rendered By Other Organisations,511,17-Mar-2017,1703-00377,0.00,376.20,R,Adele Harrington,NO
Http://opendatacommunities.org/id/metropolitan-district-council/leeds,Leeds City Council,31/03/2017,Childrens Services,Learning Skills & Universal,Third Party Payments,Services Rendered By Other Organisations,511,17-Mar-2017,1703-00378,0.00,101.84,R,REDACTED PERSONAL DATA,NO
Http://opendatacommunities.org/id/metropolitan-district-council/leeds,Leeds City Council,31/03/2017,Childrens Services,Learning Skills & Universal,Third Party Payments,Services Rendered By Other Organisations,511,17-Mar-2017,1703-00379,0.00,125.40,R,Adele Thompson,NO
Http://opendatacommunities.org/id/metropolitan-district-council/leeds,Leeds City Council,31/03/2017,Adult Social Care,Services For Older People - 65 And Over,Third Party Payments,Nursing Home,570,08-Mar-2017,1703-00380,0.00,1136.60,R,Aden House,NO
Http://opendatacommunities.org/id/metropolitan-district-council/leeds,Leeds City Council,31/03/2017,Environment & Housing,Leeds Building Services,Supplies and Services,Operational Materials,205,06-Mar-2017,1703-00381,0.00,38.03,R,Adi Global,NO
Http://opendatacommunities.org/id/metropolitan-district-council/leeds,Leeds City Council,31/03/2017,Environment & Housing,Leeds Building Services,Supplies and Services,Operational Materials,205,06-Mar-2017,1703-00382,0.00,60.96,R,Adi Global,NO
Http://opendatacommunities.org/id/metropolitan-district-council/leeds,Leeds City Council,31/03/2017,Environment & Housing,Leeds Building Services,Supplies and Services,Operational Materials,205,06-Mar-2017,1703-00383,0.00,29.81,R,Adi Global,NO
Http://opendatacommunities.org/id/metropolitan-district-council/leeds,Leeds City Council,31/03/2017,Environment & Housing,Leeds Building Services,Supplies and Services,Operational Materials,205,13-Mar-2017,1703-00384,0.00,192.69,R,Adi Global,NO
Http://opendatacommunities.org/id/metropolitan-district-council/leeds,Leeds City Council,31/03/2017,Environment & Housing,Leeds Building Services,Supplies and Services,Operational Materials,205,13-Mar-2017,1703-00385,0.00,703.44,R,Adi Global,NO
Http://opendatacommunities.org/id/metropolitan-district-council/leeds,Leeds City Council,31/03/2017,Environment & Housing,Leeds Building Services,Supplies and Services,Operational Materials,205,20-Mar-2017,1703-00386,0.00,193.99,R,Adi Global,NO
Http://opendatacommunities.org/id/metropolitan-district-council/leeds,Leeds City Council,31/03/2017,Environment & Housing,Leeds Building Services,Supplies and Services,Operational Materials,205,31-Mar-2017,1703-00387,0.00,6.38,R,Adi Global,NO
Http://opendatacommunities.org/id/metropolitan-district-council/leeds,Leeds City Council,31/03/2017,Environment & Housing,Leeds Building Services,Supplies and Services,Operational Materials,205,31-Mar-2017,1703-00388,0.00,38.07,R,Adi Global,NO
Http://opendatacommunities.org/id/metropolitan-district-council/leeds,Leeds City Council,31/03/2017,Environment & Housing,Leeds Building Services,Supplies and Services,Operational Materials,205,31-Mar-2017,1703-00389,0.00,38.07,R,Adi Global,NO
Http://opendatacommunities.org/id/metropolitan-district-council/leeds,Leeds City Council,31/03/2017,Environment & Housing,Leeds Building Services,Supplies and Services,Operational Materials,205,31-Mar-2017,1703-00390,0.00,38.07,R,Adi Global,NO
Http://opendatacommunities.org/id/metropolitan-district-council/leeds,Leeds City Council,31/03/2017,Environment & Housing,Leeds Building Services,Supplies and Services,Operational Materials,205,31-Mar-2017,1703-00391,0.00,799.96,R,Adi Global,NO
Http://opendatacommunities.org/id/metropolitan-district-council/leeds,Leeds City Council,31/03/2017,Environment & Housing,Leeds Building Services,Supplies and Services,Operational Materials,205,31-Mar-2017,1703-00392,0.00,48.73,R,Adi Global,NO
Http://opendatacommunities.org/id/metropolitan-district-council/leeds,Leeds City Council,31/03/2017,Environment & Housing,Leeds Building Services,Supplies and Services,Operational Materials,205,31-Mar-2017,1703-00393,0.00,42.12,R,Adi Global,NO
Http://opendatacommunities.org/id/metropolitan-district-council/leeds,Leeds City Council,31/03/2017,Environment & Housing,Leeds Building Services,Supplies and Services,Operational Materials,205,31-Mar-2017,1703-00394,0.00,6.38,R,Adi Global,NO
Http://opendatacommunities.org/id/metropolitan-district-council/leeds,Leeds City Council,31/03/2017,Environment & Housing,Community Safety ,Supplies and Services,Other Hired And Contracted Services,265,17-Feb-2017,1703-00395,0.00,149.40,R,Adi-Gardiner Ltd,YES
Http://opendatacommunities.org/id/metropolitan-district-council/leeds,Leeds City Council,31/03/2017,Environment & Housing,Community Safety ,Supplies and Services,Other Hired And Contracted Services,265,23-Feb-2017,1703-00396,0.00,454.08,R,Adi-Gardiner Ltd,YES
Http://opendatacommunities.org/id/metropolitan-district-council/leeds,Leeds City Council,31/03/2017,Citizens and Communities,Elections  Licensing and Registration,Income,Admissions  Booking Fees & Ticket Sales,933,16-Mar-2017,1703-00397,0.00,255.00,R,REDACTED PERSONAL DATA,NO
Http://opendatacommunities.org/id/metropolitan-district-council/leeds,Leeds City Council,31/03/2017,Insurance,Insurance,Supplies and Services,Insurance Claims,248,07-Mar-2017,1703-00398,0.00,456.00,R,Admiral Law,NO
Http://opendatacommunities.org/id/metropolitan-district-council/leeds,Leeds City Council,31/03/2017,Insurance,Insurance,Supplies and Services,Insurance Claims,248,22-Mar-2017,1703-00399,0.00,720.00,R,Admiral Law,NO
Http://opendatacommunities.org/id/metropolitan-district-council/leeds,Leeds City Council,31/03/2017,Insurance,Insurance,Supplies and Services,Insurance Claims,248,27-Mar-2017,1703-00400,0.00,360.00,R,Admiral Law,NO
Http://opendatacommunities.org/id/metropolitan-district-council/leeds,Leeds City Council,31/03/2017,Childrens Services,Safeguarding Targeted & Specialist,Third Party Payments,Independent Fostering Agencies,509,31-Mar-2017,1703-00401,0.00,2660.00,R,Adolescent And Childrens Trust,NO
Http://opendatacommunities.org/id/metropolitan-district-council/leeds,Leeds City Council,31/03/2017,Childrens Services,Safeguarding Targeted & Specialist,Third Party Payments,Placement Support,550,03-Mar-2017,1703-00402,0.00,95.00,R,Adoption Plus,NO
Http://opendatacommunities.org/id/metropolitan-district-council/leeds,Leeds City Council,31/03/2017,Childrens Services,Safeguarding Targeted & Specialist,Third Party Payments,Placement Support,550,03-Mar-2017,1703-00403,0.00,280.00,R,Adoption Plus,NO
Http://opendatacommunities.org/id/metropolitan-district-council/leeds,Leeds City Council,31/03/2017,City Development,Libraries  Arts & Heritage,Supplies and Services,Contributions To Extended Facilities,271,27-Mar-2017,1703-00404,0.00,70000.00,R,Adrian Sassoon Limited,NO
Http://opendatacommunities.org/id/metropolitan-district-council/leeds,Leeds City Council as Accountable Body,31/03/2017,Social Services Pooled Budgets,Jcs For People With Learning Disabilitie,Third Party Payments,Sheltered Accommodation,569,22-Mar-2017,1703-00405,0.00,1332.20,R,Adult Placement Services,NO
Http://opendatacommunities.org/id/metropolitan-district-council/leeds,Leeds City Council,31/03/2017,Adult Social Care,Services For Adults Under 65 Mental/Dis,Third Party Payments,Nursing Home,570,08-Mar-2017,1703-00406,0.00,1541.96,R,Adult Supported Living Ltd,NO
Http://opendatacommunities.org/id/metropolitan-district-council/leeds,Leeds City Council,31/03/2017,City Development,Recreation,Supplies and Services,External Audit Fees,261,03-Mar-2017,1703-00407,0.00,235.00,R,Advance Stocks Ltd,NO
Http://opendatacommunities.org/id/metropolitan-district-council/leeds,Leeds City Council,31/03/2017,City Development,Recreation,Supplies and Services,External Audit Fees,261,03-Mar-2017,1703-00408,0.00,85.00,R,Advance Stocks Ltd,NO
Http://opendatacommunities.org/id/metropolitan-district-council/leeds,Leeds City Council,31/03/2017,City Development,Libraries  Arts & Heritage,Supplies and Services,External Audit Fees,261,10-Mar-2017,1703-00409,0.00,90.00,R,Advance Stocks Ltd,NO
Http://opendatacommunities.org/id/metropolitan-district-council/leeds,Leeds City Council,31/03/2017,City Development,Libraries  Arts & Heritage,Supplies and Services,External Audit Fees,261,17-Mar-2017,1703-00410,0.00,90.00,R,Advance Stocks Ltd,NO
Http://opendatacommunities.org/id/metropolitan-district-council/leeds,Leeds City Council,31/03/2017,City Development,Libraries  Arts & Heritage,Supplies and Services,External Audit Fees,261,24-Mar-2017,1703-00411,0.00,85.00,R,Advance Stocks Ltd,NO
Http://opendatacommunities.org/id/metropolitan-district-council/leeds,Leeds City Council,31/03/2017,Adult Social Care,Home Care Services,Supplies and Services,Computer Software & Equipment,214,06-Mar-2017,1703-00412,0.00,14676.75,R,Advanced Health And Care Ltd,NO
Http://opendatacommunities.org/id/metropolitan-district-council/leeds,Leeds City Council,31/03/2017,Adult Social Care,Home Care Services,Supplies and Services,Telephones,213,31-Mar-2017,1703-00413,0.00,600.00,R,Advanced Health And Care Ltd,NO
Http://opendatacommunities.org/id/metropolitan-district-council/leeds,Leeds City Council,31/03/2017,Citizens and Communities,Communities,Supplies and Services,Other Hired And Contracted Services,265,14-Mar-2017,1703-00414,0.00,100.00,R,Adventure Pictures Ltd,NO
Http://opendatacommunities.org/id/metropolitan-district-council/leeds,Leeds City Council as Accountable Body,31/03/2017,Social Services Pooled Budgets,Jcs For People With Learning Disabilitie,Third Party Payments,Residential,580,08-Mar-2017,1703-00415,0.00,20213.88,R,Advitam Ltd,NO
Http://opendatacommunities.org/id/metropolitan-district-council/leeds,Leeds City Council,31/03/2017,Adult Social Care,Services For Adults Under 65 Mental/Dis,Third Party Payments,Payments To Voluntary Organisations,561,03-Mar-2017,1703-00416,0.00,10665.12,R,Advonet,NO
Http://opendatacommunities.org/id/metropolitan-district-council/leeds,Leeds City Council,31/03/2017,Adult Social Care,Services For Older People - 65 And Over,Third Party Payments,Payments To Voluntary Organisations,561,10-Mar-2017,1703-00417,0.00,83435.70,R,Advonet,NO
Http://opendatacommunities.org/id/metropolitan-district-council/leeds,Leeds City Council,31/03/2017,Adult Social Care,Social Services Support Services,Employees,Training Costs,71,13-Mar-2017,1703-00418,0.00,570.00,R,Advonet,NO
Http://opendatacommunities.org/id/metropolitan-district-council/leeds,Leeds City Council,31/03/2017,Adult Social Care,Services For Adults Under 65 Mental/Dis,Third Party Payments,Payments To Voluntary Organisations,561,20-Mar-2017,1703-00419,0.00,8658.58,R,Advonet,NO
Http://opendatacommunities.org/id/metropolitan-district-council/leeds,Leeds City Council,31/03/2017,Adult Social Care,Services For Adults Under 65 Mental/Dis,Third Party Payments,Payments To Voluntary Organisations,561,20-Mar-2017,1703-00420,0.00,2361.75,R,Advonet,NO
Http://opendatacommunities.org/id/metropolitan-district-council/leeds,Leeds City Council,31/03/2017,Adult Social Care,Services For Adults Under 65 Mental/Dis,Third Party Payments,Payments To Voluntary Organisations,561,20-Mar-2017,1703-00421,0.00,10550.03,R,Advonet,NO
Http://opendatacommunities.org/id/metropolitan-district-council/leeds,Leeds City Council,31/03/2017,Adult Social Care,Services For Adults Under 65 Mental/Dis,Third Party Payments,Payments To Voluntary Organisations,561,20-Mar-2017,1703-00422,0.00,902.97,R,Advonet,NO
Http://opendatacommunities.org/id/metropolitan-district-council/leeds,Leeds City Council,31/03/2017,Adult Social Care,Services For Adults Under 65 Mental/Dis,Third Party Payments,Payments To Voluntary Organisations,561,20-Mar-2017,1703-00423,0.00,8688.43,R,Advonet,NO
Http://opendatacommunities.org/id/metropolitan-district-council/leeds,Leeds City Council,31/03/2017,Adult Social Care,Services For Adults Under 65 Mental/Dis,Third Party Payments,Payments To Voluntary Organisations,561,20-Mar-2017,1703-00424,0.00,10546.26,R,Advonet,NO
Http://opendatacommunities.org/id/metropolitan-district-council/leeds,Leeds City Council,31/03/2017,Adult Social Care,Services For Adults Under 65 Mental/Dis,Third Party Payments,Payments To Voluntary Organisations,561,20-Mar-2017,1703-00425,0.00,1079.10,R,Advonet,NO
Http://opendatacommunities.org/id/metropolitan-district-council/leeds,Leeds City Council,31/03/2017,City Development,Economic Development,Supplies and Services,Other Hired And Contracted Services,265,10-Mar-2017,1703-00426,0.00,3250.00,R,Aecom Limited,NO
Http://opendatacommunities.org/id/metropolitan-district-council/leeds,Leeds City Council,31/03/2017,City Development,Economic Development,Capital,Other Costs,7,31-Mar-2017,1703-00427,0.00,2433.00,C,Aecom Limited,NO
Http://opendatacommunities.org/id/metropolitan-district-council/leeds,Leeds City Council,31/03/2017,Citizens and Communities,Customer Access,Supplies and Services,Other Hired And Contracted Services,265,03-Mar-2017,1703-00428,0.00,66.00,R,Afbedel Ltd,NO
Http://opendatacommunities.org/id/metropolitan-district-council/leeds,Leeds City Council,31/03/2017,Adult Social Care,Services For Older People - 65 And Over,Third Party Payments,Home Care,568,01-Mar-2017,1703-00429,0.00,1237.50,R,Affinity Trust,NO
Http://opendatacommunities.org/id/metropolitan-district-council/leeds,Leeds City Council,31/03/2017,Adult Social Care,Services For Older People - 65 And Over,Third Party Payments,Home Care,568,01-Mar-2017,1703-00430,0.00,313.50,R,Affinity Trust,NO
Http://opendatacommunities.org/id/metropolitan-district-council/leeds,Leeds City Council,31/03/2017,Adult Social Care,Services For Older People - 65 And Over,Third Party Payments,Home Care,568,01-Mar-2017,1703-00431,0.00,338.25,R,Affinity Trust,NO
Http://opendatacommunities.org/id/metropolitan-district-council/leeds,Leeds City Council,31/03/2017,Adult Social Care,Services For Older People - 65 And Over,Third Party Payments,Home Care,568,01-Mar-2017,1703-00432,0.00,330.00,R,Affinity Trust,NO
Http://opendatacommunities.org/id/metropolitan-district-council/leeds,Leeds City Council as Accountable Body,31/03/2017,Social Services Pooled Budgets,Jcs For People With Learning Disabilitie,Third Party Payments,Home Care,568,01-Mar-2017,1703-00433,0.00,-476.16,R,Affinity Trust,NO
Http://opendatacommunities.org/id/metropolitan-district-council/leeds,Leeds City Council,31/03/2017,Adult Social Care,Services For Older People Under 65 P/Dis,Third Party Payments,Home Care,568,03-Mar-2017,1703-00434,0.00,134.56,R,Affinity Trust,NO
Http://opendatacommunities.org/id/metropolitan-district-council/leeds,Leeds City Council,31/03/2017,Adult Social Care,Services For Older People Under 65 P/Dis,Third Party Payments,Home Care,568,03-Mar-2017,1703-00435,0.00,302.76,R,Affinity Trust,NO
Http://opendatacommunities.org/id/metropolitan-district-council/leeds,Leeds City Council,31/03/2017,Adult Social Care,Services For Older People Under 65 P/Dis,Third Party Payments,Home Care,568,03-Mar-2017,1703-00436,0.00,526.68,R,Affinity Trust,NO
Http://opendatacommunities.org/id/metropolitan-district-council/leeds,Leeds City Council,31/03/2017,Adult Social Care,Services For Older People Under 65 P/Dis,Third Party Payments,Home Care,568,08-Mar-2017,1703-00437,0.00,727.09,R,Affinity Trust,NO
Http://opendatacommunities.org/id/metropolitan-district-council/leeds,Leeds City Council,31/03/2017,Adult Social Care,Services For Adults Under 65 Mental/Dis,Third Party Payments,Home Care,568,08-Mar-2017,1703-00438,0.00,319.60,R,Affinity Trust,NO
Http://opendatacommunities.org/id/metropolitan-district-council/leeds,Leeds City Council,31/03/2017,Adult Social Care,Services For Older People - 65 And Over,Third Party Payments,Home Care,568,08-Mar-2017,1703-00439,0.00,1009.20,R,Affinity Trust,NO
Http://opendatacommunities.org/id/metropolitan-district-council/leeds,Leeds City Council as Accountable Body,31/03/2017,Social Services Pooled Budgets,Jcs For People With Learning Disabilitie,Third Party Payments,Home Care,568,23-Mar-2017,1703-00440,0.00,2882.04,R,Affinity Trust,NO
Http://opendatacommunities.org/id/metropolitan-district-council/leeds,Leeds City Council as Accountable Body,31/03/2017,Social Services Pooled Budgets,Jcs For People With Learning Disabilitie,Third Party Payments,Day Centre,564,24-Mar-2017,1703-00441,0.00,1440.00,R,Affinity Trust,NO
Http://opendatacommunities.org/id/metropolitan-district-council/leeds,Leeds City Council as Accountable Body,31/03/2017,Social Services Pooled Budgets,Jcs For People With Learning Disabilitie,Third Party Payments,Home Care,568,24-Mar-2017,1703-00442,0.00,962.64,R,Affinity Trust,NO
Http://opendatacommunities.org/id/metropolitan-district-council/leeds,Leeds City Council as Accountable Body,31/03/2017,Social Services Pooled Budgets,Jcs For People With Learning Disabilitie,Third Party Payments,Home Care,568,24-Mar-2017,1703-00443,0.00,2692.21,R,Affinity Trust,NO
Http://opendatacommunities.org/id/metropolitan-district-council/leeds,Leeds City Council as Accountable Body,31/03/2017,Social Services Pooled Budgets,Jcs For People With Learning Disabilitie,Third Party Payments,Day Centre,564,24-Mar-2017,1703-00444,0.00,1440.00,R,Affinity Trust,NO
Http://opendatacommunities.org/id/metropolitan-district-council/leeds,Leeds City Council as Accountable Body,31/03/2017,Social Services Pooled Budgets,Jcs For People With Learning Disabilitie,Third Party Payments,Home Care,568,24-Mar-2017,1703-00445,0.00,1050.66,R,Affinity Trust,NO
Http://opendatacommunities.org/id/metropolitan-district-council/leeds,Leeds City Council as Accountable Body,31/03/2017,Social Services Pooled Budgets,Jcs For People With Learning Disabilitie,Third Party Payments,Day Centre,564,24-Mar-2017,1703-00446,0.00,1080.00,R,Affinity Trust,NO
Http://opendatacommunities.org/id/metropolitan-district-council/leeds,Leeds City Council as Accountable Body,31/03/2017,Social Services Pooled Budgets,Jcs For People With Learning Disabilitie,Third Party Payments,Home Care,568,27-Mar-2017,1703-00447,0.00,479.40,R,Affinity Trust,NO
Http://opendatacommunities.org/id/metropolitan-district-council/leeds,Leeds City Council as Accountable Body,31/03/2017,Social Services Pooled Budgets,Jcs For People With Learning Disabilitie,Third Party Payments,Home Care,568,27-Mar-2017,1703-00448,0.00,862.92,R,Affinity Trust,NO
Http://opendatacommunities.org/id/metropolitan-district-council/leeds,Leeds City Council as Accountable Body,31/03/2017,Social Services Pooled Budgets,Jcs For People With Learning Disabilitie,Third Party Payments,Home Care,568,27-Mar-2017,1703-00449,0.00,862.92,R,Affinity Trust,NO
Http://opendatacommunities.org/id/metropolitan-district-council/leeds,Leeds City Council as Accountable Body,31/03/2017,Social Services Pooled Budgets,Jcs For People With Learning Disabilitie,Third Party Payments,Home Care,568,27-Mar-2017,1703-00450,0.00,898.88,R,Affinity Trust,NO
Http://opendatacommunities.org/id/metropolitan-district-council/leeds,Leeds City Council as Accountable Body,31/03/2017,Social Services Pooled Budgets,Jcs For People With Learning Disabilitie,Third Party Payments,Home Care,568,27-Mar-2017,1703-00451,0.00,225.00,R,Affinity Trust,NO
Http://opendatacommunities.org/id/metropolitan-district-council/leeds,Leeds City Council as Accountable Body,31/03/2017,Social Services Pooled Budgets,Jcs For People With Learning Disabilitie,Third Party Payments,Home Care,568,27-Mar-2017,1703-00452,0.00,1342.32,R,Affinity Trust,NO
Http://opendatacommunities.org/id/metropolitan-district-council/leeds,Leeds City Council as Accountable Body,31/03/2017,Social Services Pooled Budgets,Jcs For People With Learning Disabilitie,Third Party Payments,Home Care,568,27-Mar-2017,1703-00453,0.00,300.00,R,Affinity Trust,NO
Http://opendatacommunities.org/id/metropolitan-district-council/leeds,Leeds City Council as Accountable Body,31/03/2017,Social Services Pooled Budgets,Jcs For People With Learning Disabilitie,Third Party Payments,Home Care,568,27-Mar-2017,1703-00454,0.00,639.20,R,Affinity Trust,NO
Http://opendatacommunities.org/id/metropolitan-district-council/leeds,Leeds City Council as Accountable Body,31/03/2017,Social Services Pooled Budgets,Jcs For People With Learning Disabilitie,Third Party Payments,Home Care,568,27-Mar-2017,1703-00455,0.00,408.00,R,Affinity Trust,NO
Http://opendatacommunities.org/id/metropolitan-district-council/leeds,Leeds City Council as Accountable Body,31/03/2017,Social Services Pooled Budgets,Jcs For People With Learning Disabilitie,Third Party Payments,Home Care,568,27-Mar-2017,1703-00456,0.00,1150.56,R,Affinity Trust,NO
Http://opendatacommunities.org/id/metropolitan-district-council/leeds,Leeds City Council as Accountable Body,31/03/2017,Social Services Pooled Budgets,Jcs For People With Learning Disabilitie,Third Party Payments,Home Care,568,27-Mar-2017,1703-00457,0.00,191.76,R,Affinity Trust,NO
Http://opendatacommunities.org/id/metropolitan-district-council/leeds,Leeds City Council as Accountable Body,31/03/2017,Social Services Pooled Budgets,Jcs For People With Learning Disabilitie,Third Party Payments,Home Care,568,27-Mar-2017,1703-00458,0.00,934.83,R,Affinity Trust,NO
Http://opendatacommunities.org/id/metropolitan-district-council/leeds,Leeds City Council as Accountable Body,31/03/2017,Social Services Pooled Budgets,Jcs For People With Learning Disabilitie,Third Party Payments,Day Centre,564,27-Mar-2017,1703-00459,0.00,416.64,R,Affinity Trust,NO
Http://opendatacommunities.org/id/metropolitan-district-council/leeds,Leeds City Council as Accountable Body,31/03/2017,Social Services Pooled Budgets,Jcs For People With Learning Disabilitie,Third Party Payments,Home Care,568,27-Mar-2017,1703-00460,0.00,191.76,R,Affinity Trust,NO
Http://opendatacommunities.org/id/metropolitan-district-council/leeds,Leeds City Council as Accountable Body,31/03/2017,Social Services Pooled Budgets,Jcs For People With Learning Disabilitie,Third Party Payments,Home Care,568,27-Mar-2017,1703-00461,0.00,1518.00,R,Affinity Trust,NO
Http://opendatacommunities.org/id/metropolitan-district-council/leeds,Leeds City Council as Accountable Body,31/03/2017,Social Services Pooled Budgets,Jcs For People With Learning Disabilitie,Third Party Payments,Home Care,568,27-Mar-2017,1703-00462,0.00,1211.04,R,Affinity Trust,NO
Http://opendatacommunities.org/id/metropolitan-district-council/leeds,Leeds City Council as Accountable Body,31/03/2017,Social Services Pooled Budgets,Jcs For People With Learning Disabilitie,Third Party Payments,Home Care,568,27-Mar-2017,1703-00463,0.00,1174.53,R,Affinity Trust,NO
Http://opendatacommunities.org/id/metropolitan-district-council/leeds,Leeds City Council as Accountable Body,31/03/2017,Social Services Pooled Budgets,Jcs For People With Learning Disabilitie,Third Party Payments,Home Care,568,27-Mar-2017,1703-00464,0.00,391.51,R,Affinity Trust,NO
Http://opendatacommunities.org/id/metropolitan-district-council/leeds,Leeds City Council as Accountable Body,31/03/2017,Social Services Pooled Budgets,Jcs For People With Learning Disabilitie,Third Party Payments,Home Care,568,27-Mar-2017,1703-00465,0.00,479.40,R,Affinity Trust,NO
Http://opendatacommunities.org/id/metropolitan-district-council/leeds,Leeds City Council as Accountable Body,31/03/2017,Social Services Pooled Budgets,Jcs For People With Learning Disabilitie,Third Party Payments,Home Care,568,27-Mar-2017,1703-00466,0.00,408.00,R,Affinity Trust,NO
Http://opendatacommunities.org/id/metropolitan-district-council/leeds,Leeds City Council as Accountable Body,31/03/2017,Social Services Pooled Budgets,Jcs For People With Learning Disabilitie,Third Party Payments,Home Care,568,27-Mar-2017,1703-00467,0.00,1150.56,R,Affinity Trust,NO
Http://opendatacommunities.org/id/metropolitan-district-council/leeds,Leeds City Council as Accountable Body,31/03/2017,Social Services Pooled Budgets,Jcs For People With Learning Disabilitie,Third Party Payments,Home Care,568,27-Mar-2017,1703-00468,0.00,2860.42,R,Affinity Trust,NO
Http://opendatacommunities.org/id/metropolitan-district-council/leeds,Leeds City Council as Accountable Body,31/03/2017,Social Services Pooled Budgets,Jcs For People With Learning Disabilitie,Third Party Payments,Home Care,568,27-Mar-2017,1703-00469,0.00,408.64,R,Affinity Trust,NO
Http://opendatacommunities.org/id/metropolitan-district-council/leeds,Leeds City Council as Accountable Body,31/03/2017,Social Services Pooled Budgets,Jcs For People With Learning Disabilitie,Third Party Payments,Home Care,568,27-Mar-2017,1703-00470,0.00,941.92,R,Affinity Trust,NO
Http://opendatacommunities.org/id/metropolitan-district-council/leeds,Leeds City Council as Accountable Body,31/03/2017,Social Services Pooled Budgets,Jcs For People With Learning Disabilitie,Third Party Payments,Home Care,568,27-Mar-2017,1703-00471,0.00,191.76,R,Affinity Trust,NO
Http://opendatacommunities.org/id/metropolitan-district-council/leeds,Leeds City Council as Accountable Body,31/03/2017,Social Services Pooled Budgets,Jcs For People With Learning Disabilitie,Third Party Payments,Day Centre,564,27-Mar-2017,1703-00472,0.00,885.33,R,Affinity Trust,NO
Http://opendatacommunities.org/id/metropolitan-district-council/leeds,Leeds City Council as Accountable Body,31/03/2017,Social Services Pooled Budgets,Jcs For People With Learning Disabilitie,Third Party Payments,Home Care,568,27-Mar-2017,1703-00473,0.00,1050.00,R,Affinity Trust,NO
Http://opendatacommunities.org/id/metropolitan-district-council/leeds,Leeds City Council as Accountable Body,31/03/2017,Social Services Pooled Budgets,Jcs For People With Learning Disabilitie,Third Party Payments,Home Care,568,27-Mar-2017,1703-00474,0.00,648.96,R,Affinity Trust,NO
Http://opendatacommunities.org/id/metropolitan-district-council/leeds,Leeds City Council as Accountable Body,31/03/2017,Social Services Pooled Budgets,Jcs For People With Learning Disabilitie,Third Party Payments,Home Care,568,27-Mar-2017,1703-00475,0.00,1560.00,R,Affinity Trust,NO
Http://opendatacommunities.org/id/metropolitan-district-council/leeds,Leeds City Council as Accountable Body,31/03/2017,Social Services Pooled Budgets,Jcs For People With Learning Disabilitie,Third Party Payments,Home Care,568,27-Mar-2017,1703-00476,0.00,1430.22,R,Affinity Trust,NO
Http://opendatacommunities.org/id/metropolitan-district-council/leeds,Leeds City Council as Accountable Body,31/03/2017,Social Services Pooled Budgets,Jcs For People With Learning Disabilitie,Third Party Payments,Day Centre,564,27-Mar-2017,1703-00477,0.00,938.56,R,Affinity Trust,NO
Http://opendatacommunities.org/id/metropolitan-district-council/leeds,Leeds City Council as Accountable Body,31/03/2017,Social Services Pooled Budgets,Jcs For People With Learning Disabilitie,Third Party Payments,Home Care,568,27-Mar-2017,1703-00478,0.00,525.72,R,Affinity Trust,NO
Http://opendatacommunities.org/id/metropolitan-district-council/leeds,Leeds City Council as Accountable Body,31/03/2017,Social Services Pooled Budgets,Jcs For People With Learning Disabilitie,Third Party Payments,Home Care,568,27-Mar-2017,1703-00479,0.00,1273.86,R,Affinity Trust,NO
Http://opendatacommunities.org/id/metropolitan-district-council/leeds,Leeds City Council as Accountable Body,31/03/2017,Social Services Pooled Budgets,Jcs For People With Learning Disabilitie,Third Party Payments,Home Care,568,27-Mar-2017,1703-00480,0.00,703.92,R,Affinity Trust,NO
Http://opendatacommunities.org/id/metropolitan-district-council/leeds,Leeds City Council as Accountable Body,31/03/2017,Social Services Pooled Budgets,Jcs For People With Learning Disabilitie,Third Party Payments,Home Care,568,27-Mar-2017,1703-00481,0.00,966.56,R,Affinity Trust,NO
Http://opendatacommunities.org/id/metropolitan-district-council/leeds,Leeds City Council as Accountable Body,31/03/2017,Social Services Pooled Budgets,Jcs For People With Learning Disabilitie,Third Party Payments,Home Care,568,27-Mar-2017,1703-00482,0.00,1609.29,R,Affinity Trust,NO
Http://opendatacommunities.org/id/metropolitan-district-council/leeds,Leeds City Council as Accountable Body,31/03/2017,Social Services Pooled Budgets,Jcs For People With Learning Disabilitie,Third Party Payments,Home Care,568,27-Mar-2017,1703-00483,0.00,1005.60,R,Affinity Trust,NO
Http://opendatacommunities.org/id/metropolitan-district-council/leeds,Leeds City Council as Accountable Body,31/03/2017,Social Services Pooled Budgets,Jcs For People With Learning Disabilitie,Third Party Payments,Home Care,568,27-Mar-2017,1703-00484,0.00,360.00,R,Affinity Trust,NO
Http://opendatacommunities.org/id/metropolitan-district-council/leeds,Leeds City Council as Accountable Body,31/03/2017,Social Services Pooled Budgets,Jcs For People With Learning Disabilitie,Third Party Payments,Day Centre,564,27-Mar-2017,1703-00485,0.00,639.54,R,Affinity Trust,NO
Http://opendatacommunities.org/id/metropolitan-district-council/leeds,Leeds City Council as Accountable Body,31/03/2017,Social Services Pooled Budgets,Jcs For People With Learning Disabilitie,Third Party Payments,Day Centre,564,27-Mar-2017,1703-00486,0.00,2346.40,R,Affinity Trust,NO
Http://opendatacommunities.org/id/metropolitan-district-council/leeds,Leeds City Council as Accountable Body,31/03/2017,Social Services Pooled Budgets,Jcs For People With Learning Disabilitie,Third Party Payments,Day Centre,564,27-Mar-2017,1703-00487,0.00,1217.97,R,Affinity Trust,NO
Http://opendatacommunities.org/id/metropolitan-district-council/leeds,Leeds City Council as Accountable Body,31/03/2017,Social Services Pooled Budgets,Jcs For People With Learning Disabilitie,Third Party Payments,Day Centre,564,27-Mar-2017,1703-00488,0.00,1040.55,R,Affinity Trust,NO
Http://opendatacommunities.org/id/metropolitan-district-council/leeds,Leeds City Council as Accountable Body,31/03/2017,Social Services Pooled Budgets,Jcs For People With Learning Disabilitie,Third Party Payments,Home Care,568,27-Mar-2017,1703-00489,0.00,1050.00,R,Affinity Trust,NO
Http://opendatacommunities.org/id/metropolitan-district-council/leeds,Leeds City Council as Accountable Body,31/03/2017,Social Services Pooled Budgets,Jcs For People With Learning Disabilitie,Third Party Payments,Home Care,568,27-Mar-2017,1703-00490,0.00,668.52,R,Affinity Trust,NO
Http://opendatacommunities.org/id/metropolitan-district-council/leeds,Leeds City Council as Accountable Body,31/03/2017,Social Services Pooled Budgets,Jcs For People With Learning Disabilitie,Third Party Payments,Home Care,568,27-Mar-2017,1703-00491,0.00,1560.00,R,Affinity Trust,NO
Http://opendatacommunities.org/id/metropolitan-district-council/leeds,Leeds City Council as Accountable Body,31/03/2017,Social Services Pooled Budgets,Jcs For People With Learning Disabilitie,Third Party Payments,Home Care,568,27-Mar-2017,1703-00492,0.00,1730.28,R,Affinity Trust,NO
Http://opendatacommunities.org/id/metropolitan-district-council/leeds,Leeds City Council as Accountable Body,31/03/2017,Social Services Pooled Budgets,Jcs For People With Learning Disabilitie,Third Party Payments,Day Centre,564,27-Mar-2017,1703-00493,0.00,938.56,R,Affinity Trust,NO
Http://opendatacommunities.org/id/metropolitan-district-council/leeds,Leeds City Council as Accountable Body,31/03/2017,Social Services Pooled Budgets,Jcs For People With Learning Disabilitie,Third Party Payments,Home Care,568,27-Mar-2017,1703-00494,0.00,566.16,R,Affinity Trust,NO
Http://opendatacommunities.org/id/metropolitan-district-council/leeds,Leeds City Council as Accountable Body,31/03/2017,Social Services Pooled Budgets,Jcs For People With Learning Disabilitie,Third Party Payments,Home Care,568,27-Mar-2017,1703-00495,0.00,1003.81,R,Affinity Trust,NO
Http://opendatacommunities.org/id/metropolitan-district-council/leeds,Leeds City Council as Accountable Body,31/03/2017,Social Services Pooled Budgets,Jcs For People With Learning Disabilitie,Third Party Payments,Home Care,568,27-Mar-2017,1703-00496,0.00,754.20,R,Affinity Trust,NO
Http://opendatacommunities.org/id/metropolitan-district-council/leeds,Leeds City Council as Accountable Body,31/03/2017,Social Services Pooled Budgets,Jcs For People With Learning Disabilitie,Third Party Payments,Home Care,568,27-Mar-2017,1703-00497,0.00,1130.43,R,Affinity Trust,NO
Http://opendatacommunities.org/id/metropolitan-district-council/leeds,Leeds City Council as Accountable Body,31/03/2017,Social Services Pooled Budgets,Jcs For People With Learning Disabilitie,Third Party Payments,Home Care,568,27-Mar-2017,1703-00498,0.00,1741.32,R,Affinity Trust,NO
Http://opendatacommunities.org/id/metropolitan-district-council/leeds,Leeds City Council as Accountable Body,31/03/2017,Social Services Pooled Budgets,Jcs For People With Learning Disabilitie,Third Party Payments,Home Care,568,27-Mar-2017,1703-00499,0.00,1005.60,R,Affinity Trust,NO
Http://opendatacommunities.org/id/metropolitan-district-council/leeds,Leeds City Council as Accountable Body,31/03/2017,Social Services Pooled Budgets,Jcs For People With Learning Disabilitie,Third Party Payments,Home Care,568,27-Mar-2017,1703-00500,0.00,360.00,R,Affinity Trust,NO
Http://opendatacommunities.org/id/metropolitan-district-council/leeds,Leeds City Council as Accountable Body,31/03/2017,Social Services Pooled Budgets,Jcs For People With Learning Disabilitie,Third Party Payments,Day Centre,564,27-Mar-2017,1703-00501,0.00,648.95,R,Affinity Trust,NO
Http://opendatacommunities.org/id/metropolitan-district-council/leeds,Leeds City Council as Accountable Body,31/03/2017,Social Services Pooled Budgets,Jcs For People With Learning Disabilitie,Third Party Payments,Day Centre,564,27-Mar-2017,1703-00502,0.00,2346.40,R,Affinity Trust,NO
Http://opendatacommunities.org/id/metropolitan-district-council/leeds,Leeds City Council as Accountable Body,31/03/2017,Social Services Pooled Budgets,Jcs For People With Learning Disabilitie,Third Party Payments,Day Centre,564,27-Mar-2017,1703-00503,0.00,1115.28,R,Affinity Trust,NO
Http://opendatacommunities.org/id/metropolitan-district-council/leeds,Leeds City Council as Accountable Body,31/03/2017,Social Services Pooled Budgets,Jcs For People With Learning Disabilitie,Third Party Payments,Home Care,568,27-Mar-2017,1703-00504,0.00,910.86,R,Affinity Trust,NO
Http://opendatacommunities.org/id/metropolitan-district-council/leeds,Leeds City Council as Accountable Body,31/03/2017,Social Services Pooled Budgets,Jcs For People With Learning Disabilitie,Third Party Payments,Home Care,568,27-Mar-2017,1703-00505,0.00,543.32,R,Affinity Trust,NO
Http://opendatacommunities.org/id/metropolitan-district-council/leeds,Leeds City Council as Accountable Body,31/03/2017,Social Services Pooled Budgets,Jcs For People With Learning Disabilitie,Third Party Payments,Home Care,568,27-Mar-2017,1703-00506,0.00,300.00,R,Affinity Trust,NO
Http://opendatacommunities.org/id/metropolitan-district-council/leeds,Leeds City Council as Accountable Body,31/03/2017,Social Services Pooled Budgets,Jcs For People With Learning Disabilitie,Third Party Payments,Home Care,568,27-Mar-2017,1703-00507,0.00,1342.32,R,Affinity Trust,NO
Http://opendatacommunities.org/id/metropolitan-district-council/leeds,Leeds City Council as Accountable Body,31/03/2017,Social Services Pooled Budgets,Jcs For People With Learning Disabilitie,Third Party Payments,Day Centre,564,27-Mar-2017,1703-00508,0.00,416.64,R,Affinity Trust,NO
Http://opendatacommunities.org/id/metropolitan-district-council/leeds,Leeds City Council as Accountable Body,31/03/2017,Social Services Pooled Budgets,Jcs For People With Learning Disabilitie,Third Party Payments,Home Care,568,27-Mar-2017,1703-00509,0.00,735.08,R,Affinity Trust,NO
Http://opendatacommunities.org/id/metropolitan-district-council/leeds,Leeds City Council as Accountable Body,31/03/2017,Social Services Pooled Budgets,Jcs For People With Learning Disabilitie,Third Party Payments,Home Care,568,27-Mar-2017,1703-00510,0.00,1155.00,R,Affinity Trust,NO
Http://opendatacommunities.org/id/metropolitan-district-council/leeds,Leeds City Council as Accountable Body,31/03/2017,Social Services Pooled Budgets,Jcs For People With Learning Disabilitie,Third Party Payments,Home Care,568,27-Mar-2017,1703-00511,0.00,1211.04,R,Affinity Trust,NO
Http://opendatacommunities.org/id/metropolitan-district-council/leeds,Leeds City Council as Accountable Body,31/03/2017,Social Services Pooled Budgets,Jcs For People With Learning Disabilitie,Third Party Payments,Home Care,568,27-Mar-2017,1703-00512,0.00,1158.55,R,Affinity Trust,NO
Http://opendatacommunities.org/id/metropolitan-district-council/leeds,Leeds City Council as Accountable Body,31/03/2017,Social Services Pooled Budgets,Jcs For People With Learning Disabilitie,Third Party Payments,Home Care,568,27-Mar-2017,1703-00513,0.00,471.41,R,Affinity Trust,NO
Http://opendatacommunities.org/id/metropolitan-district-council/leeds,Leeds City Council as Accountable Body,31/03/2017,Social Services Pooled Budgets,Jcs For People With Learning Disabilitie,Third Party Payments,Home Care,568,27-Mar-2017,1703-00514,0.00,639.20,R,Affinity Trust,NO
Http://opendatacommunities.org/id/metropolitan-district-council/leeds,Leeds City Council as Accountable Body,31/03/2017,Social Services Pooled Budgets,Jcs For People With Learning Disabilitie,Third Party Payments,Home Care,568,27-Mar-2017,1703-00515,0.00,306.00,R,Affinity Trust,NO
Http://opendatacommunities.org/id/metropolitan-district-council/leeds,Leeds City Council as Accountable Body,31/03/2017,Social Services Pooled Budgets,Jcs For People With Learning Disabilitie,Third Party Payments,Home Care,568,27-Mar-2017,1703-00516,0.00,1142.57,R,Affinity Trust,NO
Http://opendatacommunities.org/id/metropolitan-district-council/leeds,Leeds City Council as Accountable Body,31/03/2017,Social Services Pooled Budgets,Jcs For People With Learning Disabilitie,Third Party Payments,Home Care,568,27-Mar-2017,1703-00517,0.00,2447.57,R,Affinity Trust,NO
Http://opendatacommunities.org/id/metropolitan-district-council/leeds,Leeds City Council as Accountable Body,31/03/2017,Social Services Pooled Budgets,Jcs For People With Learning Disabilitie,Third Party Payments,Home Care,568,27-Mar-2017,1703-00518,0.00,204.32,R,Affinity Trust,NO
Http://opendatacommunities.org/id/metropolitan-district-council/leeds,Leeds City Council as Accountable Body,31/03/2017,Social Services Pooled Budgets,Jcs For People With Learning Disabilitie,Third Party Payments,Home Care,568,27-Mar-2017,1703-00519,0.00,824.18,R,Affinity Trust,NO
Http://opendatacommunities.org/id/metropolitan-district-council/leeds,Leeds City Council as Accountable Body,31/03/2017,Social Services Pooled Budgets,Jcs For People With Learning Disabilitie,Third Party Payments,Home Care,568,27-Mar-2017,1703-00520,0.00,255.69,R,Affinity Trust,NO
Http://opendatacommunities.org/id/metropolitan-district-council/leeds,Leeds City Council as Accountable Body,31/03/2017,Social Services Pooled Budgets,Jcs For People With Learning Disabilitie,Third Party Payments,Home Care,568,27-Mar-2017,1703-00521,0.00,1038.70,R,Affinity Trust,NO
Http://opendatacommunities.org/id/metropolitan-district-council/leeds,Leeds City Council as Accountable Body,31/03/2017,Social Services Pooled Budgets,Jcs For People With Learning Disabilitie,Third Party Payments,Home Care,568,27-Mar-2017,1703-00522,0.00,319.60,R,Affinity Trust,NO
Http://opendatacommunities.org/id/metropolitan-district-council/leeds,Leeds City Council as Accountable Body,31/03/2017,Social Services Pooled Budgets,Jcs For People With Learning Disabilitie,Third Party Payments,Day Centre,564,27-Mar-2017,1703-00523,0.00,720.00,R,Affinity Trust,NO
Http://opendatacommunities.org/id/metropolitan-district-council/leeds,Leeds City Council as Accountable Body,31/03/2017,Social Services Pooled Budgets,Jcs For People With Learning Disabilitie,Third Party Payments,Home Care,568,27-Mar-2017,1703-00524,0.00,787.50,R,Affinity Trust,NO
Http://opendatacommunities.org/id/metropolitan-district-council/leeds,Leeds City Council as Accountable Body,31/03/2017,Social Services Pooled Budgets,Jcs For People With Learning Disabilitie,Third Party Payments,Home Care,568,27-Mar-2017,1703-00525,0.00,456.54,R,Affinity Trust,NO
Http://opendatacommunities.org/id/metropolitan-district-council/leeds,Leeds City Council as Accountable Body,31/03/2017,Social Services Pooled Budgets,Jcs For People With Learning Disabilitie,Third Party Payments,Home Care,568,27-Mar-2017,1703-00526,0.00,1170.00,R,Affinity Trust,NO
Http://opendatacommunities.org/id/metropolitan-district-council/leeds,Leeds City Council as Accountable Body,31/03/2017,Social Services Pooled Budgets,Jcs For People With Learning Disabilitie,Third Party Payments,Home Care,568,27-Mar-2017,1703-00527,0.00,1047.93,R,Affinity Trust,NO
Http://opendatacommunities.org/id/metropolitan-district-council/leeds,Leeds City Council,31/03/2017,Adult Social Care,Services For Older People Under 65 P/Dis,Third Party Payments,Home Care,568,28-Mar-2017,1703-00528,0.00,134.56,R,Affinity Trust,NO
Http://opendatacommunities.org/id/metropolitan-district-council/leeds,Leeds City Council,31/03/2017,Adult Social Care,Services For Older People Under 65 P/Dis,Third Party Payments,Home Care,568,28-Mar-2017,1703-00529,0.00,403.68,R,Affinity Trust,NO
Http://opendatacommunities.org/id/metropolitan-district-council/leeds,Leeds City Council,31/03/2017,Childrens Services,Safeguarding Targeted & Specialist,Third Party Payments,Section 17,551,29-Mar-2017,1703-00530,0.00,1117.50,R,Affinity Trust,NO
Http://opendatacommunities.org/id/metropolitan-district-council/leeds,Leeds City Council,31/03/2017,Childrens Services,Safeguarding Targeted & Specialist,Third Party Payments,Section 17,551,29-Mar-2017,1703-00531,0.00,127.50,R,Affinity Trust,NO
Http://opendatacommunities.org/id/metropolitan-district-council/leeds,Leeds City Council,31/03/2017,Adult Social Care,Services For Older People - 65 And Over,Third Party Payments,Home Care,568,31-Mar-2017,1703-00532,0.00,319.60,R,Affinity Trust,NO
Http://opendatacommunities.org/id/metropolitan-district-council/leeds,Leeds City Council,31/03/2017,Adult Social Care,Services For Older People Under 65 P/Dis,Third Party Payments,Home Care,568,31-Mar-2017,1703-00533,0.00,526.68,R,Affinity Trust,NO
Http://opendatacommunities.org/id/metropolitan-district-council/leeds,Leeds City Council as Accountable Body,31/03/2017,Social Services Pooled Budgets,Jcs For People With Learning Disabilitie,Third Party Payments,Sheltered Accommodation,569,08-Mar-2017,1703-00534,0.00,288981.73,R,Affinity Trust North Divisional Office,NO
Http://opendatacommunities.org/id/metropolitan-district-council/leeds,Leeds City Council,31/03/2017,Adult Social Care,Social Services Support Services,Employees,Training Costs,71,22-Mar-2017,1703-00535,0.00,885.00,R,Affleck Care Ltd,NO
Http://opendatacommunities.org/id/metropolitan-district-council/leeds,Leeds City Council,31/03/2017,Environment & Housing,Parks And Countryside ,Transport,Hire Of Movable Plant & Machinery,315,31-Jan-2017,1703-00536,0.00,4940.00,R,Afi Uplift Ltd,YES
Http://opendatacommunities.org/id/metropolitan-district-council/leeds,Leeds City Council,31/03/2017,Public Health,Public Health,Third Party Payments,Services Rendered By Voluntary Sector,505,10-Mar-2017,1703-00537,0.00,2710.00,R,Age Uk Leeds,NO
Http://opendatacommunities.org/id/metropolitan-district-council/leeds,Leeds City Council,31/03/2017,Public Health,Public Health,Third Party Payments,Services Rendered By Voluntary Sector,505,10-Mar-2017,1703-00538,0.00,2710.00,R,Age Uk Leeds,NO
Http://opendatacommunities.org/id/metropolitan-district-council/leeds,Leeds City Council,31/03/2017,Childrens Services,Learning Skills & Universal,Supplies and Services,Office Consumables,210,01-Mar-2017,1703-00539,0.00,1515.73,R,Age Uk Leeds Enterprises,NO
Http://opendatacommunities.org/id/metropolitan-district-council/leeds,Leeds City Council,31/03/2017,City Development,Libraries  Arts & Heritage,Supplies and Services,Bought In Professional Services,277,23-Mar-2017,1703-00540,0.00,2000.00,R,Agere Learning,NO
Http://opendatacommunities.org/id/metropolitan-district-council/leeds,Leeds City Council,31/03/2017,Adult Social Care,Services For Older People Under 65 P/Dis,Third Party Payments,Residential,580,08-Mar-2017,1703-00541,0.00,5408.28,R,Agricola House,NO
Http://opendatacommunities.org/id/metropolitan-district-council/leeds,Leeds City Council,31/03/2017,Central & Corporate,Legal Services,Support Services,Legal Disbursements,411,13-Mar-2017,1703-00542,0.00,120.00,R,Ahead Partnership Ltd,NO
Http://opendatacommunities.org/id/metropolitan-district-council/leeds,Leeds City Council,31/03/2017,Childrens Services,Learning Skills & Universal,Supplies and Services,Teaching Materials,202,13-Mar-2017,1703-00543,0.00,225.00,R,Aid Training & Operations Ltd,NO
Http://opendatacommunities.org/id/metropolitan-district-council/leeds,Leeds City Council as Accountable Body,31/03/2017,Social Services Pooled Budgets,Leeds Community Equip Store Pooled Budgt,Supplies and Services,Other Equipment,203,02-Mar-2017,1703-00544,0.00,-189.00,R,Aidapt Bathrooms Ltd,NO
Http://opendatacommunities.org/id/metropolitan-district-council/leeds,Leeds City Council as Accountable Body,31/03/2017,Social Services Pooled Budgets,Leeds Community Equip Store Pooled Budgt,Supplies and Services,Other Equipment,203,02-Mar-2017,1703-00545,0.00,600.00,R,Aidapt Bathrooms Ltd,NO
Http://opendatacommunities.org/id/metropolitan-district-council/leeds,Leeds City Council as Accountable Body,31/03/2017,Social Services Pooled Budgets,Leeds Community Equip Store Pooled Budgt,Supplies and Services,Other Equipment,203,09-Mar-2017,1703-00546,0.00,1041.30,R,Aidapt Bathrooms Ltd,NO
Http://opendatacommunities.org/id/metropolitan-district-council/leeds,Leeds City Council as Accountable Body,31/03/2017,Social Services Pooled Budgets,Leeds Community Equip Store Pooled Budgt,Supplies and Services,Other Equipment,203,10-Mar-2017,1703-00547,0.00,168.80,R,Aidapt Bathrooms Ltd,NO
Http://opendatacommunities.org/id/metropolitan-district-council/leeds,Leeds City Council as Accountable Body,31/03/2017,Social Services Pooled Budgets,Leeds Community Equip Store Pooled Budgt,Supplies and Services,Other Equipment,203,15-Mar-2017,1703-00548,0.00,559.00,R,Aidapt Bathrooms Ltd,NO
Http://opendatacommunities.org/id/metropolitan-district-council/leeds,Leeds City Council as Accountable Body,31/03/2017,Social Services Pooled Budgets,Leeds Community Equip Store Pooled Budgt,Supplies and Services,Other Equipment,203,16-Mar-2017,1703-00549,0.00,62.00,R,Aidapt Bathrooms Ltd,NO
Http://opendatacommunities.org/id/metropolitan-district-council/leeds,Leeds City Council as Accountable Body,31/03/2017,Social Services Pooled Budgets,Leeds Community Equip Store Pooled Budgt,Supplies and Services,Other Equipment,203,16-Mar-2017,1703-00550,0.00,62.00,R,Aidapt Bathrooms Ltd,NO
Http://opendatacommunities.org/id/metropolitan-district-council/leeds,Leeds City Council as Accountable Body,31/03/2017,Social Services Pooled Budgets,Leeds Community Equip Store Pooled Budgt,Supplies and Services,Other Equipment,203,16-Mar-2017,1703-00551,0.00,267.00,R,Aidapt Bathrooms Ltd,NO
Http://opendatacommunities.org/id/metropolitan-district-council/leeds,Leeds City Council as Accountable Body,31/03/2017,Social Services Pooled Budgets,Leeds Community Equip Store Pooled Budgt,Supplies and Services,Other Equipment,203,23-Mar-2017,1703-00552,0.00,730.50,R,Aidapt Bathrooms Ltd,NO
Http://opendatacommunities.org/id/metropolitan-district-council/leeds,Leeds City Council as Accountable Body,31/03/2017,Social Services Pooled Budgets,Jcs For People With Learning Disabilitie,Supplies and Services,Other Equipment,203,10-Mar-2017,1703-00553,0.00,945.00,R,Aidservice Ltd,NO
Http://opendatacommunities.org/id/metropolitan-district-council/leeds,Leeds City Council as Accountable Body,31/03/2017,Social Services Pooled Budgets,Leeds Community Equip Store Pooled Budgt,Supplies and Services,Other Equipment,203,22-Mar-2017,1703-00554,0.00,150.00,R,Aidservice Ltd,NO
Http://opendatacommunities.org/id/metropolitan-district-council/leeds,Leeds City Council as Accountable Body,31/03/2017,Social Services Pooled Budgets,Jcs For People With Learning Disabilitie,Supplies and Services,Other Equipment,203,22-Mar-2017,1703-00555,0.00,149.00,R,Aidservice Ltd,NO
Http://opendatacommunities.org/id/metropolitan-district-council/leeds,Leeds City Council as Accountable Body,31/03/2017,Social Services Pooled Budgets,Jcs For People With Learning Disabilitie,Supplies and Services,Other Equipment,203,22-Mar-2017,1703-00556,0.00,764.00,R,Aidservice Ltd,NO
Http://opendatacommunities.org/id/metropolitan-district-council/leeds,Leeds City Council,31/03/2017,Strategic Landlord,Property and Contracts,Premises,General Maintenance,104,22-Mar-2017,1703-00557,0.00,182.00,R,Aidservice Ltd,NO
Http://opendatacommunities.org/id/metropolitan-district-council/leeds,Leeds City Council,31/03/2017,Citizens and Communities,Communities,Supplies and Services,'Well Being' Large Grants Projects,230,03-Mar-2017,1703-00558,0.00,890.00,R,Aim Education Leeds Limited,NO
Http://opendatacommunities.org/id/metropolitan-district-council/leeds,Leeds City Council,31/03/2017,Childrens Services,Safeguarding Targeted & Specialist,Supplies and Services,Teaching Materials,202,09-Mar-2017,1703-00559,0.00,65.00,R,Aim Project,NO
Http://opendatacommunities.org/id/metropolitan-district-council/leeds,Leeds City Council,31/03/2017,Insurance,Insurance,Supplies and Services,Insurance Claims,248,28-Mar-2017,1703-00560,0.00,113.00,R,REDACTED PERSONAL DATA,NO
Http://opendatacommunities.org/id/metropolitan-district-council/leeds,Leeds City Council,31/03/2017,Environment & Housing,Leeds Building Services,Supplies and Services,Operational Materials,205,03-Mar-2017,1703-00561,0.00,35.13,R,Air Conditioning Accessories,NO
Http://opendatacommunities.org/id/metropolitan-district-council/leeds,Leeds City Council,31/03/2017,Environment & Housing,Leeds Building Services,Supplies and Services,Operational Materials,205,06-Mar-2017,1703-00562,0.00,55.00,R,Air Conditioning Accessories,NO
Http://opendatacommunities.org/id/metropolitan-district-council/leeds,Leeds City Council,31/03/2017,Environment & Housing,Leeds Building Services,Supplies and Services,Operational Materials,205,06-Mar-2017,1703-00563,0.00,132.00,R,Air Conditioning Accessories,NO
Http://opendatacommunities.org/id/metropolitan-district-council/leeds,Leeds City Council,31/03/2017,Environment & Housing,Leeds Building Services,Supplies and Services,Operational Materials,205,13-Mar-2017,1703-00564,0.00,90.48,R,Air Conditioning Accessories,NO
Http://opendatacommunities.org/id/metropolitan-district-council/leeds,Leeds City Council,31/03/2017,Environment & Housing,Leeds Building Services,Supplies and Services,Operational Furniture And Equipment,203,13-Mar-2017,1703-00565,0.00,64.97,R,Air Conditioning Accessories,NO
Http://opendatacommunities.org/id/metropolitan-district-council/leeds,Leeds City Council,31/03/2017,Environment & Housing,Leeds Building Services,Supplies and Services,Operational Materials,205,13-Mar-2017,1703-00566,0.00,55.80,R,Air Conditioning Accessories,NO
Http://opendatacommunities.org/id/metropolitan-district-council/leeds,Leeds City Council,31/03/2017,Environment & Housing,Leeds Building Services,Supplies and Services,Operational Materials,205,13-Mar-2017,1703-00567,0.00,425.04,R,Air Conditioning Accessories,NO
Http://opendatacommunities.org/id/metropolitan-district-council/leeds,Leeds City Council,31/03/2017,Environment & Housing,Leeds Building Services,Supplies and Services,Operational Materials,205,13-Mar-2017,1703-00568,0.00,11.16,R,Air Conditioning Accessories,NO
Http://opendatacommunities.org/id/metropolitan-district-council/leeds,Leeds City Council,31/03/2017,Environment & Housing,Leeds Building Services,Supplies and Services,Operational Materials,205,13-Mar-2017,1703-00569,0.00,55.80,R,Air Conditioning Accessories,NO
Http://opendatacommunities.org/id/metropolitan-district-council/leeds,Leeds City Council,31/03/2017,Environment & Housing,Leeds Building Services,Supplies and Services,Operational Materials,205,13-Mar-2017,1703-00570,0.00,33.48,R,Air Conditioning Accessories,NO
Http://opendatacommunities.org/id/metropolitan-district-council/leeds,Leeds City Council,31/03/2017,Environment & Housing,Leeds Building Services,Supplies and Services,Operational Materials,205,13-Mar-2017,1703-00571,0.00,33.00,R,Air Conditioning Accessories,NO
Http://opendatacommunities.org/id/metropolitan-district-council/leeds,Leeds City Council,31/03/2017,Environment & Housing,Leeds Building Services,Supplies and Services,Operational Materials,205,17-Mar-2017,1703-00572,0.00,75.00,R,Air Conditioning Accessories,NO
Http://opendatacommunities.org/id/metropolitan-district-council/leeds,Leeds City Council,31/03/2017,Environment & Housing,Leeds Building Services,Supplies and Services,Operational Materials,205,17-Mar-2017,1703-00573,0.00,92.40,R,Air Conditioning Accessories,NO
Http://opendatacommunities.org/id/metropolitan-district-council/leeds,Leeds City Council,31/03/2017,Environment & Housing,Leeds Building Services,Supplies and Services,Operational Materials,205,17-Mar-2017,1703-00574,0.00,21.82,R,Air Conditioning Accessories,NO
Http://opendatacommunities.org/id/metropolitan-district-council/leeds,Leeds City Council,31/03/2017,Environment & Housing,Leeds Building Services,Supplies and Services,Operational Materials,205,20-Mar-2017,1703-00575,0.00,23.50,R,Air Conditioning Accessories,NO
Http://opendatacommunities.org/id/metropolitan-district-council/leeds,Leeds City Council,31/03/2017,Environment & Housing,Leeds Building Services,Supplies and Services,Operational Materials,205,21-Mar-2017,1703-00576,0.00,1039.45,R,Air Conditioning Accessories,NO
Http://opendatacommunities.org/id/metropolitan-district-council/leeds,Leeds City Council,31/03/2017,Environment & Housing,Leeds Building Services,Supplies and Services,Operational Materials,205,24-Mar-2017,1703-00577,0.00,158.97,R,Air Conditioning Accessories,NO
Http://opendatacommunities.org/id/metropolitan-district-council/leeds,Leeds City Council,31/03/2017,Environment & Housing,Leeds Building Services,Supplies and Services,Operational Materials,205,24-Mar-2017,1703-00578,0.00,139.00,R,Air Conditioning Accessories,NO
Http://opendatacommunities.org/id/metropolitan-district-council/leeds,Leeds City Council,31/03/2017,Environment & Housing,Leeds Building Services,Supplies and Services,Operational Materials,205,24-Mar-2017,1703-00579,0.00,28.52,R,Air Conditioning Accessories,NO
Http://opendatacommunities.org/id/metropolitan-district-council/leeds,Leeds City Council,31/03/2017,Environment & Housing,Leeds Building Services,Supplies and Services,Operational Materials,205,24-Mar-2017,1703-00580,0.00,117.38,R,Air Conditioning Accessories,NO
Http://opendatacommunities.org/id/metropolitan-district-council/leeds,Leeds City Council,31/03/2017,Environment & Housing,Leeds Building Services,Supplies and Services,Operational Materials,205,27-Mar-2017,1703-00581,0.00,106.26,R,Air Conditioning Accessories,NO
Http://opendatacommunities.org/id/metropolitan-district-council/leeds,Leeds City Council,31/03/2017,Environment & Housing,Leeds Building Services,Supplies and Services,Operational Materials,205,27-Mar-2017,1703-00582,0.00,67.25,R,Air Conditioning Accessories,NO
Http://opendatacommunities.org/id/metropolitan-district-council/leeds,Leeds City Council,31/03/2017,Environment & Housing,Leeds Building Services,Supplies and Services,Operational Materials,205,27-Mar-2017,1703-00583,0.00,8.60,R,Air Force Pneumatics & Hydraulics,NO
Http://opendatacommunities.org/id/metropolitan-district-council/leeds,Leeds City Council,31/03/2017,Environment & Housing,Environmental Health,Supplies and Services,Operational Furniture And Equipment,203,15-Mar-2017,1703-00584,0.00,8.94,R,Air Liquide Uk,NO
Http://opendatacommunities.org/id/metropolitan-district-council/leeds,Leeds City Council,31/03/2017,Environment & Housing,Environmental Health,Supplies and Services,Operational Furniture And Equipment,203,15-Mar-2017,1703-00585,0.00,13.63,R,Air Liquide Uk,NO
Http://opendatacommunities.org/id/metropolitan-district-council/leeds,Leeds City Council,31/03/2017,Environment & Housing,Environmental Health,Supplies and Services,Operational Furniture And Equipment,203,15-Mar-2017,1703-00586,0.00,71.52,R,Air Liquide Uk,NO
Http://opendatacommunities.org/id/metropolitan-district-council/leeds,Leeds City Council,31/03/2017,Environment & Housing,Leeds Building Services,Supplies and Services,Operational Materials,205,21-Mar-2017,1703-00587,0.00,152.40,R,Air Liquide Uk,NO
Http://opendatacommunities.org/id/metropolitan-district-council/leeds,Leeds City Council,31/03/2017,Environment & Housing,Leeds Building Services,Supplies and Services,Operational Materials,205,31-Mar-2017,1703-00588,0.00,152.40,R,Air Liquide Uk,NO
Http://opendatacommunities.org/id/metropolitan-district-council/leeds,Leeds City Council,31/03/2017,Environment & Housing,Environmental Health,Supplies and Services,Operational Furniture And Equipment,203,31-Mar-2017,1703-00589,0.00,8.94,R,Air Liquide Uk,NO
Http://opendatacommunities.org/id/metropolitan-district-council/leeds,Leeds City Council,31/03/2017,Environment & Housing,Environmental Health,Supplies and Services,Operational Furniture And Equipment,203,31-Mar-2017,1703-00590,0.00,13.63,R,Air Liquide Uk,NO
Http://opendatacommunities.org/id/metropolitan-district-council/leeds,Leeds City Council,31/03/2017,Environment & Housing,Environmental Health,Supplies and Services,Other Hired And Contracted Services,265,21-Mar-2017,1703-00591,0.00,454.00,R,Air Monitors Ltd,NO
Http://opendatacommunities.org/id/metropolitan-district-council/leeds,Leeds City Council,31/03/2017,Childrens Services,Safeguarding Targeted & Specialist ,Supplies and Services,Training Allowances,257,23-Feb-2017,1703-00592,0.00,481.00,R,Airbnb,YES
Http://opendatacommunities.org/id/metropolitan-district-council/leeds,Leeds City Council,31/03/2017,Adult Social Care,Services For Adults Under 65 Mental/Dis,Third Party Payments,Residential,580,08-Mar-2017,1703-00593,0.00,6028.00,R,Aire House,NO
Http://opendatacommunities.org/id/metropolitan-district-council/leeds,Leeds City Council as Accountable Body,31/03/2017,Social Services Pooled Budgets,Jcs For People With Learning Disabilitie,Third Party Payments,Residential,580,08-Mar-2017,1703-00594,0.00,3059.84,R,Aire House,NO
Http://opendatacommunities.org/id/metropolitan-district-council/leeds,Leeds City Council,31/03/2017,Adult Social Care,Services For Older People - 65 And Over,Third Party Payments,Residential Care Dementia,571,08-Mar-2017,1703-00595,0.00,37605.62,R,Aire View Residential Home,NO
Http://opendatacommunities.org/id/metropolitan-district-council/leeds,Leeds City Council,31/03/2017,Adult Social Care,Services For Older People - 65 And Over,Third Party Payments,Residential,580,08-Mar-2017,1703-00596,0.00,19632.21,R,Aire View Residential Home,NO
Http://opendatacommunities.org/id/metropolitan-district-council/leeds,Leeds City Council,31/03/2017,Citizens and Communities,Communities,Supplies and Services,Well Being Small Grants Projects,228,03-Mar-2017,1703-00597,0.00,1000.00,R,Aireborough Neighbourhood Development,NO
Http://opendatacommunities.org/id/metropolitan-district-council/leeds,Leeds City Council,31/03/2017,Adult Social Care,Services For Older People - 65 And Over,Third Party Payments,Residential Care Dementia,571,08-Mar-2017,1703-00598,0.00,3550.84,R,Airedale (Goldsborough),NO
Http://opendatacommunities.org/id/metropolitan-district-council/leeds,Leeds City Council,31/03/2017,Adult Social Care,Services For Older People - 65 And Over,Third Party Payments,Residential,580,08-Mar-2017,1703-00599,0.00,19623.41,R,Airedale (Goldsborough),NO
Http://opendatacommunities.org/id/metropolitan-district-council/leeds,Leeds City Council,31/03/2017,Adult Social Care,Services For Older People Under 65 P/Dis,Third Party Payments,Residential,580,08-Mar-2017,1703-00600,0.00,-2928.10,R,Airedale (Goldsborough),NO
Http://opendatacommunities.org/id/metropolitan-district-council/leeds,Leeds City Council,31/03/2017,Civic Enterprise Leeds,Commercial Services,Supplies and Services,Operational Furniture And Equipment,203,15-Mar-2017,1703-00601,0.00,1600.00,R,Airedale Catering Equipment Ltd,NO
Http://opendatacommunities.org/id/metropolitan-district-council/leeds,Leeds City Council,31/03/2017,Civic Enterprise Leeds,Commercial Services,Supplies and Services,Clothing & Uniforms,241,15-Mar-2017,1703-00602,0.00,3855.00,R,Airedale Catering Equipment Ltd,NO
Http://opendatacommunities.org/id/metropolitan-district-council/leeds,Leeds City Council,31/03/2017,Adult Social Care,Assessment And Care Management,Employees,Training Costs,71,10-Mar-2017,1703-00603,0.00,120.00,R,Airedale Community Trading (Act) Ltd,NO
Http://opendatacommunities.org/id/metropolitan-district-council/leeds,Leeds City Council,31/03/2017,Civic Enterprise Leeds,Commercial Services,Supplies and Services,Other Hired And Contracted Services,265,15-Mar-2017,1703-00604,0.00,360.00,R,Air-Weigh Europe Limited,NO
Http://opendatacommunities.org/id/metropolitan-district-council/leeds,Leeds City Council,31/03/2017,Civic Enterprise Leeds,Commercial Services,Supplies and Services,Other Hired And Contracted Services,265,24-Mar-2017,1703-00605,0.00,180.00,R,Air-Weigh Europe Limited,NO
Http://opendatacommunities.org/id/metropolitan-district-council/leeds,Leeds City Council,31/03/2017,Adult Social Care,Services For Adults Under 65 Mental/Dis,Third Party Payments,Fees - Level 4,520,02-Mar-2017,1703-00606,0.00,239.50,R,Ait Mitra,NO
Http://opendatacommunities.org/id/metropolitan-district-council/leeds,Leeds City Council,31/03/2017,Adult Social Care,Services For Adults Under 65 Mental/Dis,Third Party Payments,Fees - Level 4,520,02-Mar-2017,1703-00607,0.00,175.00,R,Ait Mitra,NO
Http://opendatacommunities.org/id/metropolitan-district-council/leeds,Leeds City Council,31/03/2017,Adult Social Care,Services For Adults Under 65 Mental/Dis,Third Party Payments,Fees - Level 4,520,02-Mar-2017,1703-00608,0.00,175.00,R,Ait Mitra,NO
Http://opendatacommunities.org/id/metropolitan-district-council/leeds,Leeds City Council,31/03/2017,Adult Social Care,Services For Adults Under 65 Mental/Dis,Third Party Payments,Fees - Level 4,520,02-Mar-2017,1703-00609,0.00,175.00,R,Ait Mitra,NO
Http://opendatacommunities.org/id/metropolitan-district-council/leeds,Leeds City Council,31/03/2017,Adult Social Care,Services For Adults Under 65 Mental/Dis,Third Party Payments,Fees - Level 4,520,02-Mar-2017,1703-00610,0.00,175.00,R,Ait Mitra,NO
Http://opendatacommunities.org/id/metropolitan-district-council/leeds,Leeds City Council,31/03/2017,Adult Social Care,Services For Adults Under 65 Mental/Dis,Third Party Payments,Fees - Level 4,520,02-Mar-2017,1703-00611,0.00,175.00,R,Ait Mitra,NO
Http://opendatacommunities.org/id/metropolitan-district-council/leeds,Leeds City Council,31/03/2017,Adult Social Care,Services For Adults Under 65 Mental/Dis,Third Party Payments,Fees - Level 4,520,02-Mar-2017,1703-00612,0.00,175.00,R,Ait Mitra,NO
Http://opendatacommunities.org/id/metropolitan-district-council/leeds,Leeds City Council,31/03/2017,Adult Social Care,Services For Adults Under 65 Mental/Dis,Third Party Payments,Fees - Level 4,520,02-Mar-2017,1703-00613,0.00,175.00,R,Ait Mitra,NO
Http://opendatacommunities.org/id/metropolitan-district-council/leeds,Leeds City Council,31/03/2017,Adult Social Care,Services For Adults Under 65 Mental/Dis,Third Party Payments,Fees - Level 4,520,02-Mar-2017,1703-00614,0.00,175.00,R,Ait Mitra,NO
Http://opendatacommunities.org/id/metropolitan-district-council/leeds,Leeds City Council,31/03/2017,Adult Social Care,Services For Adults Under 65 Mental/Dis,Third Party Payments,Fees - Level 4,520,02-Mar-2017,1703-00615,0.00,175.00,R,Ait Mitra,NO
Http://opendatacommunities.org/id/metropolitan-district-council/leeds,Leeds City Council,31/03/2017,Adult Social Care,Services For Adults Under 65 Mental/Dis,Third Party Payments,Fees - Level 4,520,02-Mar-2017,1703-00616,0.00,175.00,R,Ait Mitra,NO
Http://opendatacommunities.org/id/metropolitan-district-council/leeds,Leeds City Council,31/03/2017,Adult Social Care,Services For Adults Under 65 Mental/Dis,Third Party Payments,Fees - Level 4,520,02-Mar-2017,1703-00617,0.00,175.00,R,Ait Mitra,NO
Http://opendatacommunities.org/id/metropolitan-district-council/leeds,Leeds City Council,31/03/2017,Adult Social Care,Services For Adults Under 65 Mental/Dis,Third Party Payments,Fees - Level 4,520,03-Mar-2017,1703-00618,0.00,175.00,R,Ait Mitra,NO
Http://opendatacommunities.org/id/metropolitan-district-council/leeds,Leeds City Council,31/03/2017,Adult Social Care,Services For Adults Under 65 Mental/Dis,Third Party Payments,Fees - Level 4,520,03-Mar-2017,1703-00619,0.00,175.00,R,Ait Mitra,NO
Http://opendatacommunities.org/id/metropolitan-district-council/leeds,Leeds City Council,31/03/2017,Adult Social Care,Services For Adults Under 65 Mental/Dis,Third Party Payments,Fees - Level 4,520,24-Mar-2017,1703-00620,0.00,175.00,R,Ait Mitra,NO
Http://opendatacommunities.org/id/metropolitan-district-council/leeds,Leeds City Council,31/03/2017,Adult Social Care,Services For Adults Under 65 Mental/Dis,Third Party Payments,Fees - Level 4,520,24-Mar-2017,1703-00621,0.00,175.00,R,Ait Mitra,NO
Http://opendatacommunities.org/id/metropolitan-district-council/leeds,Leeds City Council,31/03/2017,Adult Social Care,Services For Adults Under 65 Mental/Dis,Third Party Payments,Fees - Level 4,520,30-Mar-2017,1703-00622,0.00,175.00,R,Ait Mitra,NO
Http://opendatacommunities.org/id/metropolitan-district-council/leeds,Leeds City Council,31/03/2017,Adult Social Care,Services For Adults Under 65 Mental/Dis,Third Party Payments,Fees - Level 4,520,30-Mar-2017,1703-00623,0.00,175.00,R,Ait Mitra,NO
Http://opendatacommunities.org/id/metropolitan-district-council/leeds,Leeds City Council,31/03/2017,Adult Social Care,Services For Adults Under 65 Mental/Dis,Third Party Payments,Fees - Level 4,520,30-Mar-2017,1703-00624,0.00,175.00,R,Ait Mitra,NO
Http://opendatacommunities.org/id/metropolitan-district-council/leeds,Leeds City Council,31/03/2017,Adult Social Care,Services For Adults Under 65 Mental/Dis,Third Party Payments,Fees - Level 4,520,30-Mar-2017,1703-00625,0.00,175.00,R,Ait Mitra,NO
Http://opendatacommunities.org/id/metropolitan-district-council/leeds,Leeds City Council,31/03/2017,Adult Social Care,Services For Adults Under 65 Mental/Dis,Third Party Payments,Fees - Level 4,520,30-Mar-2017,1703-00626,0.00,175.00,R,Ait Mitra,NO
Http://opendatacommunities.org/id/metropolitan-district-council/leeds,Leeds City Council,31/03/2017,Adult Social Care,Services For Adults Under 65 Mental/Dis,Third Party Payments,Fees - Level 4,520,30-Mar-2017,1703-00627,0.00,175.00,R,Ait Mitra,NO
Http://opendatacommunities.org/id/metropolitan-district-council/leeds,Leeds City Council,31/03/2017,Adult Social Care,Services For Adults Under 65 Mental/Dis,Third Party Payments,Fees - Level 4,520,30-Mar-2017,1703-00628,0.00,175.00,R,Ait Mitra,NO
Http://opendatacommunities.org/id/metropolitan-district-council/leeds,Leeds City Council,31/03/2017,Adult Social Care,Services For Adults Under 65 Mental/Dis,Third Party Payments,Fees - Level 4,520,31-Mar-2017,1703-00629,0.00,175.00,R,Ait Mitra,NO
Http://opendatacommunities.org/id/metropolitan-district-council/leeds,Leeds City Council as Accountable Body,31/03/2017,Social Services Pooled Budgets,Jcs For People With Learning Disabilitie,Third Party Payments,Residential,580,08-Mar-2017,1703-00630,0.00,6173.24,R,Aitch Care Homes,NO
Http://opendatacommunities.org/id/metropolitan-district-council/leeds,Leeds City Council,31/03/2017,Environment & Housing,Parks and Countryside,Supplies and Services,Operational Materials,205,24-Mar-2017,1703-00631,0.00,1035.00,R,Aitkens Sportsturf Ltd,NO
Http://opendatacommunities.org/id/metropolitan-district-council/leeds,Leeds City Council,31/03/2017,Civic Enterprise Leeds,Commercial Services,Supplies and Services,Other Hired And Contracted Services,265,20-Mar-2017,1703-00632,0.00,600.00,R,REDACTED PERSONAL DATA,NO
Http://opendatacommunities.org/id/metropolitan-district-council/leeds,Leeds City Council,31/03/2017,Adult Social Care,Services For Older People - 65 And Over,Third Party Payments,Home Care,568,03-Mar-2017,1703-00633,0.00,7543.64,R,Aj Social Care,NO
Http://opendatacommunities.org/id/metropolitan-district-council/leeds,Leeds City Council,31/03/2017,Adult Social Care,Services For Older People Under 65 P/Dis,Third Party Payments,Home Care,568,03-Mar-2017,1703-00634,0.00,11784.64,R,Aj Social Care,NO
Http://opendatacommunities.org/id/metropolitan-district-council/leeds,Leeds City Council,31/03/2017,Adult Social Care,Services For Older People - 65 And Over,Third Party Payments,Home Care,568,03-Mar-2017,1703-00635,0.00,351.56,R,Aj Social Care,NO
Http://opendatacommunities.org/id/metropolitan-district-council/leeds,Leeds City Council,31/03/2017,Adult Social Care,Services For Older People Under 65 P/Dis,Third Party Payments,Home Care,568,03-Mar-2017,1703-00636,0.00,2713.56,R,Aj Social Care,NO
Http://opendatacommunities.org/id/metropolitan-district-council/leeds,Leeds City Council,31/03/2017,Adult Social Care,Services For Older People - 65 And Over,Third Party Payments,Home Care,568,31-Mar-2017,1703-00637,0.00,2446.54,R,Aj Social Care,NO
Http://opendatacommunities.org/id/metropolitan-district-council/leeds,Leeds City Council,31/03/2017,Adult Social Care,Services For Older People Under 65 P/Dis,Third Party Payments,Home Care,568,31-Mar-2017,1703-00638,0.00,727.09,R,Aj Social Care,NO
Http://opendatacommunities.org/id/metropolitan-district-council/leeds,Leeds City Council,31/03/2017,Adult Social Care,Services For Older People - 65 And Over,Third Party Payments,Home Care,568,31-Mar-2017,1703-00639,0.00,12449.95,R,Aj Social Care,NO
Http://opendatacommunities.org/id/metropolitan-district-council/leeds,Leeds City Council,31/03/2017,Adult Social Care,Services For Older People Under 65 P/Dis,Third Party Payments,Home Care,568,31-Mar-2017,1703-00640,0.00,7939.19,R,Aj Social Care,NO
Http://opendatacommunities.org/id/metropolitan-district-council/leeds,Leeds City Council,31/03/2017,Environment & Housing,Leeds Building Services,Supplies and Services,Operational Furniture And Equipment,203,03-Mar-2017,1703-00641,0.00,349.00,R,Ajm Fixings & Power Tools Ltd,NO
Http://opendatacommunities.org/id/metropolitan-district-council/leeds,Leeds City Council,31/03/2017,Environment & Housing,Leeds Building Services,Supplies and Services,Stores - Central And Other Depots,005,03-Mar-2017,1703-00642,0.00,568.00,R,Ajm Fixings & Power Tools Ltd,NO
Http://opendatacommunities.org/id/metropolitan-district-council/leeds,Leeds City Council,31/03/2017,Environment & Housing,Leeds Building Services,Supplies and Services,Operational Furniture And Equipment,203,06-Mar-2017,1703-00643,0.00,41.64,R,Ajm Fixings & Power Tools Ltd,NO
Http://opendatacommunities.org/id/metropolitan-district-council/leeds,Leeds City Council,31/03/2017,Environment & Housing,Leeds Building Services,Supplies and Services,Stores - Central And Other Depots,005,06-Mar-2017,1703-00644,0.00,311.85,R,Ajm Fixings & Power Tools Ltd,NO
Http://opendatacommunities.org/id/metropolitan-district-council/leeds,Leeds City Council,31/03/2017,Environment & Housing,Leeds Building Services,Supplies and Services,Operational Furniture And Equipment,203,09-Mar-2017,1703-00645,0.00,3140.00,R,Ajm Fixings & Power Tools Ltd,NO
Http://opendatacommunities.org/id/metropolitan-district-council/leeds,Leeds City Council,31/03/2017,Environment & Housing,Leeds Building Services,Supplies and Services,Operational Furniture And Equipment,203,09-Mar-2017,1703-00646,0.00,27.41,R,Ajm Fixings & Power Tools Ltd,NO
Http://opendatacommunities.org/id/metropolitan-district-council/leeds,Leeds City Council,31/03/2017,Environment & Housing,Leeds Building Services,Supplies and Services,Operational Furniture And Equipment,203,16-Mar-2017,1703-00647,0.00,-61.00,R,Ajm Fixings & Power Tools Ltd,NO
Http://opendatacommunities.org/id/metropolitan-district-council/leeds,Leeds City Council,31/03/2017,Environment & Housing,Leeds Building Services,Supplies and Services,Operational Furniture And Equipment,203,16-Mar-2017,1703-00648,0.00,225.00,R,Ajm Fixings & Power Tools Ltd,NO
Http://opendatacommunities.org/id/metropolitan-district-council/leeds,Leeds City Council,31/03/2017,Environment & Housing,Leeds Building Services,Supplies and Services,Operational Furniture And Equipment,203,16-Mar-2017,1703-00649,0.00,108.00,R,Ajm Fixings & Power Tools Ltd,NO
Http://opendatacommunities.org/id/metropolitan-district-council/leeds,Leeds City Council,31/03/2017,Environment & Housing,Leeds Building Services,Supplies and Services,Operational Furniture And Equipment,203,16-Mar-2017,1703-00650,0.00,840.00,R,Ajm Fixings & Power Tools Ltd,NO
Http://opendatacommunities.org/id/metropolitan-district-council/leeds,Leeds City Council,31/03/2017,Environment & Housing,Leeds Building Services,Supplies and Services,Operational Furniture And Equipment,203,16-Mar-2017,1703-00651,0.00,2059.07,R,Ajm Fixings & Power Tools Ltd,NO
Http://opendatacommunities.org/id/metropolitan-district-council/leeds,Leeds City Council,31/03/2017,Environment & Housing,Leeds Building Services,Supplies and Services,Operational Furniture And Equipment,203,20-Mar-2017,1703-00652,0.00,325.00,R,Ajm Fixings & Power Tools Ltd,NO
Http://opendatacommunities.org/id/metropolitan-district-council/leeds,Leeds City Council,31/03/2017,Environment & Housing,Leeds Building Services,Supplies and Services,Stores - Central And Other Depots,005,20-Mar-2017,1703-00653,0.00,260.50,R,Ajm Fixings & Power Tools Ltd,NO
Http://opendatacommunities.org/id/metropolitan-district-council/leeds,Leeds City Council,31/03/2017,Environment & Housing,Leeds Building Services,Supplies and Services,Stores - Central And Other Depots,005,24-Mar-2017,1703-00654,0.00,239.69,R,Ajm Fixings & Power Tools Ltd,NO
Http://opendatacommunities.org/id/metropolitan-district-council/leeds,Leeds City Council,31/03/2017,Environment & Housing,Leeds Building Services,Supplies and Services,Operational Furniture And Equipment,203,24-Mar-2017,1703-00655,0.00,730.00,R,Ajm Fixings & Power Tools Ltd,NO
Http://opendatacommunities.org/id/metropolitan-district-council/leeds,Leeds City Council,31/03/2017,Environment & Housing,Leeds Building Services,Supplies and Services,Operational Furniture And Equipment,203,24-Mar-2017,1703-00656,0.00,1460.00,R,Ajm Fixings & Power Tools Ltd,NO
Http://opendatacommunities.org/id/metropolitan-district-council/leeds,Leeds City Council,31/03/2017,Environment & Housing,Leeds Building Services,Supplies and Services,Operational Furniture And Equipment,203,24-Mar-2017,1703-00657,0.00,514.41,R,Ajm Fixings & Power Tools Ltd,NO
Http://opendatacommunities.org/id/metropolitan-district-council/leeds,Leeds City Council,31/03/2017,Environment & Housing,Leeds Building Services,Supplies and Services,Operational Furniture And Equipment,203,31-Mar-2017,1703-00658,0.00,880.00,R,Ajm Fixings & Power Tools Ltd,NO
Http://opendatacommunities.org/id/metropolitan-district-council/leeds,Leeds City Council,31/03/2017,Environment & Housing,Leeds Building Services,Supplies and Services,Operational Furniture And Equipment,203,31-Mar-2017,1703-00659,0.00,345.00,R,Ajm Fixings & Power Tools Ltd,NO
Http://opendatacommunities.org/id/metropolitan-district-council/leeds,Leeds City Council,31/03/2017,Environment & Housing,Leeds Building Services,Supplies and Services,Stores - Central And Other Depots,005,31-Mar-2017,1703-00660,0.00,458.00,R,Ajm Fixings & Power Tools Ltd,NO
Http://opendatacommunities.org/id/metropolitan-district-council/leeds,Leeds City Council,31/03/2017,Adult Social Care,Services For Older People - 65 And Over,Third Party Payments,Nursing Home,570,08-Mar-2017,1703-00661,0.00,1261.04,R,Akari Care Ltd,NO
Http://opendatacommunities.org/id/metropolitan-district-council/leeds,Leeds City Council,31/03/2017,Childrens Services,Safeguarding Targeted & Specialist,Supplies and Services,General Amenity For Clients/Residents,285,16-Mar-2017,1703-00662,0.00,6.90,R,REDACTED PERSONAL DATA,NO
Http://opendatacommunities.org/id/metropolitan-district-council/leeds,Leeds City Council,31/03/2017,Childrens Services,Safeguarding Targeted & Specialist,Transport,Public Transport Expenses,310,16-Mar-2017,1703-00663,0.00,26.40,R,REDACTED PERSONAL DATA,NO
Http://opendatacommunities.org/id/metropolitan-district-council/leeds,Leeds City Council,31/03/2017,Civic Enterprise Leeds,Commercial Services,Premises,Plant and Machinery,102,23-Mar-2017,1703-00664,0.00,313.78,R,Akua Uk Ltd,NO
Http://opendatacommunities.org/id/metropolitan-district-council/leeds,Leeds City Council,31/03/2017,Civic Enterprise Leeds,Commercial Services,Premises,Plant and Machinery,102,23-Mar-2017,1703-00665,0.00,339.50,R,Akua Uk Ltd,NO
Http://opendatacommunities.org/id/metropolitan-district-council/leeds,Leeds City Council,31/03/2017,Civic Enterprise Leeds,Commercial Services,Premises,Plant and Machinery,102,30-Mar-2017,1703-00666,0.00,334.46,R,Akua Uk Ltd,NO
Http://opendatacommunities.org/id/metropolitan-district-council/leeds,Leeds City Council,31/03/2017,Environment & Housing,Leeds Building Services,Supplies and Services,Operational Materials,205,06-Mar-2017,1703-00667,0.00,130.83,R,Akw Medicare Ltd,NO
Http://opendatacommunities.org/id/metropolitan-district-council/leeds,Leeds City Council,31/03/2017,Environment & Housing,Leeds Building Services,Supplies and Services,Operational Materials,205,06-Mar-2017,1703-00668,0.00,82.80,R,Akw Medicare Ltd,NO
Http://opendatacommunities.org/id/metropolitan-district-council/leeds,Leeds City Council,31/03/2017,Environment & Housing,Leeds Building Services,Supplies and Services,Operational Materials,205,10-Mar-2017,1703-00669,0.00,130.83,R,Akw Medicare Ltd,NO
Http://opendatacommunities.org/id/metropolitan-district-council/leeds,Leeds City Council,31/03/2017,Environment & Housing,Leeds Building Services,Supplies and Services,Operational Materials,205,10-Mar-2017,1703-00670,0.00,64.57,R,Akw Medicare Ltd,NO
Http://opendatacommunities.org/id/metropolitan-district-council/leeds,Leeds City Council,31/03/2017,Environment & Housing,Leeds Building Services,Supplies and Services,Operational Materials,205,10-Mar-2017,1703-00671,0.00,52.57,R,Akw Medicare Ltd,NO
Http://opendatacommunities.org/id/metropolitan-district-council/leeds,Leeds City Council,31/03/2017,Central & Corporate,Democratic Services ,Supplies and Services,Other Hired And Contracted Services,265,06-Feb-2017,1703-00672,0.00,40.00,R,Alan Brown Flowers,YES
Http://opendatacommunities.org/id/metropolitan-district-council/leeds,Leeds City Council,31/03/2017,Central & Corporate,Democratic Services ,Supplies and Services,Other Hired And Contracted Services,265,21-Feb-2017,1703-00673,0.00,75.00,R,Alan Brown Flowers,YES
Http://opendatacommunities.org/id/metropolitan-district-council/leeds,Leeds City Council,31/03/2017,Central & Corporate,Democratic Services ,Supplies and Services,Other Hired And Contracted Services,265,23-Feb-2017,1703-00674,0.00,25.00,R,Alan Brown Flowers,YES
Http://opendatacommunities.org/id/metropolitan-district-council/leeds,Leeds City Council,31/03/2017,City Development,Libraries  Arts & Heritage,Supplies and Services,Other Hired And Contracted Services,265,01-Mar-2017,1703-00675,0.00,400.00,R,Alan Horsey,NO
Http://opendatacommunities.org/id/metropolitan-district-council/leeds,Leeds City Council,31/03/2017,Childrens Services,Learning Skills & Universal,Third Party Payments,Services Rendered By Other Organisations,511,17-Mar-2017,1703-00676,0.00,250.80,R,Alanna Cardiss,NO
Http://opendatacommunities.org/id/metropolitan-district-council/leeds,Leeds City Council,31/03/2017,Central & Corporate,Finance,Supplies and Services,Memberships,226,14-Mar-2017,1703-00677,0.00,199.00,R,Alarm,NO
Http://opendatacommunities.org/id/metropolitan-district-council/leeds,Leeds City Council,31/03/2017,City Development,Libraries  Arts & Heritage,Supplies and Services,Other Hired And Contracted Services,265,10-Mar-2017,1703-00678,0.00,1000.00,R,Alasdair Beatson,NO
Http://opendatacommunities.org/id/metropolitan-district-council/leeds,Leeds City Council,31/03/2017,Civic Enterprise Leeds,Commercial Services,Supplies and Services,Other Hired And Contracted Services,265,24-Mar-2017,1703-00679,0.00,1145.44,R,Albert Farnell Ltd,NO
Http://opendatacommunities.org/id/metropolitan-district-council/leeds,Leeds City Council,31/03/2017,City Development,Recreation ,Supplies and Services,Office Consumables,210,02-Feb-2017,1703-00680,0.00,0.96,R,Aldi,YES
Http://opendatacommunities.org/id/metropolitan-district-council/leeds,Leeds City Council,31/03/2017,City Development,Recreation ,Supplies and Services,Food & Drink,231,02-Feb-2017,1703-00681,0.00,5.77,R,Aldi,YES
Http://opendatacommunities.org/id/metropolitan-district-council/leeds,Leeds City Council,31/03/2017,Childrens Services,Safeguarding Targeted & Specialist ,Supplies and Services,Food & Drink,231,24-Feb-2017,1703-00682,0.00,15.00,R,Aldi,YES
Http://opendatacommunities.org/id/metropolitan-district-council/leeds,Leeds City Council,31/03/2017,Childrens Services,Safeguarding Targeted & Specialist ,Supplies and Services,Food & Drink,231,24-Feb-2017,1703-00683,0.00,8.90,R,Aldi,YES
Http://opendatacommunities.org/id/metropolitan-district-council/leeds,Leeds City Council,31/03/2017,Environment & Housing,Parks And Countryside ,Supplies and Services,Operational Materials,205,27-Feb-2017,1703-00684,0.00,37.47,R,Aldi,YES
Http://opendatacommunities.org/id/metropolitan-district-council/leeds,Leeds City Council,31/03/2017,Childrens Services,Safeguarding Targeted & Specialist,Support Services,Legal Disbursements,411,17-Mar-2017,1703-00685,0.00,31.66,R,Alere Toxicology Plc,NO
Http://opendatacommunities.org/id/metropolitan-district-council/leeds,Leeds City Council,31/03/2017,Childrens Services,Safeguarding Targeted & Specialist,Support Services,Legal Disbursements,411,17-Mar-2017,1703-00686,0.00,110.15,R,Alere Toxicology Plc,NO
Http://opendatacommunities.org/id/metropolitan-district-council/leeds,Leeds City Council,31/03/2017,Childrens Services,Safeguarding Targeted & Specialist,Support Services,Legal Disbursements,411,24-Mar-2017,1703-00687,0.00,54.00,R,Alere Toxicology Plc,NO
Http://opendatacommunities.org/id/metropolitan-district-council/leeds,Leeds City Council,31/03/2017,Childrens Services,Safeguarding Targeted & Specialist,Support Services,Legal Disbursements,411,31-Mar-2017,1703-00688,0.00,693.00,R,Alere Toxicology Plc,NO
Http://opendatacommunities.org/id/metropolitan-district-council/leeds,Leeds City Council,31/03/2017,Childrens Services,Safeguarding Targeted & Specialist,Support Services,Legal Disbursements,411,31-Mar-2017,1703-00689,0.00,693.00,R,Alere Toxicology Plc,NO
Http://opendatacommunities.org/id/metropolitan-district-council/leeds,Leeds City Council,31/03/2017,Childrens Services,Learning Skills & Universal,Supplies and Services,Training Allowances,257,03-Mar-2017,1703-00690,0.00,264.84,R,REDACTED PERSONAL DATA,NO
Http://opendatacommunities.org/id/metropolitan-district-council/leeds,Leeds City Council,31/03/2017,Childrens Services,Learning Skills & Universal,Supplies and Services,Training Allowances,257,10-Mar-2017,1703-00691,0.00,264.84,R,REDACTED PERSONAL DATA,NO
Http://opendatacommunities.org/id/metropolitan-district-council/leeds,Leeds City Council,31/03/2017,Childrens Services,Learning Skills & Universal,Supplies and Services,Training Allowances,257,17-Mar-2017,1703-00692,0.00,264.84,R,REDACTED PERSONAL DATA,NO
Http://opendatacommunities.org/id/metropolitan-district-council/leeds,Leeds City Council,31/03/2017,Childrens Services,Learning Skills & Universal,Supplies and Services,Training Allowances,257,24-Mar-2017,1703-00693,0.00,264.84,R,REDACTED PERSONAL DATA,NO
Http://opendatacommunities.org/id/metropolitan-district-council/leeds,Leeds City Council,31/03/2017,Childrens Services,Learning Skills & Universal,Supplies and Services,Training Allowances,257,31-Mar-2017,1703-00694,0.00,264.84,R,REDACTED PERSONAL DATA,NO
Http://opendatacommunities.org/id/metropolitan-district-council/leeds,Leeds City Council,31/03/2017,Childrens Services,Safeguarding Targeted & Specialist,Support Services,Legal Disbursements,411,10-Mar-2017,1703-00695,0.00,4590.00,R,Alex Taylor,NO
Http://opendatacommunities.org/id/metropolitan-district-council/leeds,Leeds City Council,31/03/2017,Childrens Services,Safeguarding Targeted & Specialist,Support Services,Legal Disbursements,411,10-Mar-2017,1703-00696,0.00,162.00,R,Alex Taylor,NO
Http://opendatacommunities.org/id/metropolitan-district-council/leeds,Leeds City Council,31/03/2017,Childrens Services,Safeguarding Targeted & Specialist,Support Services,Legal Disbursements,411,15-Mar-2017,1703-00697,0.00,2031.20,R,Alex Taylor,NO
Http://opendatacommunities.org/id/metropolitan-district-council/leeds,Leeds City Council,31/03/2017,Childrens Services,Safeguarding Targeted & Specialist,Support Services,Legal Disbursements,411,17-Mar-2017,1703-00698,0.00,750.00,R,Alex Taylor,NO
Http://opendatacommunities.org/id/metropolitan-district-council/leeds,Leeds City Council,31/03/2017,Childrens Services,Safeguarding Targeted & Specialist,Support Services,Legal Disbursements,411,17-Mar-2017,1703-00699,0.00,361.00,R,Alex Taylor,NO
Http://opendatacommunities.org/id/metropolitan-district-council/leeds,Leeds City Council,31/03/2017,Childrens Services,Safeguarding Targeted & Specialist,Support Services,Legal Disbursements,411,24-Mar-2017,1703-00700,0.00,570.00,R,Alex Taylor,NO
Http://opendatacommunities.org/id/metropolitan-district-council/leeds,Leeds City Council,31/03/2017,Childrens Services,Safeguarding Targeted & Specialist,Support Services,Legal Disbursements,411,27-Mar-2017,1703-00701,0.00,6317.00,R,Alex Taylor,NO
Http://opendatacommunities.org/id/metropolitan-district-council/leeds,Leeds City Council,31/03/2017,Childrens Services,Safeguarding Targeted & Specialist,Support Services,Legal Disbursements,411,31-Mar-2017,1703-00702,0.00,383.57,R,Alex Taylor,NO
Http://opendatacommunities.org/id/metropolitan-district-council/leeds,Leeds City Council,31/03/2017,Adult Social Care,Services For Older People - 65 And Over,Third Party Payments,Residential Care Dementia,571,08-Mar-2017,1703-00703,0.00,10995.00,R,Alexander Residential Home,NO
Http://opendatacommunities.org/id/metropolitan-district-council/leeds,Leeds City Council,31/03/2017,Adult Social Care,Services For Older People - 65 And Over,Third Party Payments,Residential,580,08-Mar-2017,1703-00704,0.00,17298.04,R,Alexander Residential Home,NO
Http://opendatacommunities.org/id/metropolitan-district-council/leeds,Leeds City Council,31/03/2017,Citizens and Communities,Customer Access,Supplies and Services,Other Hired And Contracted Services,265,03-Mar-2017,1703-00705,0.00,489.10,R,Alexandra Costenco,NO
Http://opendatacommunities.org/id/metropolitan-district-council/leeds,Leeds City Council,31/03/2017,Adult Social Care,Services For Older People - 65 And Over,Third Party Payments,Residential Care Dementia,571,08-Mar-2017,1703-00706,0.00,1511.28,R,Alexandra Court,NO
Http://opendatacommunities.org/id/metropolitan-district-council/leeds,Leeds City Council,31/03/2017,Adult Social Care,Services For Older People - 65 And Over,Third Party Payments,Residential,580,08-Mar-2017,1703-00707,0.00,14806.88,R,Alexandra Court,NO
Http://opendatacommunities.org/id/metropolitan-district-council/leeds,Leeds City Council,31/03/2017,Citizens and Communities,Customer Access,Supplies and Services,Other Hired And Contracted Services,265,03-Mar-2017,1703-00708,0.00,332.50,R,Alexandra Hirst,NO
Http://opendatacommunities.org/id/metropolitan-district-council/leeds,Leeds City Council,31/03/2017,Childrens Services,Learning Skills & Universal,Third Party Payments,Services Rendered By Other Organisations,511,10-Mar-2017,1703-00709,0.00,800.25,R,Alexandra Leigh,NO
Http://opendatacommunities.org/id/metropolitan-district-council/leeds,Leeds City Council,31/03/2017,Environment & Housing,Leeds Building Services,Supplies and Services,Other Hired And Contracted Services,265,03-Mar-2017,1703-00710,0.00,1550.00,R,Alfred Bagnall & Sons (Leeds) Ltd,NO
Http://opendatacommunities.org/id/metropolitan-district-council/leeds,Leeds City Council,31/03/2017,Environment & Housing,Leeds Building Services,Supplies and Services,Other Hired And Contracted Services,265,17-Mar-2017,1703-00711,0.00,12350.00,R,Alfred Bagnall & Sons (Leeds) Ltd,NO
Http://opendatacommunities.org/id/metropolitan-district-council/leeds,Leeds City Council,31/03/2017,Environment & Housing,Leeds Building Services,Supplies and Services,Other Hired And Contracted Services,265,21-Mar-2017,1703-00712,0.00,1375.00,R,Alfred Bagnall & Sons (Leeds) Ltd,NO
Http://opendatacommunities.org/id/metropolitan-district-council/leeds,Leeds City Council,31/03/2017,Environment & Housing,Leeds Building Services,Supplies and Services,Other Hired And Contracted Services,265,24-Mar-2017,1703-00713,0.00,2580.00,R,Alfred Bagnall & Sons (Leeds) Ltd,NO
Http://opendatacommunities.org/id/metropolitan-district-council/leeds,Leeds City Council,31/03/2017,Adult Social Care,Services For Older People Under 65 P/Dis,Supplies and Services,Operational Furniture And Equipment,203,29-Mar-2017,1703-00714,0.00,1050.00,R,Alfred Bagnall & Sons (Leeds) Ltd,NO
Http://opendatacommunities.org/id/metropolitan-district-council/leeds,Leeds City Council,31/03/2017,Environment & Housing,Leeds Building Services,Supplies and Services,Other Hired And Contracted Services,265,30-Mar-2017,1703-00715,0.00,649.30,R,Alfred Bagnall & Sons (Leeds) Ltd,NO
Http://opendatacommunities.org/id/metropolitan-district-council/leeds,Leeds City Council,31/03/2017,City Development,Libraries  Arts & Heritage,Supplies and Services,Operational Materials,205,30-Mar-2017,1703-00716,0.00,800.00,R,Alfred Bagnall & Sons (Leeds) Ltd,NO
Http://opendatacommunities.org/id/metropolitan-district-council/leeds,Leeds City Council,31/03/2017,Environment & Housing,Leeds Building Services,Supplies and Services,Other Hired And Contracted Services,265,31-Mar-2017,1703-00717,0.00,1260.00,R,Alfred Bagnall & Sons (Leeds) Ltd,NO
Http://opendatacommunities.org/id/metropolitan-district-council/leeds,Leeds City Council,31/03/2017,Childrens Services,Safeguarding Targeted & Specialist,Third Party Payments,Section 17,551,03-Mar-2017,1703-00718,0.00,9.34,R,REDACTED PERSONAL DATA,NO
Http://opendatacommunities.org/id/metropolitan-district-council/leeds,Leeds City Council,31/03/2017,Childrens Services,Safeguarding Targeted & Specialist,Third Party Payments,Section 17,551,10-Mar-2017,1703-00719,0.00,9.34,R,REDACTED PERSONAL DATA,NO
Http://opendatacommunities.org/id/metropolitan-district-council/leeds,Leeds City Council,31/03/2017,Childrens Services,Safeguarding Targeted & Specialist,Transfer Payments,Leaving Care Allowances,634,20-Mar-2017,1703-00720,0.00,30.00,R,All Abode,NO
Http://opendatacommunities.org/id/metropolitan-district-council/leeds,Leeds City Council,31/03/2017,Childrens Services,Safeguarding Targeted & Specialist,Transfer Payments,Leaving Care Allowances,634,23-Mar-2017,1703-00721,0.00,60.00,R,All Abode,NO
Http://opendatacommunities.org/id/metropolitan-district-council/leeds,Leeds City Council,31/03/2017,City Development,Libraries  Arts & Heritage,Supplies and Services,Operational Furniture And Equipment,203,21-Mar-2017,1703-00722,0.00,750.00,R,All Change (Leeds) Ltd,NO
Http://opendatacommunities.org/id/metropolitan-district-council/leeds,Leeds City Council,31/03/2017,Childrens Services,Safeguarding Targeted & Specialist,Third Party Payments,Section 17,551,17-Mar-2017,1703-00723,0.00,100.00,R,All Clear,NO
Http://opendatacommunities.org/id/metropolitan-district-council/leeds,Leeds City Council,31/03/2017,Environment & Housing,Leeds Building Services,Supplies and Services,Other Hired And Contracted Services,265,10-Mar-2017,1703-00724,0.00,250.00,R,All Clear Solutions Ltd,NO
Http://opendatacommunities.org/id/metropolitan-district-council/leeds,Leeds City Council,31/03/2017,Environment & Housing,Leeds Building Services,Supplies and Services,Other Hired And Contracted Services,265,15-Mar-2017,1703-00725,0.00,195.00,R,All Clear Solutions Ltd,NO
Http://opendatacommunities.org/id/metropolitan-district-council/leeds,Leeds City Council,31/03/2017,Environment & Housing,Leeds Building Services,Supplies and Services,Other Hired And Contracted Services,265,20-Mar-2017,1703-00726,0.00,250.00,R,All Clear Solutions Ltd,NO
Http://opendatacommunities.org/id/metropolitan-district-council/leeds,Leeds City Council,31/03/2017,Environment & Housing,Leeds Building Services,Supplies and Services,Other Hired And Contracted Services,265,20-Mar-2017,1703-00727,0.00,250.00,R,All Clear Solutions Ltd,NO
Http://opendatacommunities.org/id/metropolitan-district-council/leeds,Leeds City Council,31/03/2017,Environment & Housing,Leeds Building Services,Supplies and Services,Other Hired And Contracted Services,265,20-Mar-2017,1703-00728,0.00,195.00,R,All Clear Solutions Ltd,NO
Http://opendatacommunities.org/id/metropolitan-district-council/leeds,Leeds City Council,31/03/2017,Environment & Housing,Leeds Building Services,Supplies and Services,Other Hired And Contracted Services,265,24-Mar-2017,1703-00729,0.00,195.00,R,All Clear Solutions Ltd,NO
Http://opendatacommunities.org/id/metropolitan-district-council/leeds,Leeds City Council,31/03/2017,Environment & Housing,Leeds Building Services,Supplies and Services,Other Hired And Contracted Services,265,31-Mar-2017,1703-00730,0.00,585.00,R,All Clear Solutions Ltd,NO
Http://opendatacommunities.org/id/metropolitan-district-council/leeds,Leeds City Council,31/03/2017,Childrens Services,Learning Skills & Universal,Third Party Payments,Services Rendered By Other Organisations,511,10-Mar-2017,1703-00731,0.00,2415.30,R,All Stars Childcare,NO
Http://opendatacommunities.org/id/metropolitan-district-council/leeds,Leeds City Council,31/03/2017,Childrens Services,Learning Skills & Universal,Third Party Payments,Services Rendered By Other Organisations,511,17-Mar-2017,1703-00732,0.00,5688.65,R,All Stars Childcare,NO
Http://opendatacommunities.org/id/metropolitan-district-council/leeds,Leeds City Council,31/03/2017,Childrens Services,Learning Skills & Universal,Third Party Payments,Services Rendered By Other Organisations,511,17-Mar-2017,1703-00733,0.00,87.45,R,All Stars Childcare,NO
Http://opendatacommunities.org/id/metropolitan-district-council/leeds,Leeds City Council as Accountable Body,31/03/2017,Social Services Pooled Budgets,Jcs For People With Learning Disabilitie,Third Party Payments,Sheltered Accommodation,569,08-Mar-2017,1703-00734,0.00,16596.04,R,Allerton Avenue,NO
Http://opendatacommunities.org/id/metropolitan-district-council/leeds,Leeds City Council,31/03/2017,Environment & Housing,Parks and Countryside,Supplies and Services,Operational Materials,205,24-Mar-2017,1703-00735,0.00,7.50,R,Allflex Uk Group Ltd,NO
Http://opendatacommunities.org/id/metropolitan-district-council/leeds,Leeds City Council,31/03/2017,Environment & Housing,Parks and Countryside,Supplies and Services,Operational Materials,205,27-Mar-2017,1703-00736,0.00,6.50,R,Allflex Uk Group Ltd,NO
Http://opendatacommunities.org/id/metropolitan-district-council/leeds,Leeds City Council,31/03/2017,Environment & Housing,Parks and Countryside,Supplies and Services,Operational Materials,205,27-Mar-2017,1703-00737,0.00,2.50,R,Allflex Uk Group Ltd,NO
Http://opendatacommunities.org/id/metropolitan-district-council/leeds,Leeds City Council,31/03/2017,Environment & Housing,Parks and Countryside,Supplies and Services,Operational Materials,205,27-Mar-2017,1703-00738,0.00,15.00,R,Allflex Uk Group Ltd,NO
Http://opendatacommunities.org/id/metropolitan-district-council/leeds,Leeds City Council,31/03/2017,Environment & Housing,Parks and Countryside,Supplies and Services,Operational Materials,205,28-Mar-2017,1703-00739,0.00,2.50,R,Allflex Uk Group Ltd,NO
Http://opendatacommunities.org/id/metropolitan-district-council/leeds,Leeds City Council,31/03/2017,Environment & Housing,Parks and Countryside,Supplies and Services,Operational Materials,205,28-Mar-2017,1703-00740,0.00,33.95,R,Allflex Uk Group Ltd,NO
Http://opendatacommunities.org/id/metropolitan-district-council/leeds,Leeds City Council,31/03/2017,Environment & Housing,Parks and Countryside,Supplies and Services,Operational Materials,205,30-Mar-2017,1703-00741,0.00,168.00,R,Allflex Uk Group Ltd,NO
Http://opendatacommunities.org/id/metropolitan-district-council/leeds,Leeds City Council,31/03/2017,Environment & Housing,Parks and Countryside,Supplies and Services,Operational Materials,205,31-Mar-2017,1703-00742,0.00,2.50,R,Allflex Uk Group Ltd,NO
Http://opendatacommunities.org/id/metropolitan-district-council/leeds,Leeds City Council,31/03/2017,Central & Corporate,Finance,Supplies and Services,Bank Charges,263,01-Mar-2017,1703-00743,0.00,-57.77,R,Alliance & Leicester Commercial Bank,NO
Http://opendatacommunities.org/id/metropolitan-district-council/leeds,Leeds City Council,31/03/2017,Strategic Landlord,Housing Management,Supplies and Services,Other Hired And Contracted Services,265,06-Mar-2017,1703-00744,0.00,209.77,R,Alliance & Leicester Commercial Bank,NO
Http://opendatacommunities.org/id/metropolitan-district-council/leeds,Leeds City Council,31/03/2017,Central & Corporate,Finance,Supplies and Services,Bank Charges,263,06-Mar-2017,1703-00745,0.00,2.02,R,Alliance & Leicester Commercial Bank,NO
Http://opendatacommunities.org/id/metropolitan-district-council/leeds,Leeds City Council,31/03/2017,Central & Corporate,Finance,Supplies and Services,Bank Charges,263,06-Mar-2017,1703-00746,0.00,149.97,R,Alliance & Leicester Commercial Bank,NO
Http://opendatacommunities.org/id/metropolitan-district-council/leeds,Leeds City Council,31/03/2017,Central & Corporate,Finance,Supplies and Services,Bank Charges,263,06-Mar-2017,1703-00747,0.00,782.40,R,Alliance & Leicester Commercial Bank,NO
Http://opendatacommunities.org/id/metropolitan-district-council/leeds,Leeds City Council,31/03/2017,Central & Corporate,Finance,Supplies and Services,Bank Charges,263,06-Mar-2017,1703-00748,0.00,100.00,R,Alliance & Leicester Commercial Bank,NO
Http://opendatacommunities.org/id/metropolitan-district-council/leeds,Leeds City Council,31/03/2017,Civic Enterprise Leeds,Commercial Services,Transport,Vehicle Spares,345,03-Mar-2017,1703-00749,0.00,265.00,R,Alliance Electronics Ltd,NO
Http://opendatacommunities.org/id/metropolitan-district-council/leeds,Leeds City Council,31/03/2017,Civic Enterprise Leeds,Commercial Services,Transport,Vehicle Spares,345,03-Mar-2017,1703-00750,0.00,225.00,R,Alliance Electronics Ltd,NO
Http://opendatacommunities.org/id/metropolitan-district-council/leeds,Leeds City Council,31/03/2017,Civic Enterprise Leeds,Commercial Services,Transport,Vehicle Spares,345,31-Mar-2017,1703-00751,0.00,47.80,R,Alliance Electronics Ltd,NO
Http://opendatacommunities.org/id/metropolitan-district-council/leeds,Leeds City Council,31/03/2017,City Development,Recreation,Supplies and Services,Advertising,211,17-Mar-2017,1703-00752,0.00,1748.45,R,Alliance Leisure Service Ltd,NO
Http://opendatacommunities.org/id/metropolitan-district-council/leeds,Leeds City Council,31/03/2017,City Development,Highways,Supplies and Services,Other Hired And Contracted Services,265,01-Mar-2017,1703-00753,0.00,915.00,R,Allied Exploration & Geotechnics Ltd,NO
Http://opendatacommunities.org/id/metropolitan-district-council/leeds,Leeds City Council,31/03/2017,City Development,Highways,Supplies and Services,Other Hired And Contracted Services,265,01-Mar-2017,1703-00754,0.00,806.80,R,Allied Exploration & Geotechnics Ltd,NO
Http://opendatacommunities.org/id/metropolitan-district-council/leeds,Leeds City Council,31/03/2017,City Development,Highways,Supplies and Services,Other Hired And Contracted Services,265,01-Mar-2017,1703-00755,0.00,5060.20,R,Allied Exploration & Geotechnics Ltd,NO
Http://opendatacommunities.org/id/metropolitan-district-council/leeds,Leeds City Council,31/03/2017,City Development,Highways,Supplies and Services,Other Hired And Contracted Services,265,09-Mar-2017,1703-00756,0.00,5482.95,R,Allied Exploration & Geotechnics Ltd,NO
Http://opendatacommunities.org/id/metropolitan-district-council/leeds,Leeds City Council,31/03/2017,City Development,Highways,Supplies and Services,Other Hired And Contracted Services,265,15-Mar-2017,1703-00757,0.00,2269.40,R,Allied Exploration & Geotechnics Ltd,NO
